﻿Body Name,Body,Service Area Categorisation,Service Division Categorisation,Responsible Unit,Expenses Type,Detailed Expenses Type,Payment Date,Transaction Number,Payment Amount,Supplier Type,Supplier Name,Supplier Id
Portsmouth City Council,PCC,Planning Services,Business support,Regeneration,Third Party Payments,Private contractors,13/03/19,6288014,104.3,VENDOR,BOARHUNT GROUP LTD,103726
Portsmouth City Council,PCC,Highways and Transport Services,Parking Services,Regeneration,Third Party Payments,Private contractors,13/03/19,6288014,25,VENDOR,BOARHUNT GROUP LTD,103726
Portsmouth City Council,PCC,Highways and Transport Services,Parking Services,Regeneration,Third Party Payments,Private contractors,13/03/19,6288014,25,VENDOR,BOARHUNT GROUP LTD,103726
Portsmouth City Council,PCC,Highways and Transport Services,Parking Services,Regeneration,Third Party Payments,Private contractors,13/03/19,6288014,30,VENDOR,BOARHUNT GROUP LTD,103726
Portsmouth City Council,PCC,Highways and Transport Services,Parking Services,Regeneration,Third Party Payments,Private contractors,13/03/19,6288014,25,VENDOR,BOARHUNT GROUP LTD,103726
Portsmouth City Council,PCC,Highways and Transport Services,Parking Services,Regeneration,Third Party Payments,Private contractors,13/03/19,6288014,44,VENDOR,BOARHUNT GROUP LTD,103726
Portsmouth City Council,PCC,Highways and Transport Services,Parking Services,Regeneration,Third Party Payments,Private contractors,13/03/19,6288014,120,VENDOR,BOARHUNT GROUP LTD,103726
Portsmouth City Council,PCC,Highways and Transport Services,Parking Services,Regeneration,Third Party Payments,Private contractors,13/03/19,6288014,50,VENDOR,BOARHUNT GROUP LTD,103726
Portsmouth City Council,PCC,Highways and Transport Services,Parking Services,Regeneration,Third Party Payments,Private contractors,13/03/19,6288014,50,VENDOR,BOARHUNT GROUP LTD,103726
Portsmouth City Council,PCC,Highways and Transport Services,Parking Services,Regeneration,Third Party Payments,Private contractors,13/03/19,6288014,42.5,VENDOR,BOARHUNT GROUP LTD,103726
Portsmouth City Council,PCC,Highways and Transport Services,Parking Services,Regeneration,Third Party Payments,Private contractors,20/03/19,6289522,65,VENDOR,BOARHUNT GROUP LTD,103726
Portsmouth City Council,PCC,Highways and Transport Services,Parking Services,Regeneration,Third Party Payments,Private contractors,20/03/19,6289522,50,VENDOR,BOARHUNT GROUP LTD,103726
Portsmouth City Council,PCC,Highways and Transport Services,Parking Services,Regeneration,Third Party Payments,Private contractors,20/03/19,6289522,50,VENDOR,BOARHUNT GROUP LTD,103726
Portsmouth City Council,PCC,Highways and Transport Services,Parking Services,Regeneration,Third Party Payments,Private contractors,20/03/19,6289522,50,VENDOR,BOARHUNT GROUP LTD,103726
Portsmouth City Council,PCC,Highways and Transport Services,Parking Services,Regeneration,Third Party Payments,Private contractors,20/03/19,6289522,60,VENDOR,BOARHUNT GROUP LTD,103726
Portsmouth City Council,PCC,Highways and Transport Services,Parking Services,Regeneration,Premises-Related Expenditure,Rents,20/03/19,6289522,1600,VENDOR,BOARHUNT GROUP LTD,103726
Portsmouth City Council,PCC,Highways and Transport Services,Parking Services,Regeneration,Third Party Payments,Private contractors,20/03/19,6289522,50,VENDOR,BOARHUNT GROUP LTD,103726
Portsmouth City Council,PCC,Highways and Transport Services,Parking Services,Regeneration,Third Party Payments,Private contractors,28/03/19,6291313,90,VENDOR,BOARHUNT GROUP LTD,103726
Portsmouth City Council,PCC,Highways and Transport Services,Parking Services,Regeneration,Third Party Payments,Private contractors,28/03/19,6291313,50,VENDOR,BOARHUNT GROUP LTD,103726
Portsmouth City Council,PCC,Highways and Transport Services,Parking Services,Regeneration,Third Party Payments,Private contractors,28/03/19,6291313,44,VENDOR,BOARHUNT GROUP LTD,103726
Portsmouth City Council,PCC,Highways and Transport Services,Parking Services,Regeneration,Third Party Payments,Private contractors,28/03/19,6291313,50,VENDOR,BOARHUNT GROUP LTD,103726
Portsmouth City Council,PCC,Highways and Transport Services,Parking Services,Regeneration,Third Party Payments,Private contractors,28/03/19,6291313,90,VENDOR,BOARHUNT GROUP LTD,103726
Portsmouth City Council,PCC,Highways and Transport Services,Parking Services,Regeneration,Third Party Payments,Private contractors,28/03/19,6291313,50,VENDOR,BOARHUNT GROUP LTD,103726
Portsmouth City Council,PCC,Highways and Transport Services,Parking Services,Regeneration,Third Party Payments,Private contractors,28/03/19,6291313,44,VENDOR,BOARHUNT GROUP LTD,103726
Portsmouth City Council,PCC,Highways and Transport Services,Parking Services,Regeneration,Third Party Payments,Private contractors,28/03/19,6291313,60,VENDOR,BOARHUNT GROUP LTD,103726
Portsmouth City Council,PCC,Highways and Transport Services,Parking Services,Regeneration,Third Party Payments,Private contractors,28/03/19,6291313,50,VENDOR,BOARHUNT GROUP LTD,103726
Portsmouth City Council,PCC,Children's and Education Services,Children Looked After,Children's Services and Education,Third Party Payments,Other establishments,20/03/19,6289941,25013.14,VENDOR,KEYS GROUP LIMITED,137236
Portsmouth City Council,PCC,Children's and Education Services,Children Looked After,Children's Services and Education,Third Party Payments,Other establishments,20/03/19,6289941,24770.14,VENDOR,KEYS GROUP LIMITED,137236
Portsmouth City Council,PCC,Children's and Education Services,Children Looked After,Children's Services and Education,Third Party Payments,Other establishments,28/03/19,6291401,231.6,VENDOR,KEYS GROUP LIMITED,137236
Portsmouth City Council,PCC,Children's and Education Services,Children Looked After,Children's Services and Education,Third Party Payments,Other establishments,28/03/19,6291401,18276,VENDOR,KEYS GROUP LIMITED,137236
Portsmouth City Council,PCC,Children's and Education Services,Children Looked After,Children's Services and Education,Third Party Payments,Other establishments,28/03/19,6291401,231.6,VENDOR,KEYS GROUP LIMITED,137236
Portsmouth City Council,PCC,Children's and Education Services,Special Schools,Children's Services and Education,Third Party Payments,Other establishments,06/03/19,6287331,6950,VENDOR,ST EDWARDS SCHOOL,101262
Portsmouth City Council,PCC,Children's and Education Services,Special Schools,Children's Services and Education,Third Party Payments,Other establishments,06/03/19,6287331,23936,VENDOR,ST EDWARDS SCHOOL,101262
Portsmouth City Council,PCC,Other,Suspense and Capital Schemes,Capital - Traffic & Transportation,Capital Charges,Capital Expenditure (WIP),26/03/19,6290696,781.49,VENDOR,PRODUCT DEVELOPMENT CORPORATION,134173
Portsmouth City Council,PCC,Other,Suspense and Capital Schemes,Capital - Traffic & Transportation,Capital Charges,Capital Expenditure (WIP),01/03/19,6286451,426.28,VENDOR,PRODUCT DEVELOPMENT CORPORATION,134173
Portsmouth City Council,PCC,Other,Suspense and Capital Schemes,Capital - Traffic & Transportation,Capital Charges,Capital Expenditure (WIP),01/03/19,6286451,1.28,VENDOR,PRODUCT DEVELOPMENT CORPORATION,134173
Portsmouth City Council,PCC,Other,Suspense and Capital Schemes,Capital - Traffic & Transportation,Capital Charges,Capital Expenditure (WIP),01/03/19,6286451,587.22,VENDOR,PRODUCT DEVELOPMENT CORPORATION,134173
Portsmouth City Council,PCC,Other,Suspense and Capital Schemes,Capital - Traffic & Transportation,Capital Charges,Capital Expenditure (WIP),01/03/19,6286451,587.72,VENDOR,PRODUCT DEVELOPMENT CORPORATION,134173
Portsmouth City Council,PCC,Other,Suspense and Capital Schemes,Capital - Traffic & Transportation,Capital Charges,Capital Expenditure (WIP),29/03/19,6291706,250,VENDOR,PRODUCT DEVELOPMENT CORPORATION,134173
Portsmouth City Council,PCC,Other,Suspense and Capital Schemes,Capital - Traffic & Transportation,Capital Charges,Capital Expenditure (WIP),29/03/19,6291706,250,VENDOR,PRODUCT DEVELOPMENT CORPORATION,134173
Portsmouth City Council,PCC,Highways and Transport Services,Parking Services,Regeneration,Third Party Payments,Private contractors,29/03/19,6291706,697.2,VENDOR,PRODUCT DEVELOPMENT CORPORATION,134173
Portsmouth City Council,PCC,Children's and Education Services,Family Support Services,Children's Services and Education,Transport-Related Expenditure,Public transport,01/03/19,6286303,43.6,VENDOR,ATOC LTD,103839
Portsmouth City Council,PCC,Children's and Education Services,Safeguarding Children and Young Peoples Services,Children's Services and Education,Transport-Related Expenditure,Public transport,01/03/19,6286303,16.6,VENDOR,ATOC LTD,103839
Portsmouth City Council,PCC,Children's and Education Services,Family Support Services,Children's Services and Education,Transport-Related Expenditure,Public transport,01/03/19,6286303,212.95,VENDOR,ATOC LTD,103839
Portsmouth City Council,PCC,Children's and Education Services,Children Looked After,Children's Services and Education,Transport-Related Expenditure,Public transport,01/03/19,6286303,45.7,VENDOR,ATOC LTD,103839
Portsmouth City Council,PCC,Children's and Education Services,Children Looked After,Children's Services and Education,Transport-Related Expenditure,Public transport,01/03/19,6286303,239.5,VENDOR,ATOC LTD,103839
Portsmouth City Council,PCC,Children's and Education Services,Other Children and Family Services,Children's Services and Education,Transport-Related Expenditure,Public transport,01/03/19,6286303,215.15,VENDOR,ATOC LTD,103839
Portsmouth City Council,PCC,Children's and Education Services,Youth Justice,Children's Services and Education,Transport-Related Expenditure,Public transport,01/03/19,6286303,166.9,VENDOR,ATOC LTD,103839
Portsmouth City Council,PCC,Children's and Education Services,Family Support Services,Children's Services and Education,Transport-Related Expenditure,Public transport,27/03/19,6290760,2.45,VENDOR,ATOC LTD,103839
Portsmouth City Council,PCC,Children's and Education Services,Family Support Services,Children's Services and Education,Transport-Related Expenditure,Public transport,27/03/19,6290760,17.85,VENDOR,ATOC LTD,103839
Portsmouth City Council,PCC,Children's and Education Services,Family Support Services,Children's Services and Education,Transport-Related Expenditure,Public transport,27/03/19,6290760,41.5,VENDOR,ATOC LTD,103839
Portsmouth City Council,PCC,Children's and Education Services,Other Children and Family Services,Children's Services and Education,Transport-Related Expenditure,Public transport,27/03/19,6290760,283.5,VENDOR,ATOC LTD,103839
Portsmouth City Council,PCC,Children's and Education Services,Safeguarding Children and Young Peoples Services,Children's Services and Education,Transport-Related Expenditure,Public transport,27/03/19,6290760,16.6,VENDOR,ATOC LTD,103839
Portsmouth City Council,PCC,Children's and Education Services,Family Support Services,Children's Services and Education,Transport-Related Expenditure,Public transport,27/03/19,6290760,243.4,VENDOR,ATOC LTD,103839
Portsmouth City Council,PCC,Children's and Education Services,Children Looked After,Children's Services and Education,Transport-Related Expenditure,Public transport,27/03/19,6290760,57.7,VENDOR,ATOC LTD,103839
Portsmouth City Council,PCC,Children's and Education Services,Children Looked After,Children's Services and Education,Transport-Related Expenditure,Public transport,27/03/19,6290760,88.9,VENDOR,ATOC LTD,103839
Portsmouth City Council,PCC,Children's and Education Services,Other Children and Family Services,Children's Services and Education,Transport-Related Expenditure,Public transport,27/03/19,6290760,193.02,VENDOR,ATOC LTD,103839
Portsmouth City Council,PCC,Children's and Education Services,Other Children and Family Services,Children's Services and Education,Transport-Related Expenditure,Public transport,27/03/19,6290760,159.98,VENDOR,ATOC LTD,103839
Portsmouth City Council,PCC,Children's and Education Services,Safeguarding Children and Young Peoples Services,Children's Services and Education,Transport-Related Expenditure,Public transport,27/03/19,6290760,231.6,VENDOR,ATOC LTD,103839
Portsmouth City Council,PCC,Children's and Education Services,Children Looked After,Children's Services and Education,Third Party Payments,Other establishments,25/03/19,6290429,17000,VENDOR,KEYS GROUP LIMITED,137236
Portsmouth City Council,PCC,Children's and Education Services,Children Looked After,Children's Services and Education,Third Party Payments,Other establishments,05/03/19,6286720,160.98,VENDOR,HORIZON CARE AND EDUCATION GROUP LTD,138450
Portsmouth City Council,PCC,Children's and Education Services,Children Looked After,Children's Services and Education,Third Party Payments,Other establishments,05/03/19,6286720,2719.92,VENDOR,HORIZON CARE AND EDUCATION GROUP LTD,138450
Portsmouth City Council,PCC,Children's and Education Services,Children Looked After,Children's Services and Education,Third Party Payments,Other establishments,19/03/19,6289007,2428.5,VENDOR,HORIZON CARE AND EDUCATION GROUP LTD,138450
Portsmouth City Council,PCC,Children's and Education Services,Asylum seekers,Children's Services and Education,Third Party Payments,Other establishments,05/03/19,6286720,2331.36,VENDOR,HORIZON CARE AND EDUCATION GROUP LTD,138450
Portsmouth City Council,PCC,Children's and Education Services,Children Looked After,Children's Services and Education,Third Party Payments,Other establishments,05/03/19,6286720,3011.34,VENDOR,HORIZON CARE AND EDUCATION GROUP LTD,138450
Portsmouth City Council,PCC,Children's and Education Services,Children Looked After,Children's Services and Education,Third Party Payments,Other establishments,21/03/19,6290065,3011.34,VENDOR,HORIZON CARE AND EDUCATION GROUP LTD,138450
Portsmouth City Council,PCC,Children's and Education Services,Asylum seekers,Children's Services and Education,Third Party Payments,Other establishments,21/03/19,6290065,679.98,VENDOR,HORIZON CARE AND EDUCATION GROUP LTD,138450
Portsmouth City Council,PCC,Children's and Education Services,Safeguarding Children and Young Peoples Services,Children's Services and Education,Third Party Payments,Other establishments,21/03/19,6290065,115.8,VENDOR,HORIZON CARE AND EDUCATION GROUP LTD,138450
Portsmouth City Council,PCC,Highways and Transport Services,Public Transport,Regeneration,Supplies and Services,Grants and subscriptions,11/03/19,6287702,1120,VENDOR,ITSO LTD,136293
Portsmouth City Council,PCC,Children's and Education Services,Youth Justice,Children's Services and Education,Supplies and Services,Communications and computing,12/03/19,6287802,32217.45,VENDOR,CAREERVISION LTD,129120
Portsmouth City Council,PCC,Adult Social Care,Assistive Equipment & Technology,"Housing, Neighbourhood and Building Services",Supplies and Services,"Equipment, furniture and materials",15/03/19,6288887,1923.4,VENDOR,TYNETEC B/U OF LEGRAND ELECTRIC LTD,140439
Portsmouth City Council,PCC,Adult Social Care,Assistive Equipment & Technology,"Housing, Neighbourhood and Building Services",Supplies and Services,"Equipment, furniture and materials",15/03/19,6288887,717.4,VENDOR,TYNETEC B/U OF LEGRAND ELECTRIC LTD,140439
Portsmouth City Council,PCC,Adult Social Care,Assistive Equipment & Technology,"Housing, Neighbourhood and Building Services",Supplies and Services,"Equipment, furniture and materials",15/03/19,6288887,1014,VENDOR,TYNETEC B/U OF LEGRAND ELECTRIC LTD,140439
Portsmouth City Council,PCC,Adult Social Care,Assistive Equipment & Technology,"Housing, Neighbourhood and Building Services",Supplies and Services,"Equipment, furniture and materials",15/03/19,6288887,390,VENDOR,TYNETEC B/U OF LEGRAND ELECTRIC LTD,140439
Portsmouth City Council,PCC,Adult Social Care,Assistive Equipment & Technology,"Housing, Neighbourhood and Building Services",Supplies and Services,"Equipment, furniture and materials",15/03/19,6288887,970.4,VENDOR,TYNETEC B/U OF LEGRAND ELECTRIC LTD,140439
Portsmouth City Council,PCC,Adult Social Care,Assistive Equipment & Technology,"Housing, Neighbourhood and Building Services",Supplies and Services,"Equipment, furniture and materials",15/03/19,6288887,71.77,VENDOR,TYNETEC B/U OF LEGRAND ELECTRIC LTD,140439
Portsmouth City Council,PCC,Adult Social Care,Assistive Equipment & Technology,"Housing, Neighbourhood and Building Services",Supplies and Services,"Equipment, furniture and materials",15/03/19,6288887,125.56,VENDOR,TYNETEC B/U OF LEGRAND ELECTRIC LTD,140439
Portsmouth City Council,PCC,Children's and Education Services,Children Looked After,Children's Services and Education,Third Party Payments,Other establishments,20/03/19,6289940,5950,VENDOR,KEYS GROUP LIMITED,137236
Portsmouth City Council,PCC,Children's and Education Services,Children Looked After,Children's Services and Education,Third Party Payments,Other establishments,25/03/19,6290430,23800,VENDOR,KEYS GROUP LIMITED,137236
Portsmouth City Council,PCC,Support Service / Transparency Costs Unallocated,AMS,"Housing, Neighbourhood and Building Services",Supplies and Services,"Equipment, furniture and materials",15/03/19,6288825,2356.32,VENDOR,PORTSDOWN OFFICE LTD,100059
Portsmouth City Council,PCC,Support Service / Transparency Costs Unallocated,AMS,"Housing, Neighbourhood and Building Services",Supplies and Services,"Equipment, furniture and materials",27/03/19,6291232,1846.8,VENDOR,PORTSDOWN OFFICE LTD,100059
Portsmouth City Council,PCC,Other,Suspense and Capital Schemes,Capital - Culture Leisure & Sport,Capital Charges,Capital Expenditure (WIP),07/03/19,6287429,2353.89,VENDOR,PORTSDOWN OFFICE LTD,100059
Portsmouth City Council,PCC,Support Service / Transparency Costs Unallocated,AMS,"Housing, Neighbourhood and Building Services",Supplies and Services,"Equipment, furniture and materials",14/03/19,6288626,575,VENDOR,PORTSDOWN OFFICE LTD,100059
Portsmouth City Council,PCC,Support Service / Transparency Costs Unallocated,AMS,"Housing, Neighbourhood and Building Services",Supplies and Services,"Equipment, furniture and materials",14/03/19,6288626,238,VENDOR,PORTSDOWN OFFICE LTD,100059
Portsmouth City Council,PCC,Support Service / Transparency Costs Unallocated,AMS,"Housing, Neighbourhood and Building Services",Supplies and Services,"Equipment, furniture and materials",14/03/19,6288626,376,VENDOR,PORTSDOWN OFFICE LTD,100059
Portsmouth City Council,PCC,Support Service / Transparency Costs Unallocated,AMS,"Housing, Neighbourhood and Building Services",Supplies and Services,"Equipment, furniture and materials",14/03/19,6288626,376,VENDOR,PORTSDOWN OFFICE LTD,100059
Portsmouth City Council,PCC,Support Service / Transparency Costs Unallocated,AMS,"Housing, Neighbourhood and Building Services",Supplies and Services,"Equipment, furniture and materials",22/03/19,6290256,316,VENDOR,PORTSDOWN OFFICE LTD,100059
Portsmouth City Council,PCC,Support Service / Transparency Costs Unallocated,AMS,"Housing, Neighbourhood and Building Services",Supplies and Services,"Equipment, furniture and materials",22/03/19,6290256,3250,VENDOR,PORTSDOWN OFFICE LTD,100059
Portsmouth City Council,PCC,Support Service / Transparency Costs Unallocated,AMS,"Housing, Neighbourhood and Building Services",Supplies and Services,"Equipment, furniture and materials",22/03/19,6290256,476,VENDOR,PORTSDOWN OFFICE LTD,100059
Portsmouth City Council,PCC,Other,Suspense and Capital Schemes,Capital - Traffic & Transportation,Capital Charges,Capital Expenditure (WIP),27/03/19,6291208,2795,VENDOR,HYPERION INFRASTRUCTURE CONSULTANCY,144798
Portsmouth City Council,PCC,Housing Revenue Account,"Rents, Rates, Taxes and Other Charges","Housing, Neighbourhood and Building Services",Premises-Related Expenditure,Water Services,01/03/19,6286477,573.59,VENDOR,SOUTHERN WATER,100254
Portsmouth City Council,PCC,Housing Revenue Account,Special Services,"Housing, Neighbourhood and Building Services",Premises-Related Expenditure,Water Services,01/03/19,6286477,408.86,VENDOR,SOUTHERN WATER,100254
Portsmouth City Council,PCC,Housing Revenue Account,Repairs and Maintenance,"Housing, Neighbourhood and Building Services",Premises-Related Expenditure,"Repairs, alterations and maintenance of buildings",12/03/19,6287911,18204.95,COMPANY,MOUNTJOY LIMITED,129869
Portsmouth City Council,PCC,Housing Revenue Account,Repairs and Maintenance,"Housing, Neighbourhood and Building Services",Premises-Related Expenditure,"Repairs, alterations and maintenance of buildings",12/03/19,6287911,-3542,COMPANY,MOUNTJOY LIMITED,129869
Portsmouth City Council,PCC,Adult Social Care,Social Care Activities,Adult Services,Third Party Payments,Other establishments,01/03/19,6286398,5290,VENDOR,HELPING HANDS HOMECARE,141367
Portsmouth City Council,PCC,Adult Social Care,Social Care Activities,Adult Services,Third Party Payments,Other establishments,01/03/19,6286398,4774,VENDOR,HELPING HANDS HOMECARE,141367
Portsmouth City Council,PCC,Adult Social Care,Social Care Activities,Adult Services,Third Party Payments,Other establishments,29/03/19,6291629,2236,VENDOR,HELPING HANDS HOMECARE,141367
Portsmouth City Council,PCC,Adult Social Care,Social Care Activities,Adult Services,Third Party Payments,Other establishments,29/03/19,6291629,4780,VENDOR,HELPING HANDS HOMECARE,141367
Portsmouth City Council,PCC,Cultural and Related Services,Open Spaces,Culture & City Development,Premises-Related Expenditure,Water Services,04/03/19,6286539,600.85,VENDOR,CASTLE WATER LIMITED,142798
Portsmouth City Council,PCC,Cultural and Related Services,Open Spaces,Culture & City Development,Premises-Related Expenditure,Water Services,04/03/19,6286539,21.33,VENDOR,CASTLE WATER LIMITED,142798
Portsmouth City Council,PCC,Cultural and Related Services,Open Spaces,Culture & City Development,Premises-Related Expenditure,Water Services,15/03/19,6288710,54.13,VENDOR,CASTLE WATER LIMITED,142798
Portsmouth City Council,PCC,Environmental and Regulatory Services,Regulatory Services,"Housing, Neighbourhood and Building Services",Premises-Related Expenditure,Water Services,15/03/19,6288710,95.66,VENDOR,CASTLE WATER LIMITED,142798
Portsmouth City Council,PCC,Environmental and Regulatory Services,"Cemetery, Cremation and Mortuary Services",Culture & City Development,Premises-Related Expenditure,Water Services,15/03/19,6288710,33.61,VENDOR,CASTLE WATER LIMITED,142798
Portsmouth City Council,PCC,Housing Services,Private Sector Housing Renewal,"Housing, Neighbourhood and Building Services",Supplies and Services,Grants and subscriptions,13/03/19,6288527,9895.94,COMPANY,YOUNG AND YOUNG BUILDING SERVICES LTD,104996
Portsmouth City Council,PCC,Other,Suspense and Capital Schemes,Capital - Housing GF,Capital Charges,REFCUS,13/03/19,6288527,2104.06,COMPANY,YOUNG AND YOUNG BUILDING SERVICES LTD,104996
Portsmouth City Council,PCC,Other,Suspense and Capital Schemes,Capital - Housing GF,Capital Charges,REFCUS,29/03/19,6291790,5895.94,COMPANY,YOUNG AND YOUNG BUILDING SERVICES LTD,104996
Portsmouth City Council,PCC,Housing Services,Private Sector Housing Renewal,"Housing, Neighbourhood and Building Services",Income,Other grants reimbursements and contributions,29/03/19,6291790,-120,COMPANY,YOUNG AND YOUNG BUILDING SERVICES LTD,104996
Portsmouth City Council,PCC,Housing Services,Private Sector Housing Renewal,"Housing, Neighbourhood and Building Services",Income,Other grants reimbursements and contributions,29/03/19,6291790,-1344.84,COMPANY,YOUNG AND YOUNG BUILDING SERVICES LTD,104996
Portsmouth City Council,PCC,Housing Services,Supporting People,"Housing, Neighbourhood and Building Services",Third Party Payments,Other establishments,26/03/19,6290734,33025,VENDOR,TWO SAINTS LTD,102584
Portsmouth City Council,PCC,Housing Services,Supporting People,"Housing, Neighbourhood and Building Services",Third Party Payments,Other establishments,26/03/19,6290734,4166.67,VENDOR,TWO SAINTS LTD,102584
Portsmouth City Council,PCC,Adult Social Care,Support with Memory and Cognition Older People (65 - 74),Adult Services,Supplies and Services,Catering,06/03/19,6287325,114.06,VENDOR,SOLENT BUTCHERS LIMITED,103813
Portsmouth City Council,PCC,Adult Social Care,Support with Memory and Cognition Older People (65 - 74),Adult Services,Supplies and Services,Catering,06/03/19,6287325,62.83,VENDOR,SOLENT BUTCHERS LIMITED,103813
Portsmouth City Council,PCC,Adult Social Care,Support with Memory and Cognition Older People (65 - 74),Adult Services,Supplies and Services,Catering,06/03/19,6287325,62.82,VENDOR,SOLENT BUTCHERS LIMITED,103813
Portsmouth City Council,PCC,Adult Social Care,Support with Memory and Cognition Older People (65 - 74),Adult Services,Supplies and Services,Catering,06/03/19,6287325,58.41,VENDOR,SOLENT BUTCHERS LIMITED,103813
Portsmouth City Council,PCC,Adult Social Care,Support with Memory and Cognition Older People (65 - 74),Adult Services,Supplies and Services,Catering,06/03/19,6287325,45.48,VENDOR,SOLENT BUTCHERS LIMITED,103813
Portsmouth City Council,PCC,Adult Social Care,Support with Memory and Cognition Older People (65 - 74),Adult Services,Supplies and Services,Catering,06/03/19,6287325,43.28,VENDOR,SOLENT BUTCHERS LIMITED,103813
Portsmouth City Council,PCC,Adult Social Care,Support with Memory and Cognition Older People (65 - 74),Adult Services,Supplies and Services,Catering,06/03/19,6287325,166.62,VENDOR,SOLENT BUTCHERS LIMITED,103813
Portsmouth City Council,PCC,Adult Social Care,Social Care Activities,Adult Services,Third Party Payments,Other establishments,26/03/19,6290552,5496.96,VENDOR,ASTER CARE LTD,130238
Portsmouth City Council,PCC,Central Services,Coroners' Court Services,Culture & City Development,Supplies and Services,Services,29/03/19,6291663,83.5,VENDOR,Classified as 'personal data' (under the Data Protection Act 1998),143445
Portsmouth City Council,PCC,Central Services,Coroners' Court Services,Culture & City Development,Supplies and Services,Services,06/03/19,321470,640,VENDOR,DIGNITY FUNERALS LTD,117178
Portsmouth City Council,PCC,Adult Social Care,Social Care Activities,Adult Services,Third Party Payments,Other establishments,26/03/19,6290552,5714.52,VENDOR,ASTER CARE LTD,130238
Portsmouth City Council,PCC,Adult Social Care,Social Care Activities,Adult Services,Third Party Payments,Other establishments,26/03/19,6290552,5279.4,VENDOR,ASTER CARE LTD,130238
Portsmouth City Council,PCC,Adult Social Care,Social Care Activities,Adult Services,Third Party Payments,Other establishments,05/03/19,6286742,945.4,VENDOR,NURSE PLUS & CARER PLUS (UK) LIMITED,129474
Portsmouth City Council,PCC,Adult Social Care,Social Care Activities,Adult Services,Third Party Payments,Other establishments,05/03/19,6286742,1369.2,VENDOR,NURSE PLUS & CARER PLUS (UK) LIMITED,129474
Portsmouth City Council,PCC,Adult Social Care,Social Care Activities,Adult Services,Third Party Payments,Other establishments,05/03/19,6286742,2738.4,VENDOR,NURSE PLUS & CARER PLUS (UK) LIMITED,129474
Portsmouth City Council,PCC,Adult Social Care,Social Care Activities,Adult Services,Third Party Payments,Other establishments,08/03/19,6287574,945.4,VENDOR,NURSE PLUS & CARER PLUS (UK) LIMITED,129474
Portsmouth City Council,PCC,Adult Social Care,Social Care Activities,Adult Services,Third Party Payments,Other establishments,08/03/19,6287574,1369.2,VENDOR,NURSE PLUS & CARER PLUS (UK) LIMITED,129474
Portsmouth City Council,PCC,Adult Social Care,Social Care Activities,Adult Services,Third Party Payments,Other establishments,08/03/19,6287574,2738.4,VENDOR,NURSE PLUS & CARER PLUS (UK) LIMITED,129474
Portsmouth City Council,PCC,Adult Social Care,Social Care Activities,Adult Services,Third Party Payments,Other establishments,15/03/19,6288808,945.4,VENDOR,NURSE PLUS & CARER PLUS (UK) LIMITED,129474
Portsmouth City Council,PCC,Adult Social Care,Social Care Activities,Adult Services,Third Party Payments,Other establishments,15/03/19,6288808,1369.2,VENDOR,NURSE PLUS & CARER PLUS (UK) LIMITED,129474
Portsmouth City Council,PCC,Adult Social Care,Social Care Activities,Adult Services,Third Party Payments,Other establishments,15/03/19,6288808,2746.55,VENDOR,NURSE PLUS & CARER PLUS (UK) LIMITED,129474
Portsmouth City Council,PCC,Adult Social Care,Social Care Activities,Adult Services,Third Party Payments,Other establishments,22/03/19,6290243,912.8,VENDOR,NURSE PLUS & CARER PLUS (UK) LIMITED,129474
Portsmouth City Council,PCC,Adult Social Care,Social Care Activities,Adult Services,Third Party Payments,Other establishments,22/03/19,6290243,1369.2,VENDOR,NURSE PLUS & CARER PLUS (UK) LIMITED,129474
Portsmouth City Council,PCC,Adult Social Care,Social Care Activities,Adult Services,Third Party Payments,Other establishments,22/03/19,6290243,2738.4,VENDOR,NURSE PLUS & CARER PLUS (UK) LIMITED,129474
Portsmouth City Council,PCC,Adult Social Care,Social Care Activities,Adult Services,Third Party Payments,Other establishments,29/03/19,6291683,945.4,VENDOR,NURSE PLUS & CARER PLUS (UK) LIMITED,129474
Portsmouth City Council,PCC,Adult Social Care,Social Care Activities,Adult Services,Third Party Payments,Other establishments,29/03/19,6291683,1369.2,VENDOR,NURSE PLUS & CARER PLUS (UK) LIMITED,129474
Portsmouth City Council,PCC,Adult Social Care,Social Care Activities,Adult Services,Third Party Payments,Other establishments,29/03/19,6291683,2738.4,VENDOR,NURSE PLUS & CARER PLUS (UK) LIMITED,129474
Portsmouth City Council,PCC,Adult Social Care,Social Care Activities,Adult Services,Third Party Payments,Other establishments,26/03/19,6290552,10369.92,VENDOR,ASTER CARE LTD,130238
Portsmouth City Council,PCC,Children's and Education Services,Other Education and Community Budget,Children's Services and Education,Supplies and Services,Miscellaneous expenses,21/03/19,6290013,1775,VENDOR,ACTIVE LEADER OPERATIONS LIMITED,144430
Portsmouth City Council,PCC,Adult Social Care,Commissioning & service delivery,Adult Services,Employees,Direct employee expenses,05/03/19,6286774,2150,VENDOR,STHREE PARTNERSHIP LLP,107166
Portsmouth City Council,PCC,Adult Social Care,Commissioning & service delivery,Adult Services,Employees,Direct employee expenses,05/03/19,6286774,2150,VENDOR,STHREE PARTNERSHIP LLP,107166
Portsmouth City Council,PCC,Adult Social Care,Commissioning & service delivery,Adult Services,Employees,Direct employee expenses,11/03/19,6287742,2150,VENDOR,STHREE PARTNERSHIP LLP,107166
Portsmouth City Council,PCC,Adult Social Care,Commissioning & service delivery,Adult Services,Employees,Direct employee expenses,15/03/19,6288863,2150,VENDOR,STHREE PARTNERSHIP LLP,107166
Portsmouth City Council,PCC,Adult Social Care,Commissioning & service delivery,Adult Services,Employees,Direct employee expenses,25/03/19,6290512,2150,VENDOR,STHREE PARTNERSHIP LLP,107166
Portsmouth City Council,PCC,Housing Revenue Account,Supervision and Management,"Housing, Neighbourhood and Building Services",Third Party Payments,Private contractors,15/03/19,6288677,385,VENDOR,A VAN PORTSMOUTH LIMITED,138694
Portsmouth City Council,PCC,Central Services,Coroners' Court Services,Culture & City Development,Supplies and Services,Services,29/03/19,6291663,98.9,VENDOR,Classified as 'personal data' (under the Data Protection Act 1998),143445
Portsmouth City Council,PCC,Environmental and Regulatory Services,Community Safety (Crime Reduction),"HR, Legal, Audit & Performance",Supplies and Services,"Printing, stationery and general office expenses",29/03/19,6291546,280,VENDOR,CLEAR CHANNEL UK LTD,104057
Portsmouth City Council,PCC,Environmental and Regulatory Services,Community Safety (Crime Reduction),"HR, Legal, Audit & Performance",Supplies and Services,"Printing, stationery and general office expenses",29/03/19,6291546,2030,VENDOR,CLEAR CHANNEL UK LTD,104057
Portsmouth City Council,PCC,Central Services,Coroners' Court Services,Culture & City Development,Supplies and Services,Services,29/03/19,6291663,98.9,VENDOR,Classified as 'personal data' (under the Data Protection Act 1998),143445
Portsmouth City Council,PCC,Central Services,Coroners' Court Services,Culture & City Development,Supplies and Services,Services,29/03/19,6291663,96.4,VENDOR,Classified as 'personal data' (under the Data Protection Act 1998),143445
Portsmouth City Council,PCC,Children's and Education Services,Management and Support Services,Children's Services and Education,Supplies and Services,Miscellaneous expenses,15/03/19,6288806,1095.17,VENDOR,MU ENTERPRISES LTD,144803
Portsmouth City Council,PCC,Other,Suspense and Capital Schemes,Capital - Housing RA,Capital Charges,Capital Expenditure (WIP),26/03/19,6290672,62,VENDOR,M J H REMOVALS LTD,105441
Portsmouth City Council,PCC,Central Services,Coroners' Court Services,Culture & City Development,Supplies and Services,Services,29/03/19,6291663,96.9,VENDOR,Classified as 'personal data' (under the Data Protection Act 1998),143445
Portsmouth City Council,PCC,Children's and Education Services,Other Children and Family Services,Children's Services and Education,Third Party Payments,Other establishments,04/03/19,6286521,757.28,VENDOR,APPLETREE SUPPORT LTD,126285
Portsmouth City Council,PCC,Children's and Education Services,Other Children and Family Services,Children's Services and Education,Third Party Payments,Other establishments,04/03/19,6286521,1081.8,VENDOR,APPLETREE SUPPORT LTD,126285
Portsmouth City Council,PCC,Children's and Education Services,Other Children and Family Services,Children's Services and Education,Third Party Payments,Other establishments,04/03/19,6286521,1027.71,VENDOR,APPLETREE SUPPORT LTD,126285
Portsmouth City Council,PCC,Children's and Education Services,Other Children and Family Services,Children's Services and Education,Third Party Payments,Other establishments,04/03/19,6286521,36.06,VENDOR,APPLETREE SUPPORT LTD,126285
Portsmouth City Council,PCC,Children's and Education Services,Other Children and Family Services,Children's Services and Education,Third Party Payments,Other establishments,04/03/19,6286521,243.41,VENDOR,APPLETREE SUPPORT LTD,126285
Portsmouth City Council,PCC,Adult Social Care,Social Care Activities,Adult Services,Third Party Payments,Other establishments,01/03/19,6286296,2884.8,VENDOR,APPLETREE SUPPORT LTD,126285
Portsmouth City Council,PCC,Central Services,Coroners' Court Services,Culture & City Development,Supplies and Services,Services,29/03/19,6291663,98.9,VENDOR,Classified as 'personal data' (under the Data Protection Act 1998),143445
Portsmouth City Council,PCC,Central Services,Coroners' Court Services,Culture & City Development,Supplies and Services,Services,29/03/19,6291663,95.9,VENDOR,Classified as 'personal data' (under the Data Protection Act 1998),143445
Portsmouth City Council,PCC,Central Services,Coroners' Court Services,Culture & City Development,Supplies and Services,Services,29/03/19,6291663,96.4,VENDOR,Classified as 'personal data' (under the Data Protection Act 1998),143445
Portsmouth City Council,PCC,Children's and Education Services,Asylum seekers,Children's Services and Education,Third Party Payments,Other establishments,19/03/19,6288996,3343.16,VENDOR,FAMILY FIRST FOSTERING,144272
Portsmouth City Council,PCC,Children's and Education Services,Children Looked After,Children's Services and Education,Third Party Payments,Other establishments,05/03/19,6286728,2264,VENDOR,KEYWORK CENTRAL LTD T/A STREET SUPPORT,144150
Portsmouth City Council,PCC,Children's and Education Services,Asylum seekers,Children's Services and Education,Third Party Payments,Other establishments,05/03/19,6286728,1699.6,VENDOR,KEYWORK CENTRAL LTD T/A STREET SUPPORT,144150
Portsmouth City Council,PCC,Children's and Education Services,Asylum seekers,Children's Services and Education,Third Party Payments,Other establishments,05/03/19,6286728,5219.6,VENDOR,KEYWORK CENTRAL LTD T/A STREET SUPPORT,144150
Portsmouth City Council,PCC,Children's and Education Services,Asylum seekers,Children's Services and Education,Third Party Payments,Other establishments,05/03/19,6286728,1739.6,VENDOR,KEYWORK CENTRAL LTD T/A STREET SUPPORT,144150
Portsmouth City Council,PCC,Children's and Education Services,Asylum seekers,Children's Services and Education,Third Party Payments,Other establishments,05/03/19,6286728,5219.6,VENDOR,KEYWORK CENTRAL LTD T/A STREET SUPPORT,144150
Portsmouth City Council,PCC,Children's and Education Services,Asylum seekers,Children's Services and Education,Third Party Payments,Other establishments,05/03/19,6286728,2279.6,VENDOR,KEYWORK CENTRAL LTD T/A STREET SUPPORT,144150
Portsmouth City Council,PCC,Children's and Education Services,Asylum seekers,Children's Services and Education,Third Party Payments,Other establishments,05/03/19,6286728,11114.14,VENDOR,KEYWORK CENTRAL LTD T/A STREET SUPPORT,144150
Portsmouth City Council,PCC,Children's and Education Services,Asylum seekers,Children's Services and Education,Third Party Payments,Other establishments,05/03/19,6286728,4608.26,VENDOR,KEYWORK CENTRAL LTD T/A STREET SUPPORT,144150
Portsmouth City Council,PCC,Children's and Education Services,Asylum seekers,Children's Services and Education,Third Party Payments,Other establishments,05/03/19,6286728,1739.6,VENDOR,KEYWORK CENTRAL LTD T/A STREET SUPPORT,144150
Portsmouth City Council,PCC,Children's and Education Services,Asylum seekers,Children's Services and Education,Third Party Payments,Other establishments,05/03/19,6286728,1319.86,VENDOR,KEYWORK CENTRAL LTD T/A STREET SUPPORT,144150
Portsmouth City Council,PCC,Children's and Education Services,Asylum seekers,Children's Services and Education,Third Party Payments,Other establishments,05/03/19,6286728,1739.6,VENDOR,KEYWORK CENTRAL LTD T/A STREET SUPPORT,144150
Portsmouth City Council,PCC,Children's and Education Services,Asylum seekers,Children's Services and Education,Third Party Payments,Other establishments,05/03/19,6286728,1847.6,VENDOR,KEYWORK CENTRAL LTD T/A STREET SUPPORT,144150
Portsmouth City Council,PCC,Children's and Education Services,Asylum seekers,Children's Services and Education,Third Party Payments,Other establishments,05/03/19,6286728,1524.86,VENDOR,KEYWORK CENTRAL LTD T/A STREET SUPPORT,144150
Portsmouth City Council,PCC,Children's and Education Services,Asylum seekers,Children's Services and Education,Third Party Payments,Other establishments,05/03/19,6286728,372.77,VENDOR,KEYWORK CENTRAL LTD T/A STREET SUPPORT,144150
Portsmouth City Council,PCC,Children's and Education Services,Asylum seekers,Children's Services and Education,Third Party Payments,Other establishments,05/03/19,6286728,1982.31,VENDOR,KEYWORK CENTRAL LTD T/A STREET SUPPORT,144150
Portsmouth City Council,PCC,Children's and Education Services,Asylum seekers,Children's Services and Education,Third Party Payments,Other establishments,05/03/19,6286728,6898.89,VENDOR,KEYWORK CENTRAL LTD T/A STREET SUPPORT,144150
Portsmouth City Council,PCC,Children's and Education Services,Asylum seekers,Children's Services and Education,Third Party Payments,Other establishments,05/03/19,6286728,4139.6,VENDOR,KEYWORK CENTRAL LTD T/A STREET SUPPORT,144150
Portsmouth City Council,PCC,Children's and Education Services,Asylum seekers,Children's Services and Education,Third Party Payments,Other establishments,05/03/19,6286728,1699.6,VENDOR,KEYWORK CENTRAL LTD T/A STREET SUPPORT,144150
Portsmouth City Council,PCC,Children's and Education Services,Asylum seekers,Children's Services and Education,Third Party Payments,Other establishments,05/03/19,6286728,1699.6,VENDOR,KEYWORK CENTRAL LTD T/A STREET SUPPORT,144150
Portsmouth City Council,PCC,Children's and Education Services,Asylum seekers,Children's Services and Education,Third Party Payments,Other establishments,05/03/19,6286728,1566.6,VENDOR,KEYWORK CENTRAL LTD T/A STREET SUPPORT,144150
Portsmouth City Council,PCC,Children's and Education Services,Asylum seekers,Children's Services and Education,Third Party Payments,Other establishments,05/03/19,6286728,1566.6,VENDOR,KEYWORK CENTRAL LTD T/A STREET SUPPORT,144150
Portsmouth City Council,PCC,Children's and Education Services,Asylum seekers,Children's Services and Education,Third Party Payments,Other establishments,05/03/19,6286728,1566.6,VENDOR,KEYWORK CENTRAL LTD T/A STREET SUPPORT,144150
Portsmouth City Council,PCC,Children's and Education Services,Asylum seekers,Children's Services and Education,Third Party Payments,Other establishments,05/03/19,6286728,2090.03,VENDOR,KEYWORK CENTRAL LTD T/A STREET SUPPORT,144150
Portsmouth City Council,PCC,Children's and Education Services,Safeguarding Children and Young Peoples Services,Children's Services and Education,Third Party Payments,Other establishments,05/03/19,6286728,1628,VENDOR,KEYWORK CENTRAL LTD T/A STREET SUPPORT,144150
Portsmouth City Council,PCC,Children's and Education Services,Safeguarding Children and Young Peoples Services,Children's Services and Education,Third Party Payments,Other establishments,05/03/19,6286728,1767.6,VENDOR,KEYWORK CENTRAL LTD T/A STREET SUPPORT,144150
Portsmouth City Council,PCC,Children's and Education Services,Safeguarding Children and Young Peoples Services,Children's Services and Education,Third Party Payments,Other establishments,05/03/19,6286728,1508,VENDOR,KEYWORK CENTRAL LTD T/A STREET SUPPORT,144150
Portsmouth City Council,PCC,Children's and Education Services,Safeguarding Children and Young Peoples Services,Children's Services and Education,Third Party Payments,Other establishments,05/03/19,6286728,1699.6,VENDOR,KEYWORK CENTRAL LTD T/A STREET SUPPORT,144150
Portsmouth City Council,PCC,Children's and Education Services,Safeguarding Children and Young Peoples Services,Children's Services and Education,Third Party Payments,Other establishments,05/03/19,6286728,1874.6,VENDOR,KEYWORK CENTRAL LTD T/A STREET SUPPORT,144150
Portsmouth City Council,PCC,Children's and Education Services,Safeguarding Children and Young Peoples Services,Children's Services and Education,Third Party Payments,Other establishments,05/03/19,6286728,1739.6,VENDOR,KEYWORK CENTRAL LTD T/A STREET SUPPORT,144150
Portsmouth City Council,PCC,Children's and Education Services,Safeguarding Children and Young Peoples Services,Children's Services and Education,Third Party Payments,Other establishments,05/03/19,6286728,550,VENDOR,KEYWORK CENTRAL LTD T/A STREET SUPPORT,144150
Portsmouth City Council,PCC,Children's and Education Services,Safeguarding Children and Young Peoples Services,Children's Services and Education,Third Party Payments,Other establishments,05/03/19,6286728,1739.6,VENDOR,KEYWORK CENTRAL LTD T/A STREET SUPPORT,144150
Portsmouth City Council,PCC,Children's and Education Services,Safeguarding Children and Young Peoples Services,Children's Services and Education,Third Party Payments,Other establishments,05/03/19,6286728,62.13,VENDOR,KEYWORK CENTRAL LTD T/A STREET SUPPORT,144150
Portsmouth City Council,PCC,Children's and Education Services,Safeguarding Children and Young Peoples Services,Children's Services and Education,Third Party Payments,Other establishments,05/03/19,6286728,3117.17,VENDOR,KEYWORK CENTRAL LTD T/A STREET SUPPORT,144150
Portsmouth City Council,PCC,Children's and Education Services,Asylum seekers,Children's Services and Education,Third Party Payments,Other establishments,05/03/19,6286728,-539.6,VENDOR,KEYWORK CENTRAL LTD T/A STREET SUPPORT,144150
Portsmouth City Council,PCC,Children's and Education Services,Asylum seekers,Children's Services and Education,Third Party Payments,Other establishments,05/03/19,6286728,-4943.29,VENDOR,KEYWORK CENTRAL LTD T/A STREET SUPPORT,144150
Portsmouth City Council,PCC,Children's and Education Services,Children Looked After,Children's Services and Education,Third Party Payments,Other establishments,25/03/19,6290419,4932.48,VENDOR,INTEGRATED SERVICES PROGRAMME,136360
Portsmouth City Council,PCC,Children's and Education Services,Children Looked After,Children's Services and Education,Third Party Payments,Other establishments,25/03/19,6290419,4932.48,VENDOR,INTEGRATED SERVICES PROGRAMME,136360
Portsmouth City Council,PCC,Children's and Education Services,Children Looked After,Children's Services and Education,Third Party Payments,Other establishments,25/03/19,6290419,4932.48,VENDOR,INTEGRATED SERVICES PROGRAMME,136360
Portsmouth City Council,PCC,Children's and Education Services,Children Looked After,Children's Services and Education,Third Party Payments,Other establishments,26/03/19,6290685,3360,VENDOR,ORANGE GROVE FOSTERCARE LIMITED,140168
Portsmouth City Council,PCC,Other,Suspense and Capital Schemes,Capital - Housing RA,Capital Charges,Capital Expenditure (WIP),04/03/19,6286610,652,VENDOR,M J H REMOVALS LTD,105441
Portsmouth City Council,PCC,Other,Suspense and Capital Schemes,Capital - Housing RA,Capital Charges,Capital Expenditure (WIP),19/03/19,6289021,474,VENDOR,M J H REMOVALS LTD,105441
Portsmouth City Council,PCC,Other,Suspense and Capital Schemes,Capital - Housing RA,Capital Charges,Capital Expenditure (WIP),19/03/19,6289021,482,VENDOR,M J H REMOVALS LTD,105441
Portsmouth City Council,PCC,Children's and Education Services,Children Looked After,Children's Services and Education,Third Party Payments,Other establishments,04/03/19,6286598,2495.19,VENDOR,HORIZON CARE AND EDUCATION GROUP LTD,138450
Portsmouth City Council,PCC,Other,Suspense and Capital Schemes,Capital - Housing RA,Capital Charges,Capital Expenditure (WIP),26/03/19,6290672,594,VENDOR,M J H REMOVALS LTD,105441
Portsmouth City Council,PCC,Other,Suspense and Capital Schemes,Capital - Housing RA,Capital Charges,Capital Expenditure (WIP),26/03/19,6290672,462,VENDOR,M J H REMOVALS LTD,105441
Portsmouth City Council,PCC,Children's and Education Services,Children Looked After,Children's Services and Education,Third Party Payments,Other establishments,04/03/19,6286598,2495.19,VENDOR,HORIZON CARE AND EDUCATION GROUP LTD,138450
Portsmouth City Council,PCC,Children's and Education Services,Other Education and Community Budget,Children's Services and Education,Third Party Payments,Private contractors,01/03/19,6286502,425,VENDOR,VEG POWER CIC,144808
Portsmouth City Council,PCC,Children's and Education Services,Other Education and Community Budget,Children's Services and Education,Third Party Payments,Private contractors,01/03/19,6286502,998.2,VENDOR,VEG POWER CIC,144808
Portsmouth City Council,PCC,Housing Revenue Account,Special Services,"Housing, Neighbourhood and Building Services",Third Party Payments,Private contractors,01/03/19,6286502,250,VENDOR,VEG POWER CIC,144808
Portsmouth City Council,PCC,Housing Revenue Account,Special Services,"Housing, Neighbourhood and Building Services",Third Party Payments,Private contractors,01/03/19,6286502,200,VENDOR,VEG POWER CIC,144808
Portsmouth City Council,PCC,Highways and Transport Services,"Transport Planning, Policy and Strategy",Regeneration,Third Party Payments,Private contractors,20/03/19,6289962,750,VENDOR,PEDAL POWER TRAINING,134659
Portsmouth City Council,PCC,Children's and Education Services,Asylum seekers,Children's Services and Education,Third Party Payments,Other establishments,19/03/19,6288996,2997.31,VENDOR,FAMILY FIRST FOSTERING,144272
Portsmouth City Council,PCC,Other,Suspense and Capital Schemes,Capital - PRED (Excl. Port & Solent LEP),Capital Charges,Capital Expenditure (WIP),15/03/19,6288787,6120,VENDOR,INTEGRATED & VERTICALLY ALIGNED SOLUTIONS LTD,144503
Portsmouth City Council,PCC,Adult Social Care,Social Care Activities,Adult Services,Third Party Payments,Other establishments,20/03/19,6289974,1110.8,VENDOR,SAFEGUARDING GP,137636
Portsmouth City Council,PCC,Other,Suspense and Capital Schemes,Capital - Housing GF,Capital Charges,REFCUS,06/03/19,6287355,4537,VENDOR,WICOR BUILDING SERVICES LIMITED,144144
Portsmouth City Council,PCC,Adult Social Care,Learning Disability Support  Adults (18 - 64),Adult Services,Third Party Payments,Other establishments,12/03/19,6287938,127.92,VENDOR,ROYAL MENCAP SOCIETY,102744
Portsmouth City Council,PCC,Adult Social Care,Learning Disability Support  Adults (18 - 64),Adult Services,Third Party Payments,Other establishments,12/03/19,6287938,319.8,VENDOR,ROYAL MENCAP SOCIETY,102744
Portsmouth City Council,PCC,Adult Social Care,Learning Disability Support  Adults (18 - 64),Adult Services,Third Party Payments,Other establishments,12/03/19,6287938,447.72,VENDOR,ROYAL MENCAP SOCIETY,102744
Portsmouth City Council,PCC,Adult Social Care,Learning Disability Support  Adults (18 - 64),Adult Services,Third Party Payments,Other establishments,12/03/19,6287938,191.88,VENDOR,ROYAL MENCAP SOCIETY,102744
Portsmouth City Council,PCC,Adult Social Care,Learning Disability Support  Adults (18 - 64),Adult Services,Third Party Payments,Other establishments,12/03/19,6287938,1343.16,VENDOR,ROYAL MENCAP SOCIETY,102744
Portsmouth City Council,PCC,Adult Social Care,Learning Disability Support  Adults (18 - 64),Adult Services,Third Party Payments,Other establishments,12/03/19,6287938,255.84,VENDOR,ROYAL MENCAP SOCIETY,102744
Portsmouth City Council,PCC,Adult Social Care,Learning Disability Support  Adults (18 - 64),Adult Services,Third Party Payments,Other establishments,12/03/19,6287938,255.84,VENDOR,ROYAL MENCAP SOCIETY,102744
Portsmouth City Council,PCC,Adult Social Care,Learning Disability Support  Adults (18 - 64),Adult Services,Third Party Payments,Other establishments,12/03/19,6287938,223.84,VENDOR,ROYAL MENCAP SOCIETY,102744
Portsmouth City Council,PCC,Adult Social Care,Learning Disability Support  Adults (18 - 64),Adult Services,Third Party Payments,Other establishments,12/03/19,6287938,511.72,VENDOR,ROYAL MENCAP SOCIETY,102744
Portsmouth City Council,PCC,Adult Social Care,Learning Disability Support  Adults (18 - 64),Adult Services,Third Party Payments,Other establishments,12/03/19,6287938,255.84,VENDOR,ROYAL MENCAP SOCIETY,102744
Portsmouth City Council,PCC,Adult Social Care,Learning Disability Support  Adults (18 - 64),Adult Services,Third Party Payments,Other establishments,12/03/19,6287938,383.76,VENDOR,ROYAL MENCAP SOCIETY,102744
Portsmouth City Council,PCC,Adult Social Care,Learning Disability Support  Adults (18 - 64),Adult Services,Third Party Payments,Other establishments,12/03/19,6287938,191.88,VENDOR,ROYAL MENCAP SOCIETY,102744
Portsmouth City Council,PCC,Adult Social Care,Learning Disability Support  Adults (18 - 64),Adult Services,Third Party Payments,Other establishments,12/03/19,6287938,191.88,VENDOR,ROYAL MENCAP SOCIETY,102744
Portsmouth City Council,PCC,Adult Social Care,Learning Disability Support  Adults (18 - 64),Adult Services,Third Party Payments,Other establishments,12/03/19,6287938,255.84,VENDOR,ROYAL MENCAP SOCIETY,102744
Portsmouth City Council,PCC,Adult Social Care,Learning Disability Support  Adults (18 - 64),Adult Services,Third Party Payments,Other establishments,12/03/19,6287938,959.4,VENDOR,ROYAL MENCAP SOCIETY,102744
Portsmouth City Council,PCC,Adult Social Care,Learning Disability Support  Adults (18 - 64),Adult Services,Third Party Payments,Other establishments,12/03/19,6287938,878.08,VENDOR,ROYAL MENCAP SOCIETY,102744
Portsmouth City Council,PCC,Adult Social Care,Learning Disability Support  Adults (18 - 64),Adult Services,Third Party Payments,Other establishments,12/03/19,6287938,273.2,VENDOR,ROYAL MENCAP SOCIETY,102744
Portsmouth City Council,PCC,Adult Social Care,Social Care Activities,Adult Services,Third Party Payments,Other establishments,12/03/19,6287938,9363.2,VENDOR,ROYAL MENCAP SOCIETY,102744
Portsmouth City Council,PCC,Adult Social Care,Social Care Activities,Adult Services,Third Party Payments,Other establishments,12/03/19,6287938,2779.4,VENDOR,ROYAL MENCAP SOCIETY,102744
Portsmouth City Council,PCC,Adult Social Care,Learning Disability Support  Adults (18 - 64),Adult Services,Third Party Payments,Other establishments,12/03/19,6287938,239.85,VENDOR,ROYAL MENCAP SOCIETY,102744
Portsmouth City Council,PCC,Children's and Education Services,Asylum seekers,Children's Services and Education,Third Party Payments,Other establishments,19/03/19,6288996,-3227.87,VENDOR,FAMILY FIRST FOSTERING,144272
Portsmouth City Council,PCC,Adult Social Care,Social Care Activities,Adult Services,Third Party Payments,Other establishments,01/03/19,6286459,1320,VENDOR,SAFEGUARDING GP,137636
Portsmouth City Council,PCC,Other,Suspense and Capital Schemes,Capital - Housing RA,Capital Charges,Capital Expenditure (WIP),15/03/19,6288677,185,VENDOR,A VAN PORTSMOUTH LIMITED,138694
Portsmouth City Council,PCC,Housing Revenue Account,Supervision and Management,"Housing, Neighbourhood and Building Services",Third Party Payments,Private contractors,15/03/19,6288677,220,VENDOR,A VAN PORTSMOUTH LIMITED,138694
Portsmouth City Council,PCC,Other,Suspense and Capital Schemes,Capital - Housing RA,Capital Charges,Capital Expenditure (WIP),07/03/19,6287361,460,VENDOR,A VAN PORTSMOUTH LIMITED,138694
Portsmouth City Council,PCC,Adult Social Care,Social Care Activities,Adult Services,Third Party Payments,Other establishments,20/03/19,6289971,1100,VENDOR,SAFEGUARDING GP,137636
Portsmouth City Council,PCC,Adult Social Care,Social Care Activities,Adult Services,Third Party Payments,Other establishments,20/03/19,6289971,1540,VENDOR,SAFEGUARDING GP,137636
Portsmouth City Council,PCC,Children's and Education Services,Other Education and Community Budget,Children's Services and Education,Transport-Related Expenditure,Car allowances,12/03/19,6287815,1005,VENDOR,CITY WIDE TAXIS,103408
Portsmouth City Council,PCC,Children's and Education Services,Other Education and Community Budget,Children's Services and Education,Transport-Related Expenditure,Car allowances,12/03/19,6287815,750,VENDOR,CITY WIDE TAXIS,103408
Portsmouth City Council,PCC,Children's and Education Services,Other Education and Community Budget,Children's Services and Education,Transport-Related Expenditure,Car allowances,12/03/19,6287815,665,VENDOR,CITY WIDE TAXIS,103408
Portsmouth City Council,PCC,Children's and Education Services,Other Education and Community Budget,Children's Services and Education,Transport-Related Expenditure,Car allowances,12/03/19,6287815,910,VENDOR,CITY WIDE TAXIS,103408
Portsmouth City Council,PCC,Children's and Education Services,Other Education and Community Budget,Children's Services and Education,Transport-Related Expenditure,Car allowances,12/03/19,6287815,100,VENDOR,CITY WIDE TAXIS,103408
Portsmouth City Council,PCC,Children's and Education Services,Other Education and Community Budget,Children's Services and Education,Transport-Related Expenditure,Car allowances,12/03/19,6287815,868,VENDOR,CITY WIDE TAXIS,103408
Portsmouth City Council,PCC,Children's and Education Services,Other Education and Community Budget,Children's Services and Education,Transport-Related Expenditure,Car allowances,12/03/19,6287815,1950,VENDOR,CITY WIDE TAXIS,103408
Portsmouth City Council,PCC,Adult Social Care,Social Care Activities,Adult Services,Third Party Payments,Other establishments,13/03/19,6288024,25,VENDOR,CITY WIDE TAXIS,103408
Portsmouth City Council,PCC,Environmental and Regulatory Services,Regulatory Services,Culture & City Development,Third Party Payments,Private contractors,15/03/19,321559,600,SOLETRADER,Classified as 'personal data' (under the Data Protection Act 1998),129646
Portsmouth City Council,PCC,Environmental and Regulatory Services,Regulatory Services,Culture & City Development,Third Party Payments,Private contractors,15/03/19,321559,2452.32,SOLETRADER,Classified as 'personal data' (under the Data Protection Act 1998),129646
Portsmouth City Council,PCC,Cultural and Related Services,Library Service,Culture & City Development,Supplies and Services,"Equipment, furniture and materials",29/03/19,6291664,780.52,VENDOR,LONDIS NEWSMARKET,141197
Portsmouth City Council,PCC,Children's and Education Services,Asylum seekers,Children's Services and Education,Third Party Payments,Other establishments,29/03/19,6291604,3227.72,VENDOR,FAMILY FIRST FOSTERING,144272
Portsmouth City Council,PCC,Other,Suspense and Capital Schemes,Capital - Culture Leisure & Sport,Capital Charges,Capital Expenditure (WIP),15/03/19,6288770,900,VENDOR,GEOTEC SURVEYS LTD,114142
Portsmouth City Council,PCC,Planning Services,Business support,Regeneration,Third Party Payments,Private contractors,06/03/19,6286801,3437.5,VENDOR,ACK TOURISM LTD,144786
Portsmouth City Council,PCC,Planning Services,Business support,Regeneration,Premises-Related Expenditure,"Repairs, alterations and maintenance of buildings",01/03/19,6286419,1000,SOLETRADER,M J RITCHIE DECOR AND GUTTERING SERVICES,126505
Portsmouth City Council,PCC,Planning Services,Business support,Regeneration,Premises-Related Expenditure,"Repairs, alterations and maintenance of buildings",01/03/19,6286419,249,SOLETRADER,M J RITCHIE DECOR AND GUTTERING SERVICES,126505
Portsmouth City Council,PCC,Children's and Education Services,Children Looked After,Children's Services and Education,Supplies and Services,Services,01/03/19,6286401,128,VENDOR,HOME SCHOOL TUTORING,140194
Portsmouth City Council,PCC,Children's and Education Services,Children Looked After,Children's Services and Education,Supplies and Services,Services,29/03/19,6291633,96,VENDOR,HOME SCHOOL TUTORING,140194
Portsmouth City Council,PCC,Children's and Education Services,Asylum seekers,Children's Services and Education,Third Party Payments,Other establishments,29/03/19,6291604,3573.54,VENDOR,FAMILY FIRST FOSTERING,144272
Portsmouth City Council,PCC,Highways and Transport Services,"Airports, Harbours and Toll Facilities",Portsmouth International Port,Employees,Direct employee expenses,28/03/19,6291435,3980,VENDOR,PAV I.T. SERVICES PLC,111059
Portsmouth City Council,PCC,Children's and Education Services,Children Looked After,Children's Services and Education,Supplies and Services,Services,01/03/19,6286401,128,VENDOR,HOME SCHOOL TUTORING,140194
Portsmouth City Council,PCC,Children's and Education Services,Children Looked After,Children's Services and Education,Supplies and Services,Services,29/03/19,6291633,96,VENDOR,HOME SCHOOL TUTORING,140194
Portsmouth City Council,PCC,Other,Suspense and Capital Schemes,Capital - Housing GF,Capital Charges,REFCUS,20/03/19,6289945,8169,COMPANY,L DEVINE AND CO LIMITED,111002
Portsmouth City Council,PCC,Children's and Education Services,Children Looked After,Children's Services and Education,Supplies and Services,Services,01/03/19,6286401,256,VENDOR,HOME SCHOOL TUTORING,140194
Portsmouth City Council,PCC,Children's and Education Services,Children Looked After,Children's Services and Education,Supplies and Services,Services,29/03/19,6291633,128,VENDOR,HOME SCHOOL TUTORING,140194
Portsmouth City Council,PCC,Children's and Education Services,Children Looked After,Children's Services and Education,Supplies and Services,Services,01/03/19,6286401,128,VENDOR,HOME SCHOOL TUTORING,140194
Portsmouth City Council,PCC,Children's and Education Services,Children Looked After,Children's Services and Education,Supplies and Services,Services,29/03/19,6291633,96,VENDOR,HOME SCHOOL TUTORING,140194
Portsmouth City Council,PCC,Children's and Education Services,Children Looked After,Children's Services and Education,Supplies and Services,Services,01/03/19,6286401,960,VENDOR,HOME SCHOOL TUTORING,140194
Portsmouth City Council,PCC,Children's and Education Services,Children Looked After,Children's Services and Education,Supplies and Services,Services,29/03/19,6291633,1088,VENDOR,HOME SCHOOL TUTORING,140194
Portsmouth City Council,PCC,Children's and Education Services,Children Looked After,Children's Services and Education,Supplies and Services,Services,01/03/19,6286401,192,VENDOR,HOME SCHOOL TUTORING,140194
Portsmouth City Council,PCC,Children's and Education Services,Children Looked After,Children's Services and Education,Supplies and Services,Services,01/03/19,6286401,128,VENDOR,HOME SCHOOL TUTORING,140194
Portsmouth City Council,PCC,Children's and Education Services,Children Looked After,Children's Services and Education,Supplies and Services,Services,29/03/19,6291633,96,VENDOR,HOME SCHOOL TUTORING,140194
Portsmouth City Council,PCC,Children's and Education Services,Children Looked After,Children's Services and Education,Supplies and Services,Services,01/03/19,6286401,64,VENDOR,HOME SCHOOL TUTORING,140194
Portsmouth City Council,PCC,Cultural and Related Services,Allocation of Management & Admin,Culture & City Development,Third Party Payments,Private contractors,28/03/19,6291369,1470,VENDOR,Classified as 'personal data' (under the Data Protection Act 1998),145027
Portsmouth City Council,PCC,Adult Social Care,Social Care Activities,Adult Services,Third Party Payments,Other establishments,25/03/19,6290474,186.31,VENDOR,SAFEGUARDING GP,137636
Portsmouth City Council,PCC,Adult Social Care,Social Care Activities,Adult Services,Third Party Payments,Other establishments,25/03/19,6290474,186.31,VENDOR,SAFEGUARDING GP,137636
Portsmouth City Council,PCC,Adult Social Care,Social Care Activities,Adult Services,Third Party Payments,Other establishments,25/03/19,6290474,186.31,VENDOR,SAFEGUARDING GP,137636
Portsmouth City Council,PCC,Adult Social Care,Social Care Activities,Adult Services,Third Party Payments,Other establishments,25/03/19,6290474,186.31,VENDOR,SAFEGUARDING GP,137636
Portsmouth City Council,PCC,Adult Social Care,Social Care Activities,Adult Services,Third Party Payments,Other establishments,25/03/19,6290474,186.31,VENDOR,SAFEGUARDING GP,137636
Portsmouth City Council,PCC,Adult Social Care,Social Care Activities,Adult Services,Third Party Payments,Other establishments,25/03/19,6290474,223.29,VENDOR,SAFEGUARDING GP,137636
Portsmouth City Council,PCC,Children's and Education Services,Children Looked After,Children's Services and Education,Supplies and Services,Services,01/03/19,6286401,144,VENDOR,HOME SCHOOL TUTORING,140194
Portsmouth City Council,PCC,Support Service / Transparency Costs Unallocated,AMS,Regeneration,Employees,Direct employee expenses,08/03/19,6287605,799,VENDOR,SPOCE PROJECT MANAGEMENT LIMITED,128615
Portsmouth City Council,PCC,Cultural and Related Services,Open Spaces,Culture & City Development,Premises-Related Expenditure,Water Services,15/03/19,6288710,114.72,VENDOR,CASTLE WATER LIMITED,142798
Portsmouth City Council,PCC,Cultural and Related Services,Open Spaces,Culture & City Development,Premises-Related Expenditure,Water Services,15/03/19,6288710,243.14,VENDOR,CASTLE WATER LIMITED,142798
Portsmouth City Council,PCC,Highways and Transport Services,"Transport Planning, Policy and Strategy",Regeneration,Premises-Related Expenditure,Water Services,15/03/19,6288710,7.01,VENDOR,CASTLE WATER LIMITED,142798
Portsmouth City Council,PCC,Children's and Education Services,Children Looked After,Children's Services and Education,Supplies and Services,Services,29/03/19,6291633,64,VENDOR,HOME SCHOOL TUTORING,140194
Portsmouth City Council,PCC,Cultural and Related Services,Open Spaces,Culture & City Development,Premises-Related Expenditure,Water Services,15/03/19,6288710,470.2,VENDOR,CASTLE WATER LIMITED,142798
Portsmouth City Council,PCC,Cultural and Related Services,Open Spaces,Culture & City Development,Premises-Related Expenditure,Water Services,15/03/19,6288710,7.01,VENDOR,CASTLE WATER LIMITED,142798
Portsmouth City Council,PCC,Cultural and Related Services,Open Spaces,Culture & City Development,Premises-Related Expenditure,Water Services,15/03/19,6288710,172.25,VENDOR,CASTLE WATER LIMITED,142798
Portsmouth City Council,PCC,Cultural and Related Services,Open Spaces,Culture & City Development,Premises-Related Expenditure,Water Services,15/03/19,6288710,18.47,VENDOR,CASTLE WATER LIMITED,142798
Portsmouth City Council,PCC,Cultural and Related Services,Open Spaces,Culture & City Development,Premises-Related Expenditure,Water Services,15/03/19,6288710,12.54,VENDOR,CASTLE WATER LIMITED,142798
Portsmouth City Council,PCC,Cultural and Related Services,Open Spaces,Culture & City Development,Premises-Related Expenditure,Water Services,15/03/19,6288710,13.23,VENDOR,CASTLE WATER LIMITED,142798
Portsmouth City Council,PCC,Cultural and Related Services,Tourism,Culture & City Development,Third Party Payments,Private contractors,26/03/19,6290667,470.61,VENDOR,LIFESTYLE MEDIA GROUP LIMITED,131557
Portsmouth City Council,PCC,Housing Revenue Account,Supervision and Management,"Housing, Neighbourhood and Building Services",Premises-Related Expenditure,Water Services,15/03/19,6288710,249.35,VENDOR,CASTLE WATER LIMITED,142798
Portsmouth City Council,PCC,Cultural and Related Services,Open Spaces,Culture & City Development,Premises-Related Expenditure,Water Services,15/03/19,6288710,17.41,VENDOR,CASTLE WATER LIMITED,142798
Portsmouth City Council,PCC,Cultural and Related Services,Open Spaces,Culture & City Development,Premises-Related Expenditure,Water Services,15/03/19,6288710,124.01,VENDOR,CASTLE WATER LIMITED,142798
Portsmouth City Council,PCC,Cultural and Related Services,Tourism,Culture & City Development,Third Party Payments,Private contractors,28/03/19,6291407,677.05,VENDOR,LIFESTYLE MEDIA GROUP LIMITED,131557
Portsmouth City Council,PCC,Costs below Net Cost of Services,Trading,"Housing, Neighbourhood and Building Services",Premises-Related Expenditure,Water Services,15/03/19,6288710,1478.07,VENDOR,CASTLE WATER LIMITED,142798
Portsmouth City Council,PCC,Cultural and Related Services,Recreation and Sport,Culture & City Development,Premises-Related Expenditure,"Repairs, alterations and maintenance of buildings",26/03/19,6290624,22640.8,VENDOR,DETECT FIRE AND SECURITY LTD,126216
Portsmouth City Council,PCC,Support Service / Transparency Costs Unallocated,AMS,"Housing, Neighbourhood and Building Services",Third Party Payments,Private contractors,08/03/19,6287519,996,VENDOR,DETECT FIRE AND SECURITY LTD,126216
Portsmouth City Council,PCC,Cultural and Related Services,Open Spaces,Culture & City Development,Premises-Related Expenditure,Water Services,15/03/19,6288710,11.21,VENDOR,CASTLE WATER LIMITED,142798
Portsmouth City Council,PCC,Cultural and Related Services,Open Spaces,Culture & City Development,Premises-Related Expenditure,Water Services,15/03/19,6288710,7.01,VENDOR,CASTLE WATER LIMITED,142798
Portsmouth City Council,PCC,Other,Suspense and Capital Schemes,Capital - Culture Leisure & Sport,Capital Charges,Capital Expenditure (WIP),22/03/19,6290246,10000,VENDOR,PARKLETICS,144312
Portsmouth City Council,PCC,Cultural and Related Services,Open Spaces,Culture & City Development,Premises-Related Expenditure,Water Services,15/03/19,6288710,7.73,VENDOR,CASTLE WATER LIMITED,142798
Portsmouth City Council,PCC,Planning Services,Business support,Regeneration,Premises-Related Expenditure,Water Services,15/03/19,6288710,8.05,VENDOR,CASTLE WATER LIMITED,142798
Portsmouth City Council,PCC,Highways and Transport Services,"Airports, Harbours and Toll Facilities",Portsmouth International Port,Supplies and Services,Services,28/03/19,6291403,2547,VENDOR,KIRKDALE PARTNERS LTD,144539
Portsmouth City Council,PCC,Cultural and Related Services,Open Spaces,Culture & City Development,Premises-Related Expenditure,Water Services,15/03/19,6288710,6.92,VENDOR,CASTLE WATER LIMITED,142798
Portsmouth City Council,PCC,Cultural and Related Services,Open Spaces,Culture & City Development,Premises-Related Expenditure,Water Services,15/03/19,6288710,7.39,VENDOR,CASTLE WATER LIMITED,142798
Portsmouth City Council,PCC,Housing Revenue Account,"Rents, Rates, Taxes and Other Charges","Housing, Neighbourhood and Building Services",Premises-Related Expenditure,Water Services,15/03/19,6288710,8.42,VENDOR,CASTLE WATER LIMITED,142798
Portsmouth City Council,PCC,Housing Services,Homelessness,"Housing, Neighbourhood and Building Services",Third Party Payments,Private contractors,12/03/19,6287766,465.5,VENDOR,Classified as 'personal data' (under the Data Protection Act 1998),141332
Portsmouth City Council,PCC,Housing Services,Homelessness,"Housing, Neighbourhood and Building Services",Third Party Payments,Private contractors,12/03/19,6287766,465.5,VENDOR,Classified as 'personal data' (under the Data Protection Act 1998),141332
Portsmouth City Council,PCC,Housing Revenue Account,Special Services,"Housing, Neighbourhood and Building Services",Employees,Direct employee expenses,27/03/19,6291247,3553.76,VENDOR,SEVACARE (UK) LTD,136163
Portsmouth City Council,PCC,Adult Social Care,Physical Support Older People (85+),Adult Services,Third Party Payments,Other establishments,25/03/19,6290490,801.64,VENDOR,SEVACARE (UK) LTD,136163
Portsmouth City Council,PCC,Adult Social Care,Physical Support Older People (85+),Adult Services,Third Party Payments,Other establishments,25/03/19,6290490,1603.28,VENDOR,SEVACARE (UK) LTD,136163
Portsmouth City Council,PCC,Adult Social Care,Information and Early Intervention,Adult Services,Third Party Payments,Other establishments,22/03/19,6290140,20889,VENDOR,APETITO LTD,100127
Portsmouth City Council,PCC,Adult Social Care,Information and Early Intervention,Adult Services,Third Party Payments,Other establishments,22/03/19,6290140,1638,VENDOR,APETITO LTD,100127
Portsmouth City Council,PCC,Adult Social Care,Information and Early Intervention,Adult Services,Income,Customer and client receipts,22/03/19,6290140,-20889,VENDOR,APETITO LTD,100127
Portsmouth City Council,PCC,Adult Social Care,Information and Early Intervention,Adult Services,Income,Customer and client receipts,22/03/19,6290140,-1638,VENDOR,APETITO LTD,100127
Portsmouth City Council,PCC,Adult Social Care,Physical Support Older People (85+),Adult Services,Third Party Payments,Other establishments,25/03/19,6290490,1946.84,VENDOR,SEVACARE (UK) LTD,136163
Portsmouth City Council,PCC,Adult Social Care,Physical Support Older People (85+),Adult Services,Third Party Payments,Other establishments,25/03/19,6290490,220.86,VENDOR,SEVACARE (UK) LTD,136163
Portsmouth City Council,PCC,Adult Social Care,Social Support - Support for Carer,Adult Services,Third Party Payments,Other establishments,25/03/19,6290490,126.72,VENDOR,SEVACARE (UK) LTD,136163
Portsmouth City Council,PCC,Adult Social Care,Physical Support Older People (85+),Adult Services,Third Party Payments,Other establishments,25/03/19,6290490,458.08,VENDOR,SEVACARE (UK) LTD,136163
Portsmouth City Council,PCC,Adult Social Care,Physical Support Older People (85+),Adult Services,Third Party Payments,Other establishments,25/03/19,6290490,916.16,VENDOR,SEVACARE (UK) LTD,136163
Portsmouth City Council,PCC,Adult Social Care,Social Care Activities,Adult Services,Third Party Payments,Other establishments,25/03/19,6290490,269.94,VENDOR,SEVACARE (UK) LTD,136163
Portsmouth City Council,PCC,Adult Social Care,Physical Support Older People (85+),Adult Services,Third Party Payments,Other establishments,25/03/19,6290490,229.04,VENDOR,SEVACARE (UK) LTD,136163
Portsmouth City Council,PCC,Adult Social Care,Physical Support Older People (85+),Adult Services,Third Party Payments,Other establishments,25/03/19,6290490,1603.28,VENDOR,SEVACARE (UK) LTD,136163
Portsmouth City Council,PCC,Adult Social Care,Physical Support Older People (85+),Adult Services,Third Party Payments,Other establishments,25/03/19,6290490,687.12,VENDOR,SEVACARE (UK) LTD,136163
Portsmouth City Council,PCC,Adult Social Care,Physical Support Older People (85+),Adult Services,Third Party Payments,Other establishments,25/03/19,6290490,294.48,VENDOR,SEVACARE (UK) LTD,136163
Portsmouth City Council,PCC,Adult Social Care,Physical Support Older People (85+),Adult Services,Third Party Payments,Other establishments,25/03/19,6290490,2519.44,VENDOR,SEVACARE (UK) LTD,136163
Portsmouth City Council,PCC,Adult Social Care,Physical Support Older People (85+),Adult Services,Third Party Payments,Other establishments,25/03/19,6290490,331.29,VENDOR,SEVACARE (UK) LTD,136163
Portsmouth City Council,PCC,Adult Social Care,Physical Support Older People (85+),Adult Services,Third Party Payments,Other establishments,25/03/19,6290490,458.08,VENDOR,SEVACARE (UK) LTD,136163
Portsmouth City Council,PCC,Adult Social Care,Physical Support Adults (18 - 64),Adult Services,Third Party Payments,Other establishments,25/03/19,6290490,1603.28,VENDOR,SEVACARE (UK) LTD,136163
Portsmouth City Council,PCC,Adult Social Care,Physical Support Older People (85+),Adult Services,Third Party Payments,Other establishments,25/03/19,6290490,449.9,VENDOR,SEVACARE (UK) LTD,136163
Portsmouth City Council,PCC,Adult Social Care,Physical Support Older People (85+),Adult Services,Third Party Payments,Other establishments,25/03/19,6290490,155.42,VENDOR,SEVACARE (UK) LTD,136163
Portsmouth City Council,PCC,Adult Social Care,Information and Early Intervention,Adult Services,Third Party Payments,Other establishments,29/03/19,6291501,18969.5,VENDOR,APETITO LTD,100127
Portsmouth City Council,PCC,Adult Social Care,Information and Early Intervention,Adult Services,Third Party Payments,Other establishments,29/03/19,6291501,1296.75,VENDOR,APETITO LTD,100127
Portsmouth City Council,PCC,Adult Social Care,Information and Early Intervention,Adult Services,Income,Customer and client receipts,29/03/19,6291501,-18969.5,VENDOR,APETITO LTD,100127
Portsmouth City Council,PCC,Adult Social Care,Information and Early Intervention,Adult Services,Income,Customer and client receipts,29/03/19,6291501,-1296.75,VENDOR,APETITO LTD,100127
Portsmouth City Council,PCC,Adult Social Care,Physical Support Older People (85+),Adult Services,Third Party Payments,Other establishments,25/03/19,6290490,229.04,VENDOR,SEVACARE (UK) LTD,136163
Portsmouth City Council,PCC,Adult Social Care,Physical Support Older People (85+),Adult Services,Third Party Payments,Other establishments,25/03/19,6290490,687.12,VENDOR,SEVACARE (UK) LTD,136163
Portsmouth City Council,PCC,Adult Social Care,Physical Support Older People (85+),Adult Services,Third Party Payments,Other establishments,25/03/19,6290490,482.62,VENDOR,SEVACARE (UK) LTD,136163
Portsmouth City Council,PCC,Adult Social Care,Physical Support Older People (85+),Adult Services,Third Party Payments,Other establishments,25/03/19,6290490,179.96,VENDOR,SEVACARE (UK) LTD,136163
Portsmouth City Council,PCC,Adult Social Care,Physical Support Older People (85+),Adult Services,Third Party Payments,Other establishments,25/03/19,6290490,278.12,VENDOR,SEVACARE (UK) LTD,136163
Portsmouth City Council,PCC,Adult Social Care,Physical Support Older People (85+),Adult Services,Third Party Payments,Other establishments,25/03/19,6290490,621.68,VENDOR,SEVACARE (UK) LTD,136163
Portsmouth City Council,PCC,Adult Social Care,Physical Support Older People (85+),Adult Services,Third Party Payments,Other establishments,25/03/19,6290490,98.16,VENDOR,SEVACARE (UK) LTD,136163
Portsmouth City Council,PCC,Adult Social Care,Physical Support Older People (85+),Adult Services,Third Party Payments,Other establishments,25/03/19,6290490,490.8,VENDOR,SEVACARE (UK) LTD,136163
Portsmouth City Council,PCC,Adult Social Care,Physical Support Older People (85+),Adult Services,Third Party Payments,Other establishments,25/03/19,6290490,687.12,VENDOR,SEVACARE (UK) LTD,136163
Portsmouth City Council,PCC,Adult Social Care,Physical Support Adults (18 - 64),Adult Services,Third Party Payments,Other establishments,25/03/19,6290490,89.98,VENDOR,SEVACARE (UK) LTD,136163
Portsmouth City Council,PCC,Adult Social Care,Physical Support Older People (85+),Adult Services,Third Party Payments,Other establishments,25/03/19,6290490,261.76,VENDOR,SEVACARE (UK) LTD,136163
Portsmouth City Council,PCC,Adult Social Care,Physical Support Older People (85+),Adult Services,Third Party Payments,Other establishments,25/03/19,6290490,1832.32,VENDOR,SEVACARE (UK) LTD,136163
Portsmouth City Council,PCC,Adult Social Care,Physical Support Adults (18 - 64),Adult Services,Third Party Payments,Other establishments,25/03/19,6290490,539.88,VENDOR,SEVACARE (UK) LTD,136163
Portsmouth City Council,PCC,Adult Social Care,Physical Support Older People (85+),Adult Services,Third Party Payments,Other establishments,25/03/19,6290490,458.08,VENDOR,SEVACARE (UK) LTD,136163
Portsmouth City Council,PCC,Adult Social Care,Physical Support Older People (85+),Adult Services,Third Party Payments,Other establishments,25/03/19,6290490,1799.6,VENDOR,SEVACARE (UK) LTD,136163
Portsmouth City Council,PCC,Adult Social Care,Physical Support Older People (85+),Adult Services,Third Party Payments,Other establishments,25/03/19,6290490,147.24,VENDOR,SEVACARE (UK) LTD,136163
Portsmouth City Council,PCC,Adult Social Care,Physical Support Older People (85+),Adult Services,Third Party Payments,Other establishments,25/03/19,6290490,261.76,VENDOR,SEVACARE (UK) LTD,136163
Portsmouth City Council,PCC,Adult Social Care,Physical Support Older People (85+),Adult Services,Third Party Payments,Other establishments,25/03/19,6290490,458.08,VENDOR,SEVACARE (UK) LTD,136163
Portsmouth City Council,PCC,Adult Social Care,Physical Support Older People (85+),Adult Services,Third Party Payments,Other establishments,25/03/19,6290490,1644.18,VENDOR,SEVACARE (UK) LTD,136163
Portsmouth City Council,PCC,Adult Social Care,Physical Support Older People (85+),Adult Services,Third Party Payments,Other establishments,25/03/19,6290490,229.04,VENDOR,SEVACARE (UK) LTD,136163
Portsmouth City Council,PCC,Adult Social Care,Physical Support Adults (18 - 64),Adult Services,Third Party Payments,Other establishments,25/03/19,6290490,458.08,VENDOR,SEVACARE (UK) LTD,136163
Portsmouth City Council,PCC,Adult Social Care,Physical Support Older People (85+),Adult Services,Third Party Payments,Other establishments,25/03/19,6290490,699.39,VENDOR,SEVACARE (UK) LTD,136163
Portsmouth City Council,PCC,Adult Social Care,Physical Support Older People (85+),Adult Services,Third Party Payments,Other establishments,25/03/19,6290490,572.6,VENDOR,SEVACARE (UK) LTD,136163
Portsmouth City Council,PCC,Adult Social Care,Physical Support Older People (85+),Adult Services,Third Party Payments,Other establishments,25/03/19,6290490,458.08,VENDOR,SEVACARE (UK) LTD,136163
Portsmouth City Council,PCC,Adult Social Care,Physical Support Older People (85+),Adult Services,Third Party Payments,Other establishments,25/03/19,6290490,458.08,VENDOR,SEVACARE (UK) LTD,136163
Portsmouth City Council,PCC,Adult Social Care,Physical Support Adults (18 - 64),Adult Services,Third Party Payments,Other establishments,25/03/19,6290490,912.07,VENDOR,SEVACARE (UK) LTD,136163
Portsmouth City Council,PCC,Adult Social Care,Physical Support Older People (85+),Adult Services,Third Party Payments,Other establishments,25/03/19,6290490,261.76,VENDOR,SEVACARE (UK) LTD,136163
Portsmouth City Council,PCC,Adult Social Care,Physical Support Older People (85+),Adult Services,Third Party Payments,Other establishments,25/03/19,6290490,572.6,VENDOR,SEVACARE (UK) LTD,136163
Portsmouth City Council,PCC,Adult Social Care,Physical Support Older People (85+),Adult Services,Third Party Payments,Other establishments,25/03/19,6290490,98.16,VENDOR,SEVACARE (UK) LTD,136163
Portsmouth City Council,PCC,Adult Social Care,Physical Support Older People (85+),Adult Services,Third Party Payments,Other establishments,25/03/19,6290490,957.06,VENDOR,SEVACARE (UK) LTD,136163
Portsmouth City Council,PCC,Adult Social Care,Physical Support Older People (85+),Adult Services,Third Party Payments,Other establishments,25/03/19,6290490,130.88,VENDOR,SEVACARE (UK) LTD,136163
Portsmouth City Council,PCC,Adult Social Care,Physical Support Older People (85+),Adult Services,Third Party Payments,Other establishments,25/03/19,6290490,114.52,VENDOR,SEVACARE (UK) LTD,136163
Portsmouth City Council,PCC,Adult Social Care,Physical Support Older People (85+),Adult Services,Third Party Payments,Other establishments,25/03/19,6290490,28.63,VENDOR,SEVACARE (UK) LTD,136163
Portsmouth City Council,PCC,Adult Social Care,Physical Support Older People (85+),Adult Services,Third Party Payments,Other establishments,25/03/19,6290490,12.27,VENDOR,SEVACARE (UK) LTD,136163
Portsmouth City Council,PCC,Adult Social Care,Physical Support Older People (85+),Adult Services,Third Party Payments,Other establishments,25/03/19,6290490,12.27,VENDOR,SEVACARE (UK) LTD,136163
Portsmouth City Council,PCC,Adult Social Care,Physical Support Older People (85+),Adult Services,Third Party Payments,Other establishments,25/03/19,6290490,1374.24,VENDOR,SEVACARE (UK) LTD,136163
Portsmouth City Council,PCC,Adult Social Care,Social Care Activities,Adult Services,Third Party Payments,Other establishments,25/03/19,6290490,1112.48,VENDOR,SEVACARE (UK) LTD,136163
Portsmouth City Council,PCC,Adult Social Care,Physical Support Older People (85+),Adult Services,Third Party Payments,Other establishments,25/03/19,6290490,343.56,VENDOR,SEVACARE (UK) LTD,136163
Portsmouth City Council,PCC,Adult Social Care,Physical Support Older People (85+),Adult Services,Third Party Payments,Other establishments,25/03/19,6290490,2519.44,VENDOR,SEVACARE (UK) LTD,136163
Portsmouth City Council,PCC,Adult Social Care,Physical Support Older People (85+),Adult Services,Third Party Payments,Other establishments,25/03/19,6290490,98.16,VENDOR,SEVACARE (UK) LTD,136163
Portsmouth City Council,PCC,Adult Social Care,Physical Support Adults (18 - 64),Adult Services,Third Party Payments,Other establishments,25/03/19,6290490,269.94,VENDOR,SEVACARE (UK) LTD,136163
Portsmouth City Council,PCC,Adult Social Care,Physical Support Older People (85+),Adult Services,Third Party Payments,Other establishments,25/03/19,6290490,654.4,VENDOR,SEVACARE (UK) LTD,136163
Portsmouth City Council,PCC,Adult Social Care,Physical Support Older People (85+),Adult Services,Third Party Payments,Other establishments,25/03/19,6290490,98.16,VENDOR,SEVACARE (UK) LTD,136163
Portsmouth City Council,PCC,Adult Social Care,Physical Support Adults (18 - 64),Adult Services,Third Party Payments,Other establishments,25/03/19,6290490,548.06,VENDOR,SEVACARE (UK) LTD,136163
Portsmouth City Council,PCC,Adult Social Care,Physical Support Older People (85+),Adult Services,Third Party Payments,Other establishments,25/03/19,6290490,118.61,VENDOR,SEVACARE (UK) LTD,136163
Portsmouth City Council,PCC,Adult Social Care,Physical Support Older People (85+),Adult Services,Third Party Payments,Other establishments,25/03/19,6290490,384.46,VENDOR,SEVACARE (UK) LTD,136163
Portsmouth City Council,PCC,Adult Social Care,Physical Support Older People (85+),Adult Services,Third Party Payments,Other establishments,25/03/19,6290490,179.96,VENDOR,SEVACARE (UK) LTD,136163
Portsmouth City Council,PCC,Adult Social Care,Physical Support Older People (85+),Adult Services,Third Party Payments,Other establishments,25/03/19,6290490,212.68,VENDOR,SEVACARE (UK) LTD,136163
Portsmouth City Council,PCC,Adult Social Care,Physical Support Older People (85+),Adult Services,Third Party Payments,Other establishments,25/03/19,6290490,466.26,VENDOR,SEVACARE (UK) LTD,136163
Portsmouth City Council,PCC,Adult Social Care,Physical Support Older People (85+),Adult Services,Third Party Payments,Other establishments,25/03/19,6290490,719.84,VENDOR,SEVACARE (UK) LTD,136163
Portsmouth City Council,PCC,Children's and Education Services,Management and Support Services,Children's Services and Education,Third Party Payments,Other establishments,25/03/19,6290527,4601.25,VENDOR,THREE COUNTIES EDUCATION TRUST,139240
Portsmouth City Council,PCC,Children's and Education Services,Management and Support Services,Children's Services and Education,Third Party Payments,Other establishments,25/03/19,6290527,9202.5,VENDOR,THREE COUNTIES EDUCATION TRUST,139240
Portsmouth City Council,PCC,Adult Social Care,Physical Support Older People (85+),Adult Services,Third Party Payments,Other establishments,25/03/19,6290490,1104.3,VENDOR,SEVACARE (UK) LTD,136163
Portsmouth City Council,PCC,Adult Social Care,Physical Support Older People (85+),Adult Services,Third Party Payments,Other establishments,25/03/19,6290490,130.88,VENDOR,SEVACARE (UK) LTD,136163
Portsmouth City Council,PCC,Adult Social Care,Physical Support Older People (85+),Adult Services,Third Party Payments,Other establishments,25/03/19,6290490,458.08,VENDOR,SEVACARE (UK) LTD,136163
Portsmouth City Council,PCC,Adult Social Care,Physical Support Older People (85+),Adult Services,Third Party Payments,Other establishments,25/03/19,6290490,1341.52,VENDOR,SEVACARE (UK) LTD,136163
Portsmouth City Council,PCC,Adult Social Care,Physical Support Older People (85+),Adult Services,Third Party Payments,Other establishments,25/03/19,6290490,711.66,VENDOR,SEVACARE (UK) LTD,136163
Portsmouth City Council,PCC,Adult Social Care,Physical Support Older People (85+),Adult Services,Third Party Payments,Other establishments,25/03/19,6290490,94.07,VENDOR,SEVACARE (UK) LTD,136163
Portsmouth City Council,PCC,Adult Social Care,Physical Support Older People (85+),Adult Services,Third Party Payments,Other establishments,25/03/19,6290490,687.12,VENDOR,SEVACARE (UK) LTD,136163
Portsmouth City Council,PCC,Adult Social Care,Physical Support Adults (18 - 64),Adult Services,Third Party Payments,Other establishments,25/03/19,6290490,339.47,VENDOR,SEVACARE (UK) LTD,136163
Portsmouth City Council,PCC,Adult Social Care,Physical Support Adults (18 - 64),Adult Services,Third Party Payments,Other establishments,25/03/19,6290490,49.08,VENDOR,SEVACARE (UK) LTD,136163
Portsmouth City Council,PCC,Adult Social Care,Physical Support Older People (85+),Adult Services,Third Party Payments,Other establishments,25/03/19,6290490,1145.2,VENDOR,SEVACARE (UK) LTD,136163
Portsmouth City Council,PCC,Adult Social Care,Physical Support Older People (85+),Adult Services,Third Party Payments,Other establishments,25/03/19,6290490,531.7,VENDOR,SEVACARE (UK) LTD,136163
Portsmouth City Council,PCC,Adult Social Care,Physical Support Older People (85+),Adult Services,Third Party Payments,Other establishments,25/03/19,6290490,49.08,VENDOR,SEVACARE (UK) LTD,136163
Portsmouth City Council,PCC,Adult Social Care,Social Care Activities,Adult Services,Third Party Payments,Other establishments,25/03/19,6290490,539.88,VENDOR,SEVACARE (UK) LTD,136163
Portsmouth City Council,PCC,Adult Social Care,Social Support - Support for Carer,Adult Services,Third Party Payments,Other establishments,25/03/19,6290490,84.48,VENDOR,SEVACARE (UK) LTD,136163
Portsmouth City Council,PCC,Adult Social Care,Physical Support Older People (85+),Adult Services,Third Party Payments,Other establishments,25/03/19,6290490,572.6,VENDOR,SEVACARE (UK) LTD,136163
Portsmouth City Council,PCC,Adult Social Care,Physical Support Older People (85+),Adult Services,Third Party Payments,Other establishments,25/03/19,6290490,163.6,VENDOR,SEVACARE (UK) LTD,136163
Portsmouth City Council,PCC,Adult Social Care,Physical Support Older People (85+),Adult Services,Third Party Payments,Other establishments,25/03/19,6290490,449.9,VENDOR,SEVACARE (UK) LTD,136163
Portsmouth City Council,PCC,Adult Social Care,Physical Support Older People (85+),Adult Services,Third Party Payments,Other establishments,25/03/19,6290490,212.68,VENDOR,SEVACARE (UK) LTD,136163
Portsmouth City Council,PCC,Adult Social Care,Physical Support Older People (85+),Adult Services,Third Party Payments,Other establishments,25/03/19,6290490,163.6,VENDOR,SEVACARE (UK) LTD,136163
Portsmouth City Council,PCC,Adult Social Care,Physical Support Older People (85+),Adult Services,Third Party Payments,Other establishments,25/03/19,6290490,1832.32,VENDOR,SEVACARE (UK) LTD,136163
Portsmouth City Council,PCC,Adult Social Care,Physical Support Adults (18 - 64),Adult Services,Third Party Payments,Other establishments,25/03/19,6290490,130.88,VENDOR,SEVACARE (UK) LTD,136163
Portsmouth City Council,PCC,Adult Social Care,Physical Support Older People (85+),Adult Services,Third Party Payments,Other establishments,25/03/19,6290490,801.64,VENDOR,SEVACARE (UK) LTD,136163
Portsmouth City Council,PCC,Adult Social Care,Physical Support Older People (85+),Adult Services,Third Party Payments,Other establishments,25/03/19,6290490,294.48,VENDOR,SEVACARE (UK) LTD,136163
Portsmouth City Council,PCC,Adult Social Care,Physical Support Older People (85+),Adult Services,Third Party Payments,Other establishments,25/03/19,6290490,114.52,VENDOR,SEVACARE (UK) LTD,136163
Portsmouth City Council,PCC,Adult Social Care,Physical Support Older People (85+),Adult Services,Third Party Payments,Other establishments,25/03/19,6290490,171.78,VENDOR,SEVACARE (UK) LTD,136163
Portsmouth City Council,PCC,Adult Social Care,Physical Support Older People (85+),Adult Services,Third Party Payments,Other establishments,25/03/19,6290490,593.05,VENDOR,SEVACARE (UK) LTD,136163
Portsmouth City Council,PCC,Adult Social Care,Physical Support Older People (85+),Adult Services,Third Party Payments,Other establishments,25/03/19,6290490,2290.4,VENDOR,SEVACARE (UK) LTD,136163
Portsmouth City Council,PCC,Adult Social Care,Physical Support Older People (85+),Adult Services,Third Party Payments,Other establishments,25/03/19,6290490,437.63,VENDOR,SEVACARE (UK) LTD,136163
Portsmouth City Council,PCC,Adult Social Care,Physical Support Older People (85+),Adult Services,Third Party Payments,Other establishments,25/03/19,6290490,1149.29,VENDOR,SEVACARE (UK) LTD,136163
Portsmouth City Council,PCC,Adult Social Care,Physical Support Older People (85+),Adult Services,Third Party Payments,Other establishments,25/03/19,6290490,229.04,VENDOR,SEVACARE (UK) LTD,136163
Portsmouth City Council,PCC,Adult Social Care,Physical Support Older People (85+),Adult Services,Third Party Payments,Other establishments,25/03/19,6290490,94.07,VENDOR,SEVACARE (UK) LTD,136163
Portsmouth City Council,PCC,Adult Social Care,Physical Support Older People (85+),Adult Services,Third Party Payments,Other establishments,25/03/19,6290490,1353.79,VENDOR,SEVACARE (UK) LTD,136163
Portsmouth City Council,PCC,Adult Social Care,Physical Support Older People (85+),Adult Services,Third Party Payments,Other establishments,25/03/19,6290490,1112.48,VENDOR,SEVACARE (UK) LTD,136163
Portsmouth City Council,PCC,Adult Social Care,Physical Support Older People (85+),Adult Services,Third Party Payments,Other establishments,25/03/19,6290490,458.08,VENDOR,SEVACARE (UK) LTD,136163
Portsmouth City Council,PCC,Adult Social Care,Physical Support Older People (85+),Adult Services,Third Party Payments,Other establishments,25/03/19,6290490,2290.4,VENDOR,SEVACARE (UK) LTD,136163
Portsmouth City Council,PCC,Adult Social Care,Physical Support Older People (85+),Adult Services,Third Party Payments,Other establishments,25/03/19,6290490,229.04,VENDOR,SEVACARE (UK) LTD,136163
Portsmouth City Council,PCC,Adult Social Care,Physical Support Older People (85+),Adult Services,Third Party Payments,Other establishments,25/03/19,6290490,229.04,VENDOR,SEVACARE (UK) LTD,136163
Portsmouth City Council,PCC,Adult Social Care,Physical Support Older People (85+),Adult Services,Third Party Payments,Other establishments,25/03/19,6290490,89.98,VENDOR,SEVACARE (UK) LTD,136163
Portsmouth City Council,PCC,Adult Social Care,Physical Support Older People (85+),Adult Services,Third Party Payments,Other establishments,25/03/19,6290490,1615.55,VENDOR,SEVACARE (UK) LTD,136163
Portsmouth City Council,PCC,Adult Social Care,Physical Support Older People (85+),Adult Services,Third Party Payments,Other establishments,25/03/19,6290490,417.18,VENDOR,SEVACARE (UK) LTD,136163
Portsmouth City Council,PCC,Adult Social Care,Physical Support Older People (85+),Adult Services,Third Party Payments,Other establishments,25/03/19,6290490,65.44,VENDOR,SEVACARE (UK) LTD,136163
Portsmouth City Council,PCC,Adult Social Care,Physical Support Older People (85+),Adult Services,Third Party Payments,Other establishments,25/03/19,6290490,449.9,VENDOR,SEVACARE (UK) LTD,136163
Portsmouth City Council,PCC,Adult Social Care,Physical Support Older People (85+),Adult Services,Third Party Payments,Other establishments,25/03/19,6290490,1276.08,VENDOR,SEVACARE (UK) LTD,136163
Portsmouth City Council,PCC,Adult Social Care,Physical Support Older People (85+),Adult Services,Third Party Payments,Other establishments,25/03/19,6290490,740.29,VENDOR,SEVACARE (UK) LTD,136163
Portsmouth City Council,PCC,Adult Social Care,Physical Support Older People (85+),Adult Services,Third Party Payments,Other establishments,25/03/19,6290490,572.6,VENDOR,SEVACARE (UK) LTD,136163
Portsmouth City Council,PCC,Adult Social Care,Physical Support Older People (85+),Adult Services,Third Party Payments,Other establishments,25/03/19,6290490,458.08,VENDOR,SEVACARE (UK) LTD,136163
Portsmouth City Council,PCC,Adult Social Care,Physical Support Older People (85+),Adult Services,Third Party Payments,Other establishments,25/03/19,6290490,229.04,VENDOR,SEVACARE (UK) LTD,136163
Portsmouth City Council,PCC,Adult Social Care,Physical Support Older People (85+),Adult Services,Third Party Payments,Other establishments,25/03/19,6290490,458.08,VENDOR,SEVACARE (UK) LTD,136163
Portsmouth City Council,PCC,Adult Social Care,Physical Support Older People (85+),Adult Services,Third Party Payments,Other establishments,25/03/19,6290490,130.88,VENDOR,SEVACARE (UK) LTD,136163
Portsmouth City Council,PCC,Adult Social Care,Physical Support Older People (85+),Adult Services,Third Party Payments,Other establishments,25/03/19,6290490,233.13,VENDOR,SEVACARE (UK) LTD,136163
Portsmouth City Council,PCC,Adult Social Care,Physical Support Older People (85+),Adult Services,Third Party Payments,Other establishments,25/03/19,6290490,1636,VENDOR,SEVACARE (UK) LTD,136163
Portsmouth City Council,PCC,Adult Social Care,Social Care Activities,Adult Services,Third Party Payments,Other establishments,25/03/19,6290490,359.92,VENDOR,SEVACARE (UK) LTD,136163
Portsmouth City Council,PCC,Adult Social Care,Social Care Activities,Adult Services,Third Party Payments,Other establishments,25/03/19,6290490,2633.96,VENDOR,SEVACARE (UK) LTD,136163
Portsmouth City Council,PCC,Adult Social Care,Physical Support Older People (85+),Adult Services,Third Party Payments,Other establishments,25/03/19,6290490,1374.24,VENDOR,SEVACARE (UK) LTD,136163
Portsmouth City Council,PCC,Adult Social Care,Social Care Activities,Adult Services,Third Party Payments,Other establishments,25/03/19,6290490,343.56,VENDOR,SEVACARE (UK) LTD,136163
Portsmouth City Council,PCC,Adult Social Care,Social Care Activities,Adult Services,Third Party Payments,Other establishments,25/03/19,6290490,392.64,VENDOR,SEVACARE (UK) LTD,136163
Portsmouth City Council,PCC,Children's and Education Services,Children Looked After,Children's Services and Education,Supplies and Services,Services,29/03/19,6291633,256,VENDOR,HOME SCHOOL TUTORING,140194
Portsmouth City Council,PCC,Other,Suspense and Capital Schemes,Capital - Traffic & Transportation,Capital Charges,Capital Expenditure (WIP),29/03/19,6291717,502.2,VENDOR,SMART VIDEO AND SENSING LTD,141106
Portsmouth City Council,PCC,Housing Services,Homelessness,"Housing, Neighbourhood and Building Services",Third Party Payments,Private contractors,12/03/19,6287766,465.5,VENDOR,Classified as 'personal data' (under the Data Protection Act 1998),141332
Portsmouth City Council,PCC,Housing Services,Homelessness,"Housing, Neighbourhood and Building Services",Third Party Payments,Private contractors,12/03/19,6287766,365.75,VENDOR,Classified as 'personal data' (under the Data Protection Act 1998),141332
Portsmouth City Council,PCC,Housing Services,Homelessness,"Housing, Neighbourhood and Building Services",Third Party Payments,Private contractors,12/03/19,6287766,465.5,VENDOR,Classified as 'personal data' (under the Data Protection Act 1998),141332
Portsmouth City Council,PCC,Housing Services,Homelessness,"Housing, Neighbourhood and Building Services",Third Party Payments,Private contractors,12/03/19,6287766,700,VENDOR,Classified as 'personal data' (under the Data Protection Act 1998),141332
Portsmouth City Council,PCC,Housing Services,Homelessness,"Housing, Neighbourhood and Building Services",Third Party Payments,Private contractors,12/03/19,6287766,700,VENDOR,Classified as 'personal data' (under the Data Protection Act 1998),141332
Portsmouth City Council,PCC,Housing Services,Homelessness,"Housing, Neighbourhood and Building Services",Third Party Payments,Private contractors,12/03/19,6287766,1050,VENDOR,Classified as 'personal data' (under the Data Protection Act 1998),141332
Portsmouth City Council,PCC,Costs below Net Cost of Services,Trading,Regeneration,Third Party Payments,Private contractors,01/03/19,6286305,1270.01,COMPANY,BAILEY BROS (SOUTHERN) LTD,114153
Portsmouth City Council,PCC,Costs below Net Cost of Services,Trading,Regeneration,Third Party Payments,Private contractors,01/03/19,6286305,1039.99,COMPANY,BAILEY BROS (SOUTHERN) LTD,114153
Portsmouth City Council,PCC,Housing Services,Homelessness,"Housing, Neighbourhood and Building Services",Third Party Payments,Private contractors,12/03/19,6287766,399,VENDOR,Classified as 'personal data' (under the Data Protection Act 1998),141332
Portsmouth City Council,PCC,Children's and Education Services,Children Looked After,Children's Services and Education,Supplies and Services,Services,01/03/19,6286401,96,VENDOR,HOME SCHOOL TUTORING,140194
Portsmouth City Council,PCC,Housing Services,Homelessness,"Housing, Neighbourhood and Building Services",Third Party Payments,Private contractors,12/03/19,6287766,153,VENDOR,Classified as 'personal data' (under the Data Protection Act 1998),141332
Portsmouth City Council,PCC,Housing Services,Homelessness,"Housing, Neighbourhood and Building Services",Third Party Payments,Private contractors,12/03/19,6287766,99.75,VENDOR,Classified as 'personal data' (under the Data Protection Act 1998),141332
Portsmouth City Council,PCC,Children's and Education Services,Children Looked After,Children's Services and Education,Supplies and Services,Services,01/03/19,6286401,128,VENDOR,HOME SCHOOL TUTORING,140194
Portsmouth City Council,PCC,Children's and Education Services,Children Looked After,Children's Services and Education,Supplies and Services,Services,29/03/19,6291633,160,VENDOR,HOME SCHOOL TUTORING,140194
Portsmouth City Council,PCC,Support Service / Transparency Costs Unallocated,Personnel,"HR, Legal, Audit & Performance",Employees,Direct employee expenses,01/03/19,6286329,66831.71,VENDOR,COMENSURA LTD,140265
Portsmouth City Council,PCC,Support Service / Transparency Costs Unallocated,Personnel,"HR, Legal, Audit & Performance",Employees,Direct employee expenses,08/03/19,6287499,73753.4,VENDOR,COMENSURA LTD,140265
Portsmouth City Council,PCC,Support Service / Transparency Costs Unallocated,Personnel,"HR, Legal, Audit & Performance",Employees,Direct employee expenses,15/03/19,6288718,79296.37,VENDOR,COMENSURA LTD,140265
Portsmouth City Council,PCC,Support Service / Transparency Costs Unallocated,Personnel,"HR, Legal, Audit & Performance",Employees,Direct employee expenses,22/03/19,6290170,66125.23,VENDOR,COMENSURA LTD,140265
Portsmouth City Council,PCC,Support Service / Transparency Costs Unallocated,Personnel,"HR, Legal, Audit & Performance",Employees,Direct employee expenses,29/03/19,6291548,68432.59,VENDOR,COMENSURA LTD,140265
Portsmouth City Council,PCC,Housing Services,Homelessness,"Housing, Neighbourhood and Building Services",Third Party Payments,Private contractors,12/03/19,6287766,199.5,VENDOR,Classified as 'personal data' (under the Data Protection Act 1998),141332
Portsmouth City Council,PCC,Other,Suspense and Capital Schemes,Capital - Traffic & Transportation,Capital Charges,Capital Expenditure (WIP),04/03/19,6286633,1375,COMPANY,SIEMENS PLC,106546
Portsmouth City Council,PCC,Other,Suspense and Capital Schemes,Capital - Traffic & Transportation,Capital Charges,Capital Expenditure (WIP),04/03/19,6286633,1460,COMPANY,SIEMENS PLC,106546
Portsmouth City Council,PCC,Other,Suspense and Capital Schemes,Capital - Traffic & Transportation,Capital Charges,Capital Expenditure (WIP),05/03/19,6286762,1860.8,COMPANY,SIEMENS PLC,106546
Portsmouth City Council,PCC,Highways and Transport Services,"Transport Planning, Policy and Strategy",Regeneration,Third Party Payments,Private contractors,04/03/19,6286633,1163,COMPANY,SIEMENS PLC,106546
Portsmouth City Council,PCC,Other,Suspense and Capital Schemes,Capital - Traffic & Transportation,Capital Charges,Capital Expenditure (WIP),04/03/19,6286633,1163,COMPANY,SIEMENS PLC,106546
Portsmouth City Council,PCC,Highways and Transport Services,Traffic Management and Road Safety,Regeneration,Supplies and Services,Services,21/03/19,6290109,3182,COMPANY,SIEMENS PLC,106546
Portsmouth City Council,PCC,Other,Suspense and Capital Schemes,Capital - Traffic & Transportation,Capital Charges,Capital Expenditure (WIP),25/03/19,6290493,772,COMPANY,SIEMENS PLC,106546
Portsmouth City Council,PCC,Other,Suspense and Capital Schemes,Capital - Traffic & Transportation,Capital Charges,Capital Expenditure (WIP),25/03/19,6290493,1206.38,COMPANY,SIEMENS PLC,106546
Portsmouth City Council,PCC,Other,Suspense and Capital Schemes,Capital - Traffic & Transportation,Capital Charges,Capital Expenditure (WIP),25/03/19,6290493,332.44,COMPANY,SIEMENS PLC,106546
Portsmouth City Council,PCC,Support Service / Transparency Costs Unallocated,AMS,"Housing, Neighbourhood and Building Services",Premises-Related Expenditure,Energy costs,28/03/19,6291455,1921.59,COMPANY,SIEMENS PLC,106546
Portsmouth City Council,PCC,Support Service / Transparency Costs Unallocated,AMS,"Housing, Neighbourhood and Building Services",Premises-Related Expenditure,Energy costs,28/03/19,6291455,2.01,COMPANY,SIEMENS PLC,106546
Portsmouth City Council,PCC,Highways and Transport Services,"Airports, Harbours and Toll Facilities",Portsmouth International Port,Supplies and Services,Communications and computing,21/03/19,6290035,1750,VENDOR,COOLSPIRIT LTD,137640
Portsmouth City Council,PCC,Housing Services,Homelessness,"Housing, Neighbourhood and Building Services",Third Party Payments,Private contractors,22/03/19,6290137,400,VENDOR,Classified as 'personal data' (under the Data Protection Act 1998),141332
Portsmouth City Council,PCC,Housing Services,Homelessness,"Housing, Neighbourhood and Building Services",Third Party Payments,Private contractors,22/03/19,6290137,465.5,VENDOR,Classified as 'personal data' (under the Data Protection Act 1998),141332
Portsmouth City Council,PCC,Housing Services,Homelessness,"Housing, Neighbourhood and Building Services",Third Party Payments,Private contractors,22/03/19,6290137,465.5,VENDOR,Classified as 'personal data' (under the Data Protection Act 1998),141332
Portsmouth City Council,PCC,Housing Services,Homelessness,"Housing, Neighbourhood and Building Services",Third Party Payments,Private contractors,22/03/19,6290137,465.5,VENDOR,Classified as 'personal data' (under the Data Protection Act 1998),141332
Portsmouth City Council,PCC,Housing Services,Homelessness,"Housing, Neighbourhood and Building Services",Third Party Payments,Private contractors,22/03/19,6290137,465.5,VENDOR,Classified as 'personal data' (under the Data Protection Act 1998),141332
Portsmouth City Council,PCC,Housing Services,Homelessness,"Housing, Neighbourhood and Building Services",Third Party Payments,Private contractors,22/03/19,6290137,465.5,VENDOR,Classified as 'personal data' (under the Data Protection Act 1998),141332
Portsmouth City Council,PCC,Housing Services,Homelessness,"Housing, Neighbourhood and Building Services",Third Party Payments,Private contractors,22/03/19,6290137,700,VENDOR,Classified as 'personal data' (under the Data Protection Act 1998),141332
Portsmouth City Council,PCC,Housing Services,Homelessness,"Housing, Neighbourhood and Building Services",Third Party Payments,Private contractors,22/03/19,6290137,750,VENDOR,Classified as 'personal data' (under the Data Protection Act 1998),141332
Portsmouth City Council,PCC,Other,Suspense and Capital Schemes,Capital - Traffic & Transportation,Capital Charges,Capital Expenditure (WIP),15/03/19,6288742,750,COMPANY,CYCLE WORKS LTD,113048
Portsmouth City Council,PCC,Children's and Education Services,Children Looked After,Children's Services and Education,Supplies and Services,Services,01/03/19,6286401,192,VENDOR,HOME SCHOOL TUTORING,140194
Portsmouth City Council,PCC,Children's and Education Services,Children Looked After,Children's Services and Education,Supplies and Services,Services,29/03/19,6291633,192,VENDOR,HOME SCHOOL TUTORING,140194
Portsmouth City Council,PCC,Housing Services,Homelessness,"Housing, Neighbourhood and Building Services",Third Party Payments,Private contractors,22/03/19,6290137,931,VENDOR,Classified as 'personal data' (under the Data Protection Act 1998),141332
Portsmouth City Council,PCC,Support Service / Transparency Costs Unallocated,AMS,Regeneration,Employees,Direct employee expenses,29/03/19,6291759,9415.35,VENDOR,THE OYSTER PARTNERSHIP,120530
Portsmouth City Council,PCC,Housing Revenue Account,Special Services,"Housing, Neighbourhood and Building Services",Supplies and Services,Miscellaneous expenses,14/03/19,6288529,717.88,VENDOR,A & J LAWRENCE LTD,141283
Portsmouth City Council,PCC,Children's and Education Services,Children Looked After,Children's Services and Education,Supplies and Services,Services,01/03/19,6286401,96,VENDOR,HOME SCHOOL TUTORING,140194
Portsmouth City Council,PCC,Costs below Net Cost of Services,Trading,Finance & IT,Supplies and Services,Miscellaneous expenses,20/03/19,6289510,174.36,VENDOR,A & J LAWRENCE LTD,141283
Portsmouth City Council,PCC,Highways and Transport Services,Parking Services,Regeneration,Supplies and Services,Miscellaneous expenses,20/03/19,6289510,361.08,VENDOR,A & J LAWRENCE LTD,141283
Portsmouth City Council,PCC,Highways and Transport Services,Parking Services,Regeneration,Supplies and Services,Miscellaneous expenses,20/03/19,6289510,1138.92,VENDOR,A & J LAWRENCE LTD,141283
Portsmouth City Council,PCC,Planning Services,Planning Policy,Regeneration,Supplies and Services,Communications and computing,06/03/19,6286818,672.96,VENDOR,CIVICA UK LTD,104001
Portsmouth City Council,PCC,Planning Services,Business support,Regeneration,Supplies and Services,Communications and computing,14/03/19,6288556,1315.92,VENDOR,CIVICA UK LTD,104001
Portsmouth City Council,PCC,Children's and Education Services,Family Support Services,Children's Services and Education,Supplies and Services,Communications and computing,14/03/19,6288556,155.04,VENDOR,CIVICA UK LTD,104001
Portsmouth City Council,PCC,Children's and Education Services,Safeguarding Children and Young Peoples Services,Children's Services and Education,Supplies and Services,Communications and computing,14/03/19,6288556,137.04,VENDOR,CIVICA UK LTD,104001
Portsmouth City Council,PCC,Children's and Education Services,Other Children and Family Services,Children's Services and Education,Supplies and Services,Communications and computing,14/03/19,6288556,155.04,VENDOR,CIVICA UK LTD,104001
Portsmouth City Council,PCC,Children's and Education Services,Other Children and Family Services,Children's Services and Education,Supplies and Services,Communications and computing,14/03/19,6288556,282,VENDOR,CIVICA UK LTD,104001
Portsmouth City Council,PCC,Children's and Education Services,Other Children and Family Services,Children's Services and Education,Supplies and Services,Communications and computing,14/03/19,6288556,282,VENDOR,CIVICA UK LTD,104001
Portsmouth City Council,PCC,Children's and Education Services,Other Children and Family Services,Children's Services and Education,Supplies and Services,Communications and computing,14/03/19,6288556,282,VENDOR,CIVICA UK LTD,104001
Portsmouth City Council,PCC,Children's and Education Services,Other Education and Community Budget,Children's Services and Education,Supplies and Services,Communications and computing,14/03/19,6288556,282,VENDOR,CIVICA UK LTD,104001
Portsmouth City Council,PCC,Children's and Education Services,Other Education and Community Budget,Children's Services and Education,Supplies and Services,Communications and computing,14/03/19,6288556,137.04,VENDOR,CIVICA UK LTD,104001
Portsmouth City Council,PCC,Children's and Education Services,Other Education and Community Budget,Children's Services and Education,Supplies and Services,Communications and computing,14/03/19,6288556,155.04,VENDOR,CIVICA UK LTD,104001
Portsmouth City Council,PCC,Children's and Education Services,Management and Support Services,Children's Services and Education,Supplies and Services,Communications and computing,14/03/19,6288556,137.04,VENDOR,CIVICA UK LTD,104001
Portsmouth City Council,PCC,Planning Services,Planning Policy,Regeneration,Supplies and Services,Communications and computing,14/03/19,6288556,137.04,VENDOR,CIVICA UK LTD,104001
Portsmouth City Council,PCC,Planning Services,Planning Policy,Regeneration,Supplies and Services,Communications and computing,14/03/19,6288556,1315.92,VENDOR,CIVICA UK LTD,104001
Portsmouth City Council,PCC,Cultural and Related Services,Recreation and Sport,Culture & City Development,Supplies and Services,Communications and computing,14/03/19,6288556,137.04,VENDOR,CIVICA UK LTD,104001
Portsmouth City Council,PCC,Environmental and Regulatory Services,Community Safety (Crime Reduction),"HR, Legal, Audit & Performance",Supplies and Services,Communications and computing,14/03/19,6288556,282,VENDOR,CIVICA UK LTD,104001
Portsmouth City Council,PCC,Central Services,Coroners' Court Services,Culture & City Development,Supplies and Services,Communications and computing,14/03/19,6288556,137.04,VENDOR,CIVICA UK LTD,104001
Portsmouth City Council,PCC,Environmental and Regulatory Services,Regulatory Services,Culture & City Development,Supplies and Services,Communications and computing,14/03/19,6288556,155.04,VENDOR,CIVICA UK LTD,104001
Portsmouth City Council,PCC,Corporate and Democratic Core,Corporate Management,Finance & IT,Supplies and Services,Communications and computing,14/03/19,6288556,137.04,VENDOR,CIVICA UK LTD,104001
Portsmouth City Council,PCC,Cultural and Related Services,Allocation of Management & Admin,Community & Communication,Supplies and Services,Communications and computing,14/03/19,6288556,155.04,VENDOR,CIVICA UK LTD,104001
Portsmouth City Council,PCC,Cultural and Related Services,Allocation of Management & Admin,Community & Communication,Supplies and Services,Communications and computing,14/03/19,6288556,2631.84,VENDOR,CIVICA UK LTD,104001
Portsmouth City Council,PCC,Central Services,Local Tax Collection,Community & Communication,Supplies and Services,Communications and computing,14/03/19,6288556,155.04,VENDOR,CIVICA UK LTD,104001
Portsmouth City Council,PCC,Support Service / Transparency Costs Unallocated,Financial Services,Finance & IT,Supplies and Services,Communications and computing,14/03/19,6288556,155.04,VENDOR,CIVICA UK LTD,104001
Portsmouth City Council,PCC,Support Service / Transparency Costs Unallocated,AMS,Regeneration,Supplies and Services,Communications and computing,14/03/19,6288556,282,VENDOR,CIVICA UK LTD,104001
Portsmouth City Council,PCC,Support Service / Transparency Costs Unallocated,AMS,Regeneration,Supplies and Services,Communications and computing,14/03/19,6288556,282,VENDOR,CIVICA UK LTD,104001
Portsmouth City Council,PCC,Support Service / Transparency Costs Unallocated,AMS,Regeneration,Supplies and Services,Communications and computing,14/03/19,6288556,282,VENDOR,CIVICA UK LTD,104001
Portsmouth City Council,PCC,Support Service / Transparency Costs Unallocated,Legal Services,"HR, Legal, Audit & Performance",Supplies and Services,Communications and computing,14/03/19,6288556,1550.4,VENDOR,CIVICA UK LTD,104001
Portsmouth City Council,PCC,Adult Social Care,Information and Early Intervention,Adult Services,Supplies and Services,Communications and computing,14/03/19,6288556,137.04,VENDOR,CIVICA UK LTD,104001
Portsmouth City Council,PCC,Solent LEP,Business support,OTHER,Supplies and Services,Communications and computing,14/03/19,6288556,137.04,VENDOR,CIVICA UK LTD,104001
Portsmouth City Council,PCC,Cultural and Related Services,Allocation of Management & Admin,Community & Communication,Supplies and Services,Communications and computing,14/03/19,6288556,172.76,VENDOR,CIVICA UK LTD,104001
Portsmouth City Council,PCC,Cultural and Related Services,Allocation of Management & Admin,Community & Communication,Supplies and Services,Communications and computing,14/03/19,6288556,172.76,VENDOR,CIVICA UK LTD,104001
Portsmouth City Council,PCC,Cultural and Related Services,Allocation of Management & Admin,Community & Communication,Supplies and Services,Communications and computing,14/03/19,6288556,172.76,VENDOR,CIVICA UK LTD,104001
Portsmouth City Council,PCC,Children's and Education Services,Other Education and Community Budget,Children's Services and Education,Supplies and Services,Communications and computing,15/03/19,6288714,125.62,VENDOR,CIVICA UK LTD,104001
Portsmouth City Council,PCC,Children's and Education Services,Other Education and Community Budget,Children's Services and Education,Supplies and Services,Communications and computing,15/03/19,6288714,251.24,VENDOR,CIVICA UK LTD,104001
Portsmouth City Council,PCC,Children's and Education Services,Other Education and Community Budget,Children's Services and Education,Supplies and Services,Communications and computing,15/03/19,6288714,125.62,VENDOR,CIVICA UK LTD,104001
Portsmouth City Council,PCC,Children's and Education Services,Other Education and Community Budget,Children's Services and Education,Supplies and Services,Communications and computing,15/03/19,6288714,125.62,VENDOR,CIVICA UK LTD,104001
Portsmouth City Council,PCC,Children's and Education Services,Other Education and Community Budget,Children's Services and Education,Supplies and Services,Communications and computing,15/03/19,6288714,1130.58,VENDOR,CIVICA UK LTD,104001
Portsmouth City Council,PCC,Children's and Education Services,Management and Support Services,Children's Services and Education,Supplies and Services,Communications and computing,15/03/19,6288714,628.1,VENDOR,CIVICA UK LTD,104001
Portsmouth City Council,PCC,Corporate and Democratic Core,Democratic Representation and Management,Chief Exec,Supplies and Services,Communications and computing,15/03/19,6288714,775.2,VENDOR,CIVICA UK LTD,104001
Portsmouth City Council,PCC,Support Service / Transparency Costs Unallocated,Information Services,Finance & IT,Supplies and Services,Communications and computing,15/03/19,6288714,155.04,VENDOR,CIVICA UK LTD,104001
Portsmouth City Council,PCC,Support Service / Transparency Costs Unallocated,Legal Services,"HR, Legal, Audit & Performance",Supplies and Services,Communications and computing,15/03/19,6288714,155.04,VENDOR,CIVICA UK LTD,104001
Portsmouth City Council,PCC,Support Service / Transparency Costs Unallocated,Legal Services,"HR, Legal, Audit & Performance",Supplies and Services,Communications and computing,15/03/19,6288714,2015.52,VENDOR,CIVICA UK LTD,104001
Portsmouth City Council,PCC,Solent LEP,Business support,OTHER,Supplies and Services,Communications and computing,15/03/19,6288714,155.04,VENDOR,CIVICA UK LTD,104001
Portsmouth City Council,PCC,Support Service / Transparency Costs Unallocated,AMS,Regeneration,Supplies and Services,Communications and computing,27/03/19,6290770,125.62,VENDOR,CIVICA UK LTD,104001
Portsmouth City Council,PCC,Children's and Education Services,Other Education and Community Budget,Children's Services and Education,Supplies and Services,Communications and computing,27/03/19,6290770,502.48,VENDOR,CIVICA UK LTD,104001
Portsmouth City Council,PCC,Children's and Education Services,Children Looked After,Children's Services and Education,Supplies and Services,Miscellaneous expenses,27/03/19,6290751,832.81,VENDOR,A & J LAWRENCE LTD,141283
Portsmouth City Council,PCC,Children's and Education Services,Children Looked After,Children's Services and Education,Supplies and Services,Services,01/03/19,6286401,128,VENDOR,HOME SCHOOL TUTORING,140194
Portsmouth City Council,PCC,Children's and Education Services,Children Looked After,Children's Services and Education,Supplies and Services,Services,29/03/19,6291633,96,VENDOR,HOME SCHOOL TUTORING,140194
Portsmouth City Council,PCC,Children's and Education Services,Other Education and Community Budget,Children's Services and Education,Supplies and Services,Catering,28/03/19,6291388,786.6,VENDOR,HARFIELD COMPONENTS LTD,103312
Portsmouth City Council,PCC,Other,Suspense and Capital Schemes,Capital - Housing GF,Capital Charges,REFCUS,27/03/19,6290802,784,COMPANY,DOLPHIN MOBILITY LTD,135682
Portsmouth City Council,PCC,Housing Services,Private Sector Housing Renewal,"Housing, Neighbourhood and Building Services",Income,Other grants reimbursements and contributions,27/03/19,6290802,-70,COMPANY,DOLPHIN MOBILITY LTD,135682
Portsmouth City Council,PCC,Other,Suspense and Capital Schemes,Capital - Environment,Capital Charges,Capital Expenditure (WIP),01/03/19,6286396,1680,VENDOR,HASKONINGDHV UK LIMITED,109400
Portsmouth City Council,PCC,Other,Suspense and Capital Schemes,Capital - Education,Capital Charges,Capital Expenditure (WIP),26/03/19,6290649,2985,VENDOR,HASKONINGDHV UK LIMITED,109400
Portsmouth City Council,PCC,Adult Social Care,Support with Memory and Cognition Older People (65 - 74),Adult Services,Premises-Related Expenditure,Cleaning and domestic supplies,14/03/19,6288555,561.8,VENDOR,CIRCOM LIMITED,144011
Portsmouth City Council,PCC,Housing Revenue Account,Repairs and Maintenance,"Housing, Neighbourhood and Building Services",Premises-Related Expenditure,"Repairs, alterations and maintenance of buildings",19/03/19,6289017,586849.76,COMPANY,LIBERTY GAS GROUP LIMITED,134977
Portsmouth City Council,PCC,Central Services,Coroners' Court Services,Culture & City Development,Supplies and Services,Services,25/03/19,6290465,486.9,SOLETRADER,Classified as 'personal data' (under the Data Protection Act 1998),140278
Portsmouth City Council,PCC,Adult Social Care,Social Care Activities,Adult Services,Third Party Payments,Other establishments,25/03/19,6290478,186.31,VENDOR,SAFEGUARDING GP,137636
Portsmouth City Council,PCC,Adult Social Care,Social Care Activities,Adult Services,Third Party Payments,Other establishments,25/03/19,6290478,186.31,VENDOR,SAFEGUARDING GP,137636
Portsmouth City Council,PCC,Adult Social Care,Social Care Activities,Adult Services,Third Party Payments,Other establishments,25/03/19,6290478,186.31,VENDOR,SAFEGUARDING GP,137636
Portsmouth City Council,PCC,Adult Social Care,Social Care Activities,Adult Services,Third Party Payments,Other establishments,25/03/19,6290478,186.31,VENDOR,SAFEGUARDING GP,137636
Portsmouth City Council,PCC,Adult Social Care,Social Care Activities,Adult Services,Third Party Payments,Other establishments,25/03/19,6290478,224.39,VENDOR,SAFEGUARDING GP,137636
Portsmouth City Council,PCC,Children's and Education Services,Children Looked After,Children's Services and Education,Third Party Payments,Other establishments,28/03/19,6291382,3995.01,VENDOR,FUSION FOSTERING LIMITED,140473
Portsmouth City Council,PCC,Children's and Education Services,Children Looked After,Children's Services and Education,Third Party Payments,Other establishments,28/03/19,6291382,3995.01,VENDOR,FUSION FOSTERING LIMITED,140473
Portsmouth City Council,PCC,Highways and Transport Services,"Airports, Harbours and Toll Facilities",Portsmouth International Port,Supplies and Services,"Equipment, furniture and materials",21/03/19,6290078,10282,VENDOR,L3 COMMUNICATIONS UK LIMITED,108150
Portsmouth City Council,PCC,Children's and Education Services,Other Education and Community Budget,Regeneration,Transport-Related Expenditure,Direct transport costs,04/03/19,6286523,30.2,VENDOR,AQUA CARS LIMITED,100011
Portsmouth City Council,PCC,Housing Services,Homelessness,"Housing, Neighbourhood and Building Services",Transport-Related Expenditure,Direct transport costs,05/03/19,6286671,51,VENDOR,AQUA CARS LIMITED,100011
Portsmouth City Council,PCC,Support Service / Transparency Costs Unallocated,Information Services,Finance & IT,Transport-Related Expenditure,Direct transport costs,04/03/19,6286523,-100,VENDOR,AQUA CARS LIMITED,100011
Portsmouth City Council,PCC,Support Service / Transparency Costs Unallocated,Information Services,Finance & IT,Transport-Related Expenditure,Direct transport costs,04/03/19,6286523,285.6,VENDOR,AQUA CARS LIMITED,100011
Portsmouth City Council,PCC,Other,Suspense and Capital Schemes,Capital - Resources,Capital Charges,Capital Expenditure (WIP),04/03/19,6286523,100,VENDOR,AQUA CARS LIMITED,100011
Portsmouth City Council,PCC,Housing Revenue Account,Supervision and Management,"Housing, Neighbourhood and Building Services",Premises-Related Expenditure,"Repairs, alterations and maintenance of buildings",06/03/19,6286852,215.8,VENDOR,ECEAU LTD,142965
Portsmouth City Council,PCC,Housing Revenue Account,Special Services,"Housing, Neighbourhood and Building Services",Supplies and Services,"Equipment, furniture and materials",01/03/19,6286382,215.8,VENDOR,ECEAU LTD,142965
Portsmouth City Council,PCC,Housing Revenue Account,Special Services,"Housing, Neighbourhood and Building Services",Premises-Related Expenditure,Water Services,01/03/19,6286382,215.8,VENDOR,ECEAU LTD,142965
Portsmouth City Council,PCC,Housing Revenue Account,Special Services,"Housing, Neighbourhood and Building Services",Premises-Related Expenditure,Water Services,06/03/19,6286852,215.8,VENDOR,ECEAU LTD,142965
Portsmouth City Council,PCC,Costs below Net Cost of Services,Trading,Regeneration,Third Party Payments,Private contractors,01/03/19,6286494,1616,VENDOR,THE MINISTRY OF DEFENCE,114001
Portsmouth City Council,PCC,Housing Revenue Account,Special Services,"Housing, Neighbourhood and Building Services",Premises-Related Expenditure,Water Services,13/03/19,6288050,269.75,VENDOR,ECEAU LTD,142965
Portsmouth City Council,PCC,Housing Revenue Account,Special Services,"Housing, Neighbourhood and Building Services",Premises-Related Expenditure,Water Services,13/03/19,6288050,215.8,VENDOR,ECEAU LTD,142965
Portsmouth City Council,PCC,Housing Revenue Account,Special Services,"Housing, Neighbourhood and Building Services",Supplies and Services,"Equipment, furniture and materials",13/03/19,6288050,215.8,VENDOR,ECEAU LTD,142965
Portsmouth City Council,PCC,Housing Revenue Account,Special Services,"Housing, Neighbourhood and Building Services",Premises-Related Expenditure,Water Services,11/03/19,6287682,215.8,VENDOR,ECEAU LTD,142965
Portsmouth City Council,PCC,Housing Revenue Account,Special Services,"Housing, Neighbourhood and Building Services",Premises-Related Expenditure,Water Services,11/03/19,6287682,215.8,VENDOR,ECEAU LTD,142965
Portsmouth City Council,PCC,Housing Revenue Account,Special Services,"Housing, Neighbourhood and Building Services",Premises-Related Expenditure,Water Services,11/03/19,6287682,215.8,VENDOR,ECEAU LTD,142965
Portsmouth City Council,PCC,Adult Social Care,Social Care Activities,Adult Services,Third Party Payments,Other establishments,27/03/19,6291269,2310,VENDOR,THE OUT OF TOWN CENTRE LIMITED,133198
Portsmouth City Council,PCC,Adult Social Care,Social Care Activities,Adult Services,Third Party Payments,Other establishments,27/03/19,6291269,4800,VENDOR,THE OUT OF TOWN CENTRE LIMITED,133198
Portsmouth City Council,PCC,Cultural and Related Services,Open Spaces,Culture & City Development,Supplies and Services,"Equipment, furniture and materials",22/03/19,6290245,85,VENDOR,PALMSTEAD NURSERIES LTD,135396
Portsmouth City Council,PCC,Cultural and Related Services,Open Spaces,Culture & City Development,Supplies and Services,"Equipment, furniture and materials",22/03/19,6290245,551,VENDOR,PALMSTEAD NURSERIES LTD,135396
Portsmouth City Council,PCC,Adult Social Care,Physical Support Older People (85+),Adult Services,Third Party Payments,Other establishments,12/03/19,6287897,180,VENDOR,JSM DAYCENTRES LTD T/AS AS THE LODGE,144000
Portsmouth City Council,PCC,Children's and Education Services,Safeguarding Children and Young Peoples Services,Children's Services and Education,Supplies and Services,Miscellaneous expenses,04/03/19,6286590,771,VENDOR,FREEDOM IOW LTD,110290
Portsmouth City Council,PCC,Adult Social Care,Learning Disability Support  Adults (18 - 64),Adult Services,Transport-Related Expenditure,Public transport,04/03/19,6286523,2194.2,VENDOR,AQUA CARS LIMITED,100011
Portsmouth City Council,PCC,Children's and Education Services,Safeguarding Children and Young Peoples Services,Children's Services and Education,Supplies and Services,Miscellaneous expenses,15/03/19,6288769,1340.4,VENDOR,FREEDOM IOW LTD,110290
Portsmouth City Council,PCC,Adult Social Care,Learning Disability Support  Adults (18 - 64),Adult Services,Transport-Related Expenditure,Public transport,11/03/19,6287644,2215.5,VENDOR,AQUA CARS LIMITED,100011
Portsmouth City Council,PCC,Adult Social Care,Physical Support Older People (85+),Adult Services,Third Party Payments,Other establishments,12/03/19,6287897,180,VENDOR,JSM DAYCENTRES LTD T/AS AS THE LODGE,144000
Portsmouth City Council,PCC,Adult Social Care,Learning Disability Support  Adults (18 - 64),Adult Services,Transport-Related Expenditure,Public transport,15/03/19,6288690,2115.4,VENDOR,AQUA CARS LIMITED,100011
Portsmouth City Council,PCC,Adult Social Care,Social Care Activities,Adult Services,Transport-Related Expenditure,Direct transport costs,15/03/19,6288690,11.8,VENDOR,AQUA CARS LIMITED,100011
Portsmouth City Council,PCC,Adult Social Care,Learning Disability Support  Adults (18 - 64),Adult Services,Transport-Related Expenditure,Public transport,25/03/19,6290331,2114.2,VENDOR,AQUA CARS LIMITED,100011
Portsmouth City Council,PCC,Adult Social Care,Social Care Activities,Adult Services,Transport-Related Expenditure,Direct transport costs,25/03/19,6290331,40.8,VENDOR,AQUA CARS LIMITED,100011
Portsmouth City Council,PCC,Central Services,Elections,Community & Communication,Supplies and Services,"Printing, stationery and general office expenses",26/03/19,6290633,1762.62,VENDOR,FINANCIAL DATA MANANGEMENT PLC,102246
Portsmouth City Council,PCC,Adult Social Care,Social Care Activities,Adult Services,Third Party Payments,Other establishments,15/03/19,6288689,760,VENDOR,AQUA CARS LIMITED,100011
Portsmouth City Council,PCC,Adult Social Care,Physical Support Older People (85+),Adult Services,Third Party Payments,Other establishments,12/03/19,6287897,315,VENDOR,JSM DAYCENTRES LTD T/AS AS THE LODGE,144000
Portsmouth City Council,PCC,Adult Social Care,Support with Memory and Cognition Older People (65 - 74),Adult Services,Supplies and Services,"Equipment, furniture and materials",06/03/19,6286802,23112.2,COMPANY,ALLSOP AND FRANCIS LIMITED,118132
Portsmouth City Council,PCC,Children's and Education Services,Children Looked After,Children's Services and Education,Transport-Related Expenditure,Direct transport costs,08/03/19,6287484,7431.2,VENDOR,AQUA CARS LIMITED,100011
Portsmouth City Council,PCC,Planning Services,Business support,Regeneration,Premises-Related Expenditure,"Repairs, alterations and maintenance of buildings",14/03/19,6288637,20.16,VENDOR,SIX DEGREES TECHNOLOGY GROUP LTD,137034
Portsmouth City Council,PCC,Planning Services,Business support,Regeneration,Premises-Related Expenditure,"Repairs, alterations and maintenance of buildings",14/03/19,6288637,37.32,VENDOR,SIX DEGREES TECHNOLOGY GROUP LTD,137034
Portsmouth City Council,PCC,Cultural and Related Services,Recreation and Sport,Culture & City Development,Premises-Related Expenditure,"Repairs, alterations and maintenance of buildings",14/03/19,6288637,37.32,VENDOR,SIX DEGREES TECHNOLOGY GROUP LTD,137034
Portsmouth City Council,PCC,Support Service / Transparency Costs Unallocated,LLM,"Housing, Neighbourhood and Building Services",Premises-Related Expenditure,"Repairs, alterations and maintenance of buildings",14/03/19,6288637,18.66,VENDOR,SIX DEGREES TECHNOLOGY GROUP LTD,137034
Portsmouth City Council,PCC,Support Service / Transparency Costs Unallocated,LLM,"Housing, Neighbourhood and Building Services",Premises-Related Expenditure,"Repairs, alterations and maintenance of buildings",14/03/19,6288637,57.48,VENDOR,SIX DEGREES TECHNOLOGY GROUP LTD,137034
Portsmouth City Council,PCC,Support Service / Transparency Costs Unallocated,LLM,"Housing, Neighbourhood and Building Services",Premises-Related Expenditure,"Repairs, alterations and maintenance of buildings",14/03/19,6288637,18.68,VENDOR,SIX DEGREES TECHNOLOGY GROUP LTD,137034
Portsmouth City Council,PCC,Support Service / Transparency Costs Unallocated,LLM,"Housing, Neighbourhood and Building Services",Premises-Related Expenditure,"Repairs, alterations and maintenance of buildings",14/03/19,6288637,18.68,VENDOR,SIX DEGREES TECHNOLOGY GROUP LTD,137034
Portsmouth City Council,PCC,Support Service / Transparency Costs Unallocated,LLM,"Housing, Neighbourhood and Building Services",Premises-Related Expenditure,"Repairs, alterations and maintenance of buildings",14/03/19,6288637,18.66,VENDOR,SIX DEGREES TECHNOLOGY GROUP LTD,137034
Portsmouth City Council,PCC,Support Service / Transparency Costs Unallocated,LLM,"Housing, Neighbourhood and Building Services",Premises-Related Expenditure,"Repairs, alterations and maintenance of buildings",14/03/19,6288637,40.32,VENDOR,SIX DEGREES TECHNOLOGY GROUP LTD,137034
Portsmouth City Council,PCC,Support Service / Transparency Costs Unallocated,LLM,"Housing, Neighbourhood and Building Services",Premises-Related Expenditure,"Repairs, alterations and maintenance of buildings",14/03/19,6288637,40.34,VENDOR,SIX DEGREES TECHNOLOGY GROUP LTD,137034
Portsmouth City Council,PCC,Support Service / Transparency Costs Unallocated,LLM,"Housing, Neighbourhood and Building Services",Premises-Related Expenditure,"Repairs, alterations and maintenance of buildings",14/03/19,6288637,20.16,VENDOR,SIX DEGREES TECHNOLOGY GROUP LTD,137034
Portsmouth City Council,PCC,Support Service / Transparency Costs Unallocated,LLM,"Housing, Neighbourhood and Building Services",Premises-Related Expenditure,"Repairs, alterations and maintenance of buildings",14/03/19,6288637,20.16,VENDOR,SIX DEGREES TECHNOLOGY GROUP LTD,137034
Portsmouth City Council,PCC,Support Service / Transparency Costs Unallocated,LLM,"Housing, Neighbourhood and Building Services",Premises-Related Expenditure,"Repairs, alterations and maintenance of buildings",14/03/19,6288637,20.17,VENDOR,SIX DEGREES TECHNOLOGY GROUP LTD,137034
Portsmouth City Council,PCC,Support Service / Transparency Costs Unallocated,LLM,"Housing, Neighbourhood and Building Services",Premises-Related Expenditure,"Repairs, alterations and maintenance of buildings",14/03/19,6288637,18.66,VENDOR,SIX DEGREES TECHNOLOGY GROUP LTD,137034
Portsmouth City Council,PCC,Support Service / Transparency Costs Unallocated,LLM,"Housing, Neighbourhood and Building Services",Premises-Related Expenditure,"Repairs, alterations and maintenance of buildings",14/03/19,6288637,18.66,VENDOR,SIX DEGREES TECHNOLOGY GROUP LTD,137034
Portsmouth City Council,PCC,Housing Revenue Account,Repairs and Maintenance,"Housing, Neighbourhood and Building Services",Premises-Related Expenditure,"Repairs, alterations and maintenance of buildings",14/03/19,6288637,1529.49,VENDOR,SIX DEGREES TECHNOLOGY GROUP LTD,137034
Portsmouth City Council,PCC,Children's and Education Services,Children Looked After,Children's Services and Education,Transport-Related Expenditure,Direct transport costs,15/03/19,6288689,52.8,VENDOR,AQUA CARS LIMITED,100011
Portsmouth City Council,PCC,Children's and Education Services,Children Looked After,Children's Services and Education,Transport-Related Expenditure,Direct transport costs,15/03/19,6288689,46.5,VENDOR,AQUA CARS LIMITED,100011
Portsmouth City Council,PCC,Adult Social Care,Physical Support Adults (18 - 64),Adult Services,Third Party Payments,Other establishments,15/03/19,6288689,60,VENDOR,AQUA CARS LIMITED,100011
Portsmouth City Council,PCC,Corporate and Democratic Core,Corporate Management,Community & Communication,Supplies and Services,Miscellaneous expenses,01/03/19,6286391,4236.22,VENDOR,GLOBAL RADIO SERVICES LIMITED,105043
Portsmouth City Council,PCC,Corporate and Democratic Core,Corporate Management,Community & Communication,Supplies and Services,Miscellaneous expenses,01/03/19,6286391,2725,VENDOR,GLOBAL RADIO SERVICES LIMITED,105043
Portsmouth City Council,PCC,Corporate and Democratic Core,Corporate Management,Community & Communication,Supplies and Services,Miscellaneous expenses,29/03/19,6291614,338.78,VENDOR,GLOBAL RADIO SERVICES LIMITED,105043
Portsmouth City Council,PCC,Environmental and Regulatory Services,Community Safety (Crime Reduction),"HR, Legal, Audit & Performance",Supplies and Services,Miscellaneous expenses,29/03/19,6291614,2370,VENDOR,GLOBAL RADIO SERVICES LIMITED,105043
Portsmouth City Council,PCC,Cultural and Related Services,Library Service,Culture & City Development,Supplies and Services,Grants and subscriptions,15/03/19,6288880,425,VENDOR,THE SOCIETY OF CHIEF LIBRARIANS,118214
Portsmouth City Council,PCC,Cultural and Related Services,Library Service,Culture & City Development,Supplies and Services,Grants and subscriptions,15/03/19,6288880,100,VENDOR,THE SOCIETY OF CHIEF LIBRARIANS,118214
Portsmouth City Council,PCC,Adult Social Care,Social Care Activities,Adult Services,Third Party Payments,Other establishments,15/03/19,6288689,18.8,VENDOR,AQUA CARS LIMITED,100011
Portsmouth City Council,PCC,Children's and Education Services,Special Schools,Children's Services and Education,Third Party Payments,Other establishments,08/03/19,6287610,11931.34,VENDOR,ST CATHERINES SCHOOL,103758
Portsmouth City Council,PCC,Children's and Education Services,Special Schools,Children's Services and Education,Third Party Payments,Private contractors,08/03/19,6287610,12058.34,VENDOR,ST CATHERINES SCHOOL,103758
Portsmouth City Council,PCC,Children's and Education Services,Special Schools,Children's Services and Education,Third Party Payments,Private contractors,08/03/19,6287610,12058.34,VENDOR,ST CATHERINES SCHOOL,103758
Portsmouth City Council,PCC,Housing Services,Homelessness,"Housing, Neighbourhood and Building Services",Premises-Related Expenditure,Rents,25/03/19,6290358,1800,SOLETRADER,Classified as 'personal data' (under the Data Protection Act 1998),139708
Portsmouth City Council,PCC,Housing Revenue Account,Repairs and Maintenance,"Housing, Neighbourhood and Building Services",Premises-Related Expenditure,"Repairs, alterations and maintenance of buildings",25/03/19,6290445,1876291.78,COMPANY,MOUNTJOY LIMITED,129869
Portsmouth City Council,PCC,Housing Revenue Account,Repairs and Maintenance,"Housing, Neighbourhood and Building Services",Premises-Related Expenditure,"Repairs, alterations and maintenance of buildings",27/03/19,6290776,1125532.95,COMPANY,COMSERV (UK) LIMITED,120542
Portsmouth City Council,PCC,Housing Revenue Account,Repairs and Maintenance,"Housing, Neighbourhood and Building Services",Premises-Related Expenditure,"Repairs, alterations and maintenance of buildings",29/03/19,6291654,159074.31,COMPANY,LIBERTY GAS GROUP LIMITED,134977
Portsmouth City Council,PCC,Housing Revenue Account,Repairs and Maintenance,"Housing, Neighbourhood and Building Services",Premises-Related Expenditure,"Repairs, alterations and maintenance of buildings",29/03/19,6291654,566444.5,COMPANY,LIBERTY GAS GROUP LIMITED,134977
Portsmouth City Council,PCC,Adult Social Care,Social Care Activities,Adult Services,Third Party Payments,Other establishments,25/03/19,6290479,186.31,VENDOR,SAFEGUARDING GP,137636
Portsmouth City Council,PCC,Adult Social Care,Social Care Activities,Adult Services,Third Party Payments,Other establishments,25/03/19,6290479,186.31,VENDOR,SAFEGUARDING GP,137636
Portsmouth City Council,PCC,Adult Social Care,Social Care Activities,Adult Services,Third Party Payments,Other establishments,25/03/19,6290479,217.1,VENDOR,SAFEGUARDING GP,137636
Portsmouth City Council,PCC,Adult Social Care,Physical Support Older People (85+),Adult Services,Third Party Payments,Other establishments,22/03/19,6290133,1817.06,VENDOR,AGINCARE UK,134367
Portsmouth City Council,PCC,Adult Social Care,Physical Support Older People (85+),Adult Services,Third Party Payments,Other establishments,25/03/19,6290324,1817.06,VENDOR,AGINCARE UK,134367
Portsmouth City Council,PCC,Adult Social Care,Commissioning & service delivery,Adult Services,Third Party Payments,Other establishments,26/03/19,6290546,4093.41,VENDOR,AGINCARE UK,134367
Portsmouth City Council,PCC,Adult Social Care,Commissioning & service delivery,Adult Services,Third Party Payments,Other establishments,26/03/19,6290546,22923.08,VENDOR,AGINCARE UK,134367
Portsmouth City Council,PCC,Housing Services,Private Sector Housing Renewal,"Housing, Neighbourhood and Building Services",Supplies and Services,Grants and subscriptions,06/03/19,6287263,-875,VENDOR,KEMP BUILDERS,135362
Portsmouth City Council,PCC,Other,Suspense and Capital Schemes,Capital - Housing GF,Capital Charges,REFCUS,06/03/19,6287263,14607.57,VENDOR,KEMP BUILDERS,135362
Portsmouth City Council,PCC,Housing Services,Private Sector Housing Renewal,"Housing, Neighbourhood and Building Services",Income,Other grants reimbursements and contributions,06/03/19,6287263,-2279.64,VENDOR,KEMP BUILDERS,135362
Portsmouth City Council,PCC,Other,Suspense and Capital Schemes,Capital - Housing GF,Capital Charges,REFCUS,06/03/19,6287263,7000,VENDOR,KEMP BUILDERS,135362
Portsmouth City Council,PCC,Housing Services,Private Sector Housing Renewal,"Housing, Neighbourhood and Building Services",Supplies and Services,Grants and subscriptions,13/03/19,6288453,-890,VENDOR,KEMP BUILDERS,135362
Portsmouth City Council,PCC,Other,Suspense and Capital Schemes,Capital - Housing GF,Capital Charges,REFCUS,13/03/19,6288453,13823.74,VENDOR,KEMP BUILDERS,135362
Portsmouth City Council,PCC,Housing Services,Private Sector Housing Renewal,"Housing, Neighbourhood and Building Services",Income,Other grants reimbursements and contributions,13/03/19,6288453,-2825.22,VENDOR,KEMP BUILDERS,135362
Portsmouth City Council,PCC,Other,Suspense and Capital Schemes,Capital - Housing GF,Capital Charges,REFCUS,20/03/19,6289939,4987.36,VENDOR,KEMP BUILDERS,135362
Portsmouth City Council,PCC,Housing Services,Private Sector Housing Renewal,"Housing, Neighbourhood and Building Services",Income,Other grants reimbursements and contributions,20/03/19,6289939,-445.3,VENDOR,KEMP BUILDERS,135362
Portsmouth City Council,PCC,Children's and Education Services,Other Children and Family Services,Children's Services and Education,Supplies and Services,Services,29/03/19,6291591,783.8,VENDOR,DUTTON GREGORY LLP,100743
Portsmouth City Council,PCC,Cultural and Related Services,Library Service,Culture & City Development,Third Party Payments,Private contractors,11/03/19,6287687,515.1,VENDOR,F J BLISSETTS & CO LTD,101395
Portsmouth City Council,PCC,Children's and Education Services,Children Looked After,Children's Services and Education,Third Party Payments,Other establishments,15/03/19,6288697,4185,VENDOR,BARFORD CHILDRENS SERVICES LIMITED,143811
Portsmouth City Council,PCC,Highways and Transport Services,"Airports, Harbours and Toll Facilities",Portsmouth International Port,Transport-Related Expenditure,Direct transport costs,07/03/19,6287442,8451.22,VENDOR,SGS UNITED KINGDOM LTD,105507
Portsmouth City Council,PCC,Children's and Education Services,Special Schools,Children's Services and Education,Third Party Payments,Other establishments,08/03/19,6287610,11931.34,VENDOR,ST CATHERINES SCHOOL,103758
Portsmouth City Council,PCC,Children's and Education Services,Special Schools,Children's Services and Education,Third Party Payments,Private contractors,08/03/19,6287610,12058.34,VENDOR,ST CATHERINES SCHOOL,103758
Portsmouth City Council,PCC,Children's and Education Services,Special Schools,Children's Services and Education,Third Party Payments,Private contractors,08/03/19,6287610,12058.34,VENDOR,ST CATHERINES SCHOOL,103758
Portsmouth City Council,PCC,Adult Social Care,Learning Disability Support  Adults (18 - 64),Adult Services,Premises-Related Expenditure,Cleaning and domestic supplies,22/03/19,6290244,4872.85,VENDOR,NVIRO LTD,124507
Portsmouth City Council,PCC,Adult Social Care,Learning Disability Support  Adults (18 - 64),Adult Services,Premises-Related Expenditure,Cleaning and domestic supplies,22/03/19,6290244,4872.85,VENDOR,NVIRO LTD,124507
Portsmouth City Council,PCC,Housing Revenue Account,Repairs and Maintenance,"Housing, Neighbourhood and Building Services",Premises-Related Expenditure,Energy costs,01/03/19,6286478,10.72,COMPANY,SSE PLC (SCOTTISH AND SOUTHERN ENERGY PLC),100303
Portsmouth City Council,PCC,Support Service / Transparency Costs Unallocated,Personnel,"HR, Legal, Audit & Performance",Employees,Direct employee expenses,01/03/19,6286455,42.66,VENDOR,RMC EMEA LIMITED,122070
Portsmouth City Council,PCC,Support Service / Transparency Costs Unallocated,Personnel,"HR, Legal, Audit & Performance",Employees,Direct employee expenses,01/03/19,6286455,42.66,VENDOR,RMC EMEA LIMITED,122070
Portsmouth City Council,PCC,Support Service / Transparency Costs Unallocated,Personnel,"HR, Legal, Audit & Performance",Employees,Direct employee expenses,01/03/19,6286455,42.66,VENDOR,RMC EMEA LIMITED,122070
Portsmouth City Council,PCC,Support Service / Transparency Costs Unallocated,Personnel,"HR, Legal, Audit & Performance",Employees,Direct employee expenses,01/03/19,6286455,42.66,VENDOR,RMC EMEA LIMITED,122070
Portsmouth City Council,PCC,Support Service / Transparency Costs Unallocated,Personnel,"HR, Legal, Audit & Performance",Employees,Direct employee expenses,01/03/19,6286455,42.66,VENDOR,RMC EMEA LIMITED,122070
Portsmouth City Council,PCC,Children's and Education Services,Other Children and Family Services,Children's Services and Education,Employees,Direct employee expenses,01/03/19,6286455,64,VENDOR,RMC EMEA LIMITED,122070
Portsmouth City Council,PCC,Children's and Education Services,Other Children and Family Services,Children's Services and Education,Employees,Direct employee expenses,01/03/19,6286455,64,VENDOR,RMC EMEA LIMITED,122070
Portsmouth City Council,PCC,Children's and Education Services,Other Children and Family Services,Children's Services and Education,Employees,Direct employee expenses,01/03/19,6286455,64,VENDOR,RMC EMEA LIMITED,122070
Portsmouth City Council,PCC,Children's and Education Services,Other Children and Family Services,Children's Services and Education,Employees,Direct employee expenses,01/03/19,6286455,64,VENDOR,RMC EMEA LIMITED,122070
Portsmouth City Council,PCC,Children's and Education Services,Other Education and Community Budget,Children's Services and Education,Employees,Direct employee expenses,01/03/19,6286455,42.66,VENDOR,RMC EMEA LIMITED,122070
Portsmouth City Council,PCC,Children's and Education Services,Other Education and Community Budget,Children's Services and Education,Employees,Direct employee expenses,01/03/19,6286455,42.66,VENDOR,RMC EMEA LIMITED,122070
Portsmouth City Council,PCC,Support Service / Transparency Costs Unallocated,Personnel,"HR, Legal, Audit & Performance",Employees,Direct employee expenses,01/03/19,6286455,42.66,VENDOR,RMC EMEA LIMITED,122070
Portsmouth City Council,PCC,Support Service / Transparency Costs Unallocated,Personnel,"HR, Legal, Audit & Performance",Employees,Direct employee expenses,01/03/19,6286455,64,VENDOR,RMC EMEA LIMITED,122070
Portsmouth City Council,PCC,Adult Social Care,Commissioning & service delivery,Adult Services,Employees,Direct employee expenses,01/03/19,6286455,42.66,VENDOR,RMC EMEA LIMITED,122070
Portsmouth City Council,PCC,Adult Social Care,Commissioning & service delivery,Adult Services,Employees,Direct employee expenses,01/03/19,6286455,42.66,VENDOR,RMC EMEA LIMITED,122070
Portsmouth City Council,PCC,Adult Social Care,Commissioning & service delivery,Adult Services,Employees,Direct employee expenses,01/03/19,6286455,42.66,VENDOR,RMC EMEA LIMITED,122070
Portsmouth City Council,PCC,Adult Social Care,Commissioning & service delivery,Adult Services,Employees,Direct employee expenses,01/03/19,6286455,42.66,VENDOR,RMC EMEA LIMITED,122070
Portsmouth City Council,PCC,Support Service / Transparency Costs Unallocated,Personnel,"HR, Legal, Audit & Performance",Employees,Direct employee expenses,01/03/19,6286455,64,VENDOR,RMC EMEA LIMITED,122070
Portsmouth City Council,PCC,Support Service / Transparency Costs Unallocated,Personnel,"HR, Legal, Audit & Performance",Employees,Direct employee expenses,01/03/19,6286455,64,VENDOR,RMC EMEA LIMITED,122070
Portsmouth City Council,PCC,Adult Social Care,Learning Disability Support  Adults (18 - 64),Adult Services,Premises-Related Expenditure,Cleaning and domestic supplies,22/03/19,6290244,4872.85,VENDOR,NVIRO LTD,124507
Portsmouth City Council,PCC,Other,Suspense and Capital Schemes,"HR, Legal, Audit & Performance",Employees,Direct employee expenses,29/03/19,6291710,733.4,VENDOR,RMC EMEA LIMITED,122070
Portsmouth City Council,PCC,Support Service / Transparency Costs Unallocated,Personnel,"HR, Legal, Audit & Performance",Employees,Direct employee expenses,28/03/19,6291444,481.85,VENDOR,RMC EMEA LIMITED,122070
Portsmouth City Council,PCC,Support Service / Transparency Costs Unallocated,Personnel,"HR, Legal, Audit & Performance",Employees,Direct employee expenses,29/03/19,6291710,165.36,VENDOR,RMC EMEA LIMITED,122070
Portsmouth City Council,PCC,Support Service / Transparency Costs Unallocated,Personnel,"HR, Legal, Audit & Performance",Employees,Direct employee expenses,28/03/19,6291444,127.98,VENDOR,RMC EMEA LIMITED,122070
Portsmouth City Council,PCC,Support Service / Transparency Costs Unallocated,Personnel,"HR, Legal, Audit & Performance",Employees,Direct employee expenses,28/03/19,6291444,127.98,VENDOR,RMC EMEA LIMITED,122070
Portsmouth City Council,PCC,Support Service / Transparency Costs Unallocated,Personnel,"HR, Legal, Audit & Performance",Employees,Direct employee expenses,28/03/19,6291444,128,VENDOR,RMC EMEA LIMITED,122070
Portsmouth City Council,PCC,Support Service / Transparency Costs Unallocated,Personnel,"HR, Legal, Audit & Performance",Employees,Direct employee expenses,28/03/19,6291444,64,VENDOR,RMC EMEA LIMITED,122070
Portsmouth City Council,PCC,Other,Suspense and Capital Schemes,Capital - Environment,Capital Charges,Capital Expenditure (WIP),29/03/19,6291676,2033.4,VENDOR,NATURAL ENGLAND,118047
Portsmouth City Council,PCC,Adult Social Care,Learning Disability Support  Adults (18 - 64),Adult Services,Premises-Related Expenditure,Cleaning and domestic supplies,22/03/19,6290244,267.68,VENDOR,NVIRO LTD,124507
Portsmouth City Council,PCC,Adult Social Care,Learning Disability Support  Adults (18 - 64),Adult Services,Supplies and Services,"Clothes, uniform and laundry",22/03/19,6290244,348.56,VENDOR,NVIRO LTD,124507
Portsmouth City Council,PCC,Children's and Education Services,Family Support Services,Children's Services and Education,Third Party Payments,Other establishments,04/03/19,6286624,110.79,VENDOR,PREPAID FINANCIAL SERVICES,137139
Portsmouth City Council,PCC,Children's and Education Services,Other Education and Community Budget,Children's Services and Education,Third Party Payments,Other establishments,04/03/19,6286624,60.82,VENDOR,PREPAID FINANCIAL SERVICES,137139
Portsmouth City Council,PCC,Children's and Education Services,Other Education and Community Budget,Children's Services and Education,Third Party Payments,Other establishments,04/03/19,6286624,29.32,VENDOR,PREPAID FINANCIAL SERVICES,137139
Portsmouth City Council,PCC,Children's and Education Services,Other Education and Community Budget,Children's Services and Education,Third Party Payments,Other establishments,04/03/19,6286624,728.85,VENDOR,PREPAID FINANCIAL SERVICES,137139
Portsmouth City Council,PCC,Support Service / Transparency Costs Unallocated,Financial Services,Finance & IT,Third Party Payments,Other establishments,04/03/19,6286624,46.09,VENDOR,PREPAID FINANCIAL SERVICES,137139
Portsmouth City Council,PCC,Adult Social Care,Physical Support Adults (18 - 64),Adult Services,Third Party Payments,Other establishments,04/03/19,6286624,1372.16,VENDOR,PREPAID FINANCIAL SERVICES,137139
Portsmouth City Council,PCC,Highways and Transport Services,"Airports, Harbours and Toll Facilities",Portsmouth International Port,Premises-Related Expenditure,Cleaning and domestic supplies,28/03/19,6291425,8514.06,VENDOR,NVIRO LTD,124507
Portsmouth City Council,PCC,Highways and Transport Services,"Airports, Harbours and Toll Facilities",Portsmouth International Port,Premises-Related Expenditure,Cleaning and domestic supplies,28/03/19,6291425,8514.07,VENDOR,NVIRO LTD,124507
Portsmouth City Council,PCC,Highways and Transport Services,"Airports, Harbours and Toll Facilities",Portsmouth International Port,Premises-Related Expenditure,Cleaning and domestic supplies,28/03/19,6291425,2167,VENDOR,NVIRO LTD,124507
Portsmouth City Council,PCC,Adult Social Care,Learning Disability Support  Adults (18 - 64),Adult Services,Premises-Related Expenditure,Cleaning and domestic supplies,22/03/19,6290244,59.76,VENDOR,NVIRO LTD,124507
Portsmouth City Council,PCC,Adult Social Care,Learning Disability Support  Adults (18 - 64),Adult Services,Supplies and Services,"Clothes, uniform and laundry",22/03/19,6290244,262.56,VENDOR,NVIRO LTD,124507
Portsmouth City Council,PCC,Housing Services,Homelessness,"Housing, Neighbourhood and Building Services",Premises-Related Expenditure,Rents,25/03/19,6290450,1800,SOLETRADER,Classified as 'personal data' (under the Data Protection Act 1998),138874
Portsmouth City Council,PCC,Housing Services,Homelessness,"Housing, Neighbourhood and Building Services",Premises-Related Expenditure,Rents,25/03/19,6290416,2490,SOLETRADER,Classified as 'personal data' (under the Data Protection Act 1998),135979
Portsmouth City Council,PCC,Adult Social Care,Learning Disability Support  Adults (18 - 64),Adult Services,Third Party Payments,Other establishments,18/03/19,6288939,798,SOLETRADER,Classified as 'personal data' (under the Data Protection Act 1998),107999
Portsmouth City Council,PCC,Environmental and Regulatory Services,Regulatory Services,Culture & City Development,Supplies and Services,"Equipment, furniture and materials",08/03/19,6287577,662.37,VENDOR,PELSIS LIMITED,133905
Portsmouth City Council,PCC,Children's and Education Services,Special Schools,Children's Services and Education,Third Party Payments,Other establishments,13/03/19,6288492,12295.34,VENDOR,ST CATHERINES SCHOOL,103758
Portsmouth City Council,PCC,Children's and Education Services,Special Schools,Children's Services and Education,Third Party Payments,Other establishments,13/03/19,6288492,12166.34,VENDOR,ST CATHERINES SCHOOL,103758
Portsmouth City Council,PCC,Children's and Education Services,Special Schools,Children's Services and Education,Third Party Payments,Other establishments,13/03/19,6288492,12295.34,VENDOR,ST CATHERINES SCHOOL,103758
Portsmouth City Council,PCC,Housing Revenue Account,Special Services,"Housing, Neighbourhood and Building Services",Premises-Related Expenditure,Water Services,01/03/19,6286477,309.44,VENDOR,SOUTHERN WATER,100254
Portsmouth City Council,PCC,Highways and Transport Services,"Airports, Harbours and Toll Facilities",Portsmouth International Port,Employees,Direct employee expenses,21/03/19,6290024,825,VENDOR,BRIAN SCADDAN ASSOCIATES LTD,119241
Portsmouth City Council,PCC,Support Service / Transparency Costs Unallocated,AMS,Regeneration,Employees,Direct employee expenses,05/03/19,6286792,2230,VENDOR,UNIVERSITY OF PORTSMOUTH,100269
Portsmouth City Council,PCC,Other,Suspense and Capital Schemes,Capital - Housing GF,Capital Charges,REFCUS,27/03/19,6291261,7329.3,COMPANY,TERRY GROUP LTD,115596
Portsmouth City Council,PCC,Housing Services,Private Sector Housing Renewal,"Housing, Neighbourhood and Building Services",Income,Other grants reimbursements and contributions,27/03/19,6291261,-723.25,COMPANY,TERRY GROUP LTD,115596
Portsmouth City Council,PCC,Environmental and Regulatory Services,Regulatory Services,Culture & City Development,Third Party Payments,Private contractors,01/03/19,6286290,154.5,VENDOR,ADAMS MOREY LTD,100446
Portsmouth City Council,PCC,Environmental and Regulatory Services,Regulatory Services,Culture & City Development,Third Party Payments,Private contractors,01/03/19,6286290,225,VENDOR,ADAMS MOREY LTD,100446
Portsmouth City Council,PCC,Environmental and Regulatory Services,Regulatory Services,Culture & City Development,Third Party Payments,Private contractors,01/03/19,6286290,309,VENDOR,ADAMS MOREY LTD,100446
Portsmouth City Council,PCC,Environmental and Regulatory Services,Regulatory Services,Culture & City Development,Third Party Payments,Private contractors,01/03/19,6286290,832.5,VENDOR,ADAMS MOREY LTD,100446
Portsmouth City Council,PCC,Environmental and Regulatory Services,Regulatory Services,Culture & City Development,Third Party Payments,Private contractors,01/03/19,6286290,434.5,VENDOR,ADAMS MOREY LTD,100446
Portsmouth City Council,PCC,Environmental and Regulatory Services,Regulatory Services,Culture & City Development,Third Party Payments,Private contractors,01/03/19,6286290,855,VENDOR,ADAMS MOREY LTD,100446
Portsmouth City Council,PCC,Environmental and Regulatory Services,Regulatory Services,Culture & City Development,Third Party Payments,Private contractors,01/03/19,6286290,244.5,VENDOR,ADAMS MOREY LTD,100446
Portsmouth City Council,PCC,Environmental and Regulatory Services,Regulatory Services,Culture & City Development,Third Party Payments,Private contractors,01/03/19,6286290,1102.5,VENDOR,ADAMS MOREY LTD,100446
Portsmouth City Council,PCC,Environmental and Regulatory Services,Regulatory Services,Culture & City Development,Third Party Payments,Private contractors,01/03/19,6286290,280,VENDOR,ADAMS MOREY LTD,100446
Portsmouth City Council,PCC,Environmental and Regulatory Services,Regulatory Services,Culture & City Development,Third Party Payments,Private contractors,01/03/19,6286290,967.5,VENDOR,ADAMS MOREY LTD,100446
Portsmouth City Council,PCC,Environmental and Regulatory Services,Regulatory Services,Culture & City Development,Third Party Payments,Private contractors,15/03/19,6288681,354,VENDOR,ADAMS MOREY LTD,100446
Portsmouth City Council,PCC,Environmental and Regulatory Services,Regulatory Services,Culture & City Development,Third Party Payments,Private contractors,15/03/19,6288681,1417.5,VENDOR,ADAMS MOREY LTD,100446
Portsmouth City Council,PCC,Environmental and Regulatory Services,Regulatory Services,Culture & City Development,Third Party Payments,Private contractors,15/03/19,6288681,354,VENDOR,ADAMS MOREY LTD,100446
Portsmouth City Council,PCC,Environmental and Regulatory Services,Regulatory Services,Culture & City Development,Third Party Payments,Private contractors,15/03/19,6288681,1597.5,VENDOR,ADAMS MOREY LTD,100446
Portsmouth City Council,PCC,Environmental and Regulatory Services,Regulatory Services,Culture & City Development,Third Party Payments,Private contractors,15/03/19,6288681,206,VENDOR,ADAMS MOREY LTD,100446
Portsmouth City Council,PCC,Environmental and Regulatory Services,Regulatory Services,Culture & City Development,Third Party Payments,Private contractors,15/03/19,6288681,1215,VENDOR,ADAMS MOREY LTD,100446
Portsmouth City Council,PCC,Children's and Education Services,Special Schools,Children's Services and Education,Third Party Payments,Other establishments,13/03/19,6288492,12295.34,VENDOR,ST CATHERINES SCHOOL,103758
Portsmouth City Council,PCC,Children's and Education Services,Special Schools,Children's Services and Education,Third Party Payments,Other establishments,13/03/19,6288492,12166.34,VENDOR,ST CATHERINES SCHOOL,103758
Portsmouth City Council,PCC,Highways and Transport Services,Parking Services,Regeneration,Supplies and Services,Communications and computing,20/03/19,6289524,2760,COMPANY,CALE ACCESS UK LTD,100591
Portsmouth City Council,PCC,Highways and Transport Services,Parking Services,Regeneration,Supplies and Services,Communications and computing,20/03/19,6289524,11040,COMPANY,CALE ACCESS UK LTD,100591
Portsmouth City Council,PCC,Highways and Transport Services,Parking Services,Regeneration,Supplies and Services,"Equipment, furniture and materials",29/03/19,6291534,1020.15,COMPANY,CALE ACCESS UK LTD,100591
Portsmouth City Council,PCC,Highways and Transport Services,Parking Services,Regeneration,Supplies and Services,"Printing, stationery and general office expenses",29/03/19,6291534,16,COMPANY,CALE ACCESS UK LTD,100591
Portsmouth City Council,PCC,Cultural and Related Services,Tourism,Culture & City Development,Supplies and Services,"Printing, stationery and general office expenses",06/03/19,6287248,17158,VENDOR,HOLBROOKS PRINTERS LTD,100893
Portsmouth City Council,PCC,Cultural and Related Services,Tourism,Culture & City Development,Supplies and Services,"Printing, stationery and general office expenses",06/03/19,6287248,15563,VENDOR,HOLBROOKS PRINTERS LTD,100893
Portsmouth City Council,PCC,Highways and Transport Services,"Airports, Harbours and Toll Facilities",Portsmouth International Port,Transport-Related Expenditure,Direct transport costs,07/03/19,6287452,2665.13,VENDOR,SOUTHERN MARITIME SERVICES LIMITED,120765
Portsmouth City Council,PCC,Highways and Transport Services,"Airports, Harbours and Toll Facilities",Portsmouth International Port,Third Party Payments,Private contractors,28/03/19,6291464,4103.55,VENDOR,SOUTHERN MARITIME SERVICES LIMITED,120765
Portsmouth City Council,PCC,Highways and Transport Services,"Airports, Harbours and Toll Facilities",Portsmouth International Port,Third Party Payments,Private contractors,28/03/19,6291464,2680.96,VENDOR,SOUTHERN MARITIME SERVICES LIMITED,120765
Portsmouth City Council,PCC,Highways and Transport Services,"Airports, Harbours and Toll Facilities",Portsmouth International Port,Third Party Payments,Private contractors,28/03/19,6291464,2893.81,VENDOR,SOUTHERN MARITIME SERVICES LIMITED,120765
Portsmouth City Council,PCC,Corporate and Democratic Core,Corporate Management,Community & Communication,Supplies and Services,"Printing, stationery and general office expenses",15/03/19,6288777,109.4,VENDOR,HOLBROOKS PRINTERS LTD,100893
Portsmouth City Council,PCC,Corporate and Democratic Core,Corporate Management,Community & Communication,Supplies and Services,"Printing, stationery and general office expenses",15/03/19,6288777,2549.6,VENDOR,HOLBROOKS PRINTERS LTD,100893
Portsmouth City Council,PCC,Public Health,Miscellaneous Public Services,Public Health,Third Party Payments,Other establishments,27/03/19,6291263,6625,VENDOR,THE BREASTFEEDING NETWORK,131434
Portsmouth City Council,PCC,Cultural and Related Services,Recreation and Sport,Culture & City Development,Supplies and Services,"Equipment, furniture and materials",27/03/19,6290773,378,VENDOR,CMW EQUIPMENT HOLDINGS LTD,134444
Portsmouth City Council,PCC,Cultural and Related Services,Recreation and Sport,Culture & City Development,Supplies and Services,"Equipment, furniture and materials",27/03/19,6290773,112,VENDOR,CMW EQUIPMENT HOLDINGS LTD,134444
Portsmouth City Council,PCC,Cultural and Related Services,Recreation and Sport,Culture & City Development,Supplies and Services,"Equipment, furniture and materials",27/03/19,6290773,71.4,VENDOR,CMW EQUIPMENT HOLDINGS LTD,134444
Portsmouth City Council,PCC,Cultural and Related Services,Recreation and Sport,Culture & City Development,Supplies and Services,"Equipment, furniture and materials",27/03/19,6290773,15.4,VENDOR,CMW EQUIPMENT HOLDINGS LTD,134444
Portsmouth City Council,PCC,Cultural and Related Services,Recreation and Sport,Culture & City Development,Supplies and Services,"Equipment, furniture and materials",27/03/19,6290773,71.4,VENDOR,CMW EQUIPMENT HOLDINGS LTD,134444
Portsmouth City Council,PCC,Cultural and Related Services,Recreation and Sport,Culture & City Development,Supplies and Services,"Equipment, furniture and materials",27/03/19,6290773,109,VENDOR,CMW EQUIPMENT HOLDINGS LTD,134444
Portsmouth City Council,PCC,Cultural and Related Services,Recreation and Sport,Culture & City Development,Supplies and Services,"Equipment, furniture and materials",27/03/19,6290773,117,VENDOR,CMW EQUIPMENT HOLDINGS LTD,134444
Portsmouth City Council,PCC,Cultural and Related Services,Recreation and Sport,Culture & City Development,Supplies and Services,"Equipment, furniture and materials",27/03/19,6290773,53.7,VENDOR,CMW EQUIPMENT HOLDINGS LTD,134444
Portsmouth City Council,PCC,Cultural and Related Services,Recreation and Sport,Culture & City Development,Supplies and Services,"Equipment, furniture and materials",27/03/19,6290773,500,VENDOR,CMW EQUIPMENT HOLDINGS LTD,134444
Portsmouth City Council,PCC,Cultural and Related Services,Recreation and Sport,Culture & City Development,Supplies and Services,"Equipment, furniture and materials",27/03/19,6290773,79,VENDOR,CMW EQUIPMENT HOLDINGS LTD,134444
Portsmouth City Council,PCC,Cultural and Related Services,Recreation and Sport,Culture & City Development,Supplies and Services,"Equipment, furniture and materials",27/03/19,6290773,182,VENDOR,CMW EQUIPMENT HOLDINGS LTD,134444
Portsmouth City Council,PCC,Housing Services,Homelessness,"Housing, Neighbourhood and Building Services",Premises-Related Expenditure,Rents,25/03/19,6290482,1890,SOLETRADER,Classified as 'personal data' (under the Data Protection Act 1998),139696
Portsmouth City Council,PCC,Other,Suspense and Capital Schemes,Finance & IT,Transport-Related Expenditure,Contract hire and operating leases,07/03/19,6287472,2023.01,VENDOR,TUSKERDIRECT LIMITED,141146
Portsmouth City Council,PCC,Other,Suspense and Capital Schemes,Finance & IT,Supplies and Services,Miscellaneous expenses,07/03/19,6287472,587.32,VENDOR,TUSKERDIRECT LIMITED,141146
Portsmouth City Council,PCC,Other,Suspense and Capital Schemes,Finance & IT,Financing Costs,Interest Payments,07/03/19,6287472,434.84,VENDOR,TUSKERDIRECT LIMITED,141146
Portsmouth City Council,PCC,Other,Suspense and Capital Schemes,Finance & IT,Financing Costs,Interest Payments,07/03/19,6287472,1705.52,VENDOR,TUSKERDIRECT LIMITED,141146
Portsmouth City Council,PCC,Other,Suspense and Capital Schemes,Finance & IT,Financing Costs,Interest Payments,07/03/19,6287472,2642.83,VENDOR,TUSKERDIRECT LIMITED,141146
Portsmouth City Council,PCC,Children's and Education Services,Children Looked After,Children's Services and Education,Third Party Payments,Other establishments,20/03/19,6289517,3147.16,VENDOR,BARNARDO SERVICES LTD,107155
Portsmouth City Council,PCC,Housing Revenue Account,Special Services,"Housing, Neighbourhood and Building Services",Employees,Direct employee expenses,01/03/19,6286495,3582.26,VENDOR,THE PORTSMOUTH SITTING SERVICE AND COMMUNITY CARE SERVICES LTD T/A ASSURED CARE,100201
Portsmouth City Council,PCC,Adult Social Care,Social Care Activities,Adult Services,Third Party Payments,Other establishments,15/03/19,6288878,506.88,VENDOR,THE PORTSMOUTH SITTING SERVICE AND COMMUNITY CARE SERVICES LTD T/A ASSURED CARE,100201
Portsmouth City Council,PCC,Adult Social Care,Social Care Activities,Adult Services,Third Party Payments,Other establishments,15/03/19,6288878,458.08,VENDOR,THE PORTSMOUTH SITTING SERVICE AND COMMUNITY CARE SERVICES LTD T/A ASSURED CARE,100201
Portsmouth City Council,PCC,Adult Social Care,Social Support - Support for Carer,Adult Services,Third Party Payments,Other establishments,15/03/19,6288878,253.44,VENDOR,THE PORTSMOUTH SITTING SERVICE AND COMMUNITY CARE SERVICES LTD T/A ASSURED CARE,100201
Portsmouth City Council,PCC,Adult Social Care,Social Support - Support for Carer,Adult Services,Third Party Payments,Other establishments,15/03/19,6288878,281.6,VENDOR,THE PORTSMOUTH SITTING SERVICE AND COMMUNITY CARE SERVICES LTD T/A ASSURED CARE,100201
Portsmouth City Council,PCC,Adult Social Care,Social Support - Support for Carer,Adult Services,Third Party Payments,Other establishments,15/03/19,6288878,281.6,VENDOR,THE PORTSMOUTH SITTING SERVICE AND COMMUNITY CARE SERVICES LTD T/A ASSURED CARE,100201
Portsmouth City Council,PCC,Adult Social Care,Social Support - Support for Carer,Adult Services,Third Party Payments,Other establishments,15/03/19,6288878,35.2,VENDOR,THE PORTSMOUTH SITTING SERVICE AND COMMUNITY CARE SERVICES LTD T/A ASSURED CARE,100201
Portsmouth City Council,PCC,Adult Social Care,Social Support - Support for Carer,Adult Services,Third Party Payments,Other establishments,15/03/19,6288878,28.16,VENDOR,THE PORTSMOUTH SITTING SERVICE AND COMMUNITY CARE SERVICES LTD T/A ASSURED CARE,100201
Portsmouth City Council,PCC,Adult Social Care,Physical Support Adults (18 - 64),Adult Services,Third Party Payments,Other establishments,15/03/19,6288878,621.68,VENDOR,THE PORTSMOUTH SITTING SERVICE AND COMMUNITY CARE SERVICES LTD T/A ASSURED CARE,100201
Portsmouth City Council,PCC,Adult Social Care,Physical Support Older People (85+),Adult Services,Third Party Payments,Other establishments,15/03/19,6288878,687.12,VENDOR,THE PORTSMOUTH SITTING SERVICE AND COMMUNITY CARE SERVICES LTD T/A ASSURED CARE,100201
Portsmouth City Council,PCC,Adult Social Care,Social Support - Support for Carer,Adult Services,Third Party Payments,Other establishments,15/03/19,6288878,239.76,VENDOR,THE PORTSMOUTH SITTING SERVICE AND COMMUNITY CARE SERVICES LTD T/A ASSURED CARE,100201
Portsmouth City Council,PCC,Adult Social Care,Social Support - Support for Carer,Adult Services,Third Party Payments,Other establishments,15/03/19,6288878,168.96,VENDOR,THE PORTSMOUTH SITTING SERVICE AND COMMUNITY CARE SERVICES LTD T/A ASSURED CARE,100201
Portsmouth City Council,PCC,Adult Social Care,Physical Support Older People (85+),Adult Services,Third Party Payments,Other establishments,15/03/19,6288878,830.27,VENDOR,THE PORTSMOUTH SITTING SERVICE AND COMMUNITY CARE SERVICES LTD T/A ASSURED CARE,100201
Portsmouth City Council,PCC,Adult Social Care,Physical Support Older People (85+),Adult Services,Third Party Payments,Other establishments,15/03/19,6288878,542.09,VENDOR,THE PORTSMOUTH SITTING SERVICE AND COMMUNITY CARE SERVICES LTD T/A ASSURED CARE,100201
Portsmouth City Council,PCC,Adult Social Care,Physical Support Older People (85+),Adult Services,Third Party Payments,Other establishments,15/03/19,6288878,130.88,VENDOR,THE PORTSMOUTH SITTING SERVICE AND COMMUNITY CARE SERVICES LTD T/A ASSURED CARE,100201
Portsmouth City Council,PCC,Adult Social Care,Physical Support Older People (85+),Adult Services,Third Party Payments,Other establishments,15/03/19,6288878,687.12,VENDOR,THE PORTSMOUTH SITTING SERVICE AND COMMUNITY CARE SERVICES LTD T/A ASSURED CARE,100201
Portsmouth City Council,PCC,Adult Social Care,Physical Support Older People (85+),Adult Services,Third Party Payments,Other establishments,15/03/19,6288878,281.6,VENDOR,THE PORTSMOUTH SITTING SERVICE AND COMMUNITY CARE SERVICES LTD T/A ASSURED CARE,100201
Portsmouth City Council,PCC,Adult Social Care,Social Support - Support for Carer,Adult Services,Third Party Payments,Other establishments,15/03/19,6288878,212.34,VENDOR,THE PORTSMOUTH SITTING SERVICE AND COMMUNITY CARE SERVICES LTD T/A ASSURED CARE,100201
Portsmouth City Council,PCC,Adult Social Care,Physical Support Older People (85+),Adult Services,Third Party Payments,Other establishments,15/03/19,6288878,376.28,VENDOR,THE PORTSMOUTH SITTING SERVICE AND COMMUNITY CARE SERVICES LTD T/A ASSURED CARE,100201
Portsmouth City Council,PCC,Adult Social Care,Social Support - Support for Carer,Adult Services,Third Party Payments,Other establishments,15/03/19,6288878,84.48,VENDOR,THE PORTSMOUTH SITTING SERVICE AND COMMUNITY CARE SERVICES LTD T/A ASSURED CARE,100201
Portsmouth City Council,PCC,Adult Social Care,Physical Support Older People (85+),Adult Services,Third Party Payments,Other establishments,15/03/19,6288878,98.16,VENDOR,THE PORTSMOUTH SITTING SERVICE AND COMMUNITY CARE SERVICES LTD T/A ASSURED CARE,100201
Portsmouth City Council,PCC,Adult Social Care,Social Support - Support for Carer,Adult Services,Third Party Payments,Other establishments,15/03/19,6288878,225.28,VENDOR,THE PORTSMOUTH SITTING SERVICE AND COMMUNITY CARE SERVICES LTD T/A ASSURED CARE,100201
Portsmouth City Council,PCC,Adult Social Care,Physical Support Older People (85+),Adult Services,Third Party Payments,Other establishments,15/03/19,6288878,380.37,VENDOR,THE PORTSMOUTH SITTING SERVICE AND COMMUNITY CARE SERVICES LTD T/A ASSURED CARE,100201
Portsmouth City Council,PCC,Adult Social Care,Physical Support Older People (85+),Adult Services,Third Party Payments,Other establishments,15/03/19,6288878,12.27,VENDOR,THE PORTSMOUTH SITTING SERVICE AND COMMUNITY CARE SERVICES LTD T/A ASSURED CARE,100201
Portsmouth City Council,PCC,Adult Social Care,Physical Support Older People (85+),Adult Services,Third Party Payments,Other establishments,15/03/19,6288878,229.04,VENDOR,THE PORTSMOUTH SITTING SERVICE AND COMMUNITY CARE SERVICES LTD T/A ASSURED CARE,100201
Portsmouth City Council,PCC,Adult Social Care,Physical Support Older People (85+),Adult Services,Third Party Payments,Other establishments,15/03/19,6288878,65.44,VENDOR,THE PORTSMOUTH SITTING SERVICE AND COMMUNITY CARE SERVICES LTD T/A ASSURED CARE,100201
Portsmouth City Council,PCC,Adult Social Care,Physical Support Older People (85+),Adult Services,Third Party Payments,Other establishments,15/03/19,6288878,1104.3,VENDOR,THE PORTSMOUTH SITTING SERVICE AND COMMUNITY CARE SERVICES LTD T/A ASSURED CARE,100201
Portsmouth City Council,PCC,Adult Social Care,Physical Support Older People (85+),Adult Services,Third Party Payments,Other establishments,15/03/19,6288878,32.72,VENDOR,THE PORTSMOUTH SITTING SERVICE AND COMMUNITY CARE SERVICES LTD T/A ASSURED CARE,100201
Portsmouth City Council,PCC,Adult Social Care,Physical Support Older People (85+),Adult Services,Third Party Payments,Other establishments,15/03/19,6288878,65.44,VENDOR,THE PORTSMOUTH SITTING SERVICE AND COMMUNITY CARE SERVICES LTD T/A ASSURED CARE,100201
Portsmouth City Council,PCC,Adult Social Care,Mental Health Support Older People (65 - 74),Adult Services,Third Party Payments,Other establishments,15/03/19,6288878,417.18,VENDOR,THE PORTSMOUTH SITTING SERVICE AND COMMUNITY CARE SERVICES LTD T/A ASSURED CARE,100201
Portsmouth City Council,PCC,Adult Social Care,Social Support - Support for Carer,Adult Services,Third Party Payments,Other establishments,15/03/19,6288878,211.2,VENDOR,THE PORTSMOUTH SITTING SERVICE AND COMMUNITY CARE SERVICES LTD T/A ASSURED CARE,100201
Portsmouth City Council,PCC,Adult Social Care,Physical Support Older People (85+),Adult Services,Third Party Payments,Other establishments,15/03/19,6288878,20.45,VENDOR,THE PORTSMOUTH SITTING SERVICE AND COMMUNITY CARE SERVICES LTD T/A ASSURED CARE,100201
Portsmouth City Council,PCC,Adult Social Care,Social Support - Support for Carer,Adult Services,Third Party Payments,Other establishments,15/03/19,6288878,239.36,VENDOR,THE PORTSMOUTH SITTING SERVICE AND COMMUNITY CARE SERVICES LTD T/A ASSURED CARE,100201
Portsmouth City Council,PCC,Adult Social Care,Physical Support Older People (85+),Adult Services,Third Party Payments,Other establishments,18/03/19,6288953,527.61,VENDOR,THE PORTSMOUTH SITTING SERVICE AND COMMUNITY CARE SERVICES LTD T/A ASSURED CARE,100201
Portsmouth City Council,PCC,Adult Social Care,Physical Support Older People (85+),Adult Services,Third Party Payments,Other establishments,15/03/19,6288878,1259.72,VENDOR,THE PORTSMOUTH SITTING SERVICE AND COMMUNITY CARE SERVICES LTD T/A ASSURED CARE,100201
Portsmouth City Council,PCC,Adult Social Care,Physical Support Older People (85+),Adult Services,Third Party Payments,Other establishments,15/03/19,6288878,281.13,VENDOR,THE PORTSMOUTH SITTING SERVICE AND COMMUNITY CARE SERVICES LTD T/A ASSURED CARE,100201
Portsmouth City Council,PCC,Adult Social Care,Social Support - Support for Carer,Adult Services,Third Party Payments,Other establishments,15/03/19,6288878,28.16,VENDOR,THE PORTSMOUTH SITTING SERVICE AND COMMUNITY CARE SERVICES LTD T/A ASSURED CARE,100201
Portsmouth City Council,PCC,Adult Social Care,Social Support - Support for Carer,Adult Services,Third Party Payments,Other establishments,15/03/19,6288878,49.28,VENDOR,THE PORTSMOUTH SITTING SERVICE AND COMMUNITY CARE SERVICES LTD T/A ASSURED CARE,100201
Portsmouth City Council,PCC,Adult Social Care,Physical Support Older People (85+),Adult Services,Third Party Payments,Other establishments,15/03/19,6288878,523.52,VENDOR,THE PORTSMOUTH SITTING SERVICE AND COMMUNITY CARE SERVICES LTD T/A ASSURED CARE,100201
Portsmouth City Council,PCC,Adult Social Care,Social Support - Support for Carer,Adult Services,Third Party Payments,Other establishments,15/03/19,6288878,337.92,VENDOR,THE PORTSMOUTH SITTING SERVICE AND COMMUNITY CARE SERVICES LTD T/A ASSURED CARE,100201
Portsmouth City Council,PCC,Housing Services,Homelessness,"Housing, Neighbourhood and Building Services",Premises-Related Expenditure,Rents,25/03/19,6290432,2400,SOLETRADER,Classified as 'personal data' (under the Data Protection Act 1998),137146
Portsmouth City Council,PCC,Housing Services,Homelessness,"Housing, Neighbourhood and Building Services",Supplies and Services,Grants and subscriptions,13/03/19,6288483,1000,VENDOR,SKIPTON BUILDING SOCIETY,117994
Portsmouth City Council,PCC,Adult Social Care,Social Support - Support for Carer,Adult Services,Third Party Payments,Other establishments,15/03/19,6288878,56.32,VENDOR,THE PORTSMOUTH SITTING SERVICE AND COMMUNITY CARE SERVICES LTD T/A ASSURED CARE,100201
Portsmouth City Council,PCC,Public Health,Sexual Health,Public Health,Third Party Payments,Other establishments,06/03/19,6287354,1116.73,VENDOR,WESTERN SUSSEX HOSPITALS NHS FOUNDATION TRUST,139914
Portsmouth City Council,PCC,Public Health,Sexual Health,Public Health,Third Party Payments,Other establishments,07/03/19,6287476,1210.76,VENDOR,WESTERN SUSSEX HOSPITALS NHS FOUNDATION TRUST,139914
Portsmouth City Council,PCC,Public Health,Sexual Health,Public Health,Third Party Payments,Other establishments,29/03/19,6291784,1980.41,VENDOR,WESTERN SUSSEX HOSPITALS NHS FOUNDATION TRUST,139914
Portsmouth City Council,PCC,Adult Social Care,Social Support - Support for Carer,Adult Services,Third Party Payments,Other establishments,15/03/19,6288878,337.92,VENDOR,THE PORTSMOUTH SITTING SERVICE AND COMMUNITY CARE SERVICES LTD T/A ASSURED CARE,100201
Portsmouth City Council,PCC,Adult Social Care,Social Support - Support for Carer,Adult Services,Third Party Payments,Other establishments,15/03/19,6288878,168.96,VENDOR,THE PORTSMOUTH SITTING SERVICE AND COMMUNITY CARE SERVICES LTD T/A ASSURED CARE,100201
Portsmouth City Council,PCC,Other,Suspense and Capital Schemes,Capital - Education,Capital Charges,Capital Expenditure (WIP),25/03/19,6290494,5224.03,VENDOR,SILWOOD FACILITIES LTD,143803
Portsmouth City Council,PCC,Other,Suspense and Capital Schemes,Capital - Education,Capital Charges,Capital Expenditure (WIP),28/03/19,6291443,1150,VENDOR,RIDGE AND PARTNERS LLP,139659
Portsmouth City Council,PCC,Other,Suspense and Capital Schemes,Capital - Culture Leisure & Sport,Capital Charges,Capital Expenditure (WIP),11/03/19,6287728,1750,COMPANY,REDS BUILDERS LTD,108228
Portsmouth City Council,PCC,Cultural and Related Services,Open Spaces,Culture & City Development,Premises-Related Expenditure,Grounds maintenance costs,01/03/19,6286452,600,COMPANY,REDS BUILDERS LTD,108228
Portsmouth City Council,PCC,Other,Suspense and Capital Schemes,Capital - Environment,Capital Charges,Capital Expenditure (WIP),06/03/19,6286854,1239,VENDOR,ENVIRONMENT AGENCY,110963
Portsmouth City Council,PCC,Highways and Transport Services,Parking Services,Regeneration,Supplies and Services,Communications and computing,26/03/19,6290570,3968,VENDOR,CONDUENT PARKING ENFORCEMENT SOLUTIONS LIMITED,113838
Portsmouth City Council,PCC,Adult Social Care,Social Care Activities,Adult Services,Third Party Payments,Other establishments,26/03/19,6290679,5562.4,VENDOR,NIGHTINGALES GOLDEN CARE,103699
Portsmouth City Council,PCC,Adult Social Care,Social Care Activities,Adult Services,Third Party Payments,Other establishments,26/03/19,6290679,3828.24,VENDOR,NIGHTINGALES GOLDEN CARE,103699
Portsmouth City Council,PCC,Adult Social Care,Social Support - Support for Carer,Adult Services,Third Party Payments,Other establishments,26/03/19,6290679,337.92,VENDOR,NIGHTINGALES GOLDEN CARE,103699
Portsmouth City Council,PCC,Adult Social Care,Social Support - Support for Carer,Adult Services,Third Party Payments,Other establishments,26/03/19,6290679,281.6,VENDOR,NIGHTINGALES GOLDEN CARE,103699
Portsmouth City Council,PCC,Adult Social Care,Physical Support Older People (85+),Adult Services,Third Party Payments,Other establishments,26/03/19,6290679,267.52,VENDOR,NIGHTINGALES GOLDEN CARE,103699
Portsmouth City Council,PCC,Adult Social Care,Social Support - Support for Carer,Adult Services,Third Party Payments,Other establishments,26/03/19,6290679,70.4,VENDOR,NIGHTINGALES GOLDEN CARE,103699
Portsmouth City Council,PCC,Adult Social Care,Physical Support Older People (85+),Adult Services,Third Party Payments,Other establishments,26/03/19,6290679,337.92,VENDOR,NIGHTINGALES GOLDEN CARE,103699
Portsmouth City Council,PCC,Adult Social Care,Physical Support Older People (85+),Adult Services,Third Party Payments,Other establishments,26/03/19,6290679,1030.68,VENDOR,NIGHTINGALES GOLDEN CARE,103699
Portsmouth City Council,PCC,Adult Social Care,Physical Support Older People (85+),Adult Services,Third Party Payments,Other establishments,26/03/19,6290679,2290.4,VENDOR,NIGHTINGALES GOLDEN CARE,103699
Portsmouth City Council,PCC,Adult Social Care,Social Care Activities,Adult Services,Third Party Payments,Other establishments,26/03/19,6290679,42.24,VENDOR,NIGHTINGALES GOLDEN CARE,103699
Portsmouth City Council,PCC,Adult Social Care,Learning Disability Support  Adults (18 - 64),Adult Services,Third Party Payments,Other establishments,26/03/19,6290679,736.2,VENDOR,NIGHTINGALES GOLDEN CARE,103699
Portsmouth City Council,PCC,Adult Social Care,Support with Memory and Cognition Older People (85+),Adult Services,Third Party Payments,Other establishments,12/03/19,6287762,856,VENDOR,ALEXANDRA ROSE RESIDENTIAL CARE HOME,101952
Portsmouth City Council,PCC,Adult Social Care,Support with Memory and Cognition Older People (85+),Adult Services,Third Party Payments,Other establishments,12/03/19,6287762,1228.84,VENDOR,ALEXANDRA ROSE RESIDENTIAL CARE HOME,101952
Portsmouth City Council,PCC,Adult Social Care,Support with Memory and Cognition Older People (85+),Adult Services,Third Party Payments,Other establishments,12/03/19,6287762,351.45,VENDOR,ALEXANDRA ROSE RESIDENTIAL CARE HOME,101952
Portsmouth City Council,PCC,Adult Social Care,Support with Memory and Cognition Older People (85+),Adult Services,Third Party Payments,Other establishments,12/03/19,6287762,3157.18,VENDOR,ALEXANDRA ROSE RESIDENTIAL CARE HOME,101952
Portsmouth City Council,PCC,Adult Social Care,Support with Memory and Cognition Older People (85+),Adult Services,Third Party Payments,Other establishments,13/03/19,6288002,2178.99,VENDOR,ALEXANDRA ROSE RESIDENTIAL CARE HOME,101952
Portsmouth City Council,PCC,Adult Social Care,Physical Support Older People (85+),Adult Services,Third Party Payments,Other establishments,12/03/19,6287768,2178.99,VENDOR,ALTON MANOR CARE HOME,130289
Portsmouth City Council,PCC,Adult Social Care,Support with Memory and Cognition Older People (85+),Adult Services,Third Party Payments,Other establishments,12/03/19,6287768,16976.74,VENDOR,ALTON MANOR CARE HOME,130289
Portsmouth City Council,PCC,Adult Social Care,Mental Health Support Adults (18 - 64),Adult Services,Third Party Payments,Other establishments,12/03/19,6287768,2095.29,VENDOR,ALTON MANOR CARE HOME,130289
Portsmouth City Council,PCC,Adult Social Care,Learning Disability Support  Adults (18 - 64),Adult Services,Third Party Payments,Other establishments,12/03/19,6287774,8849.26,VENDOR,ASSURE HEALTH CARE GROUP,140779
Portsmouth City Council,PCC,Adult Social Care,Learning Disability Support  Adults (18 - 64),Adult Services,Third Party Payments,Other establishments,12/03/19,6287774,7121.01,VENDOR,ASSURE HEALTH CARE GROUP,140779
Portsmouth City Council,PCC,Adult Social Care,Mental Health Support Adults (18 - 64),Adult Services,Third Party Payments,Other establishments,15/03/19,6288700,2173.17,VENDOR,BEACONSFIELD RESIDENTIAL CARE HOME,100568
Portsmouth City Council,PCC,Adult Social Care,Mental Health Support Adults (18 - 64),Adult Services,Income,Customer and client receipts,15/03/19,6288700,-452.91,VENDOR,BEACONSFIELD RESIDENTIAL CARE HOME,100568
Portsmouth City Council,PCC,Adult Social Care,Mental Health Support Adults (18 - 64),Adult Services,Third Party Payments,Other establishments,12/03/19,6287783,1871.16,VENDOR,BEACONSFIELD RESIDENTIAL CARE HOME,100568
Portsmouth City Council,PCC,Adult Social Care,Mental Health Support Adults (18 - 64),Adult Services,Third Party Payments,Other establishments,12/03/19,6287783,2529.6,VENDOR,BEACONSFIELD RESIDENTIAL CARE HOME,100568
Portsmouth City Council,PCC,Adult Social Care,Mental Health Support Adults (18 - 64),Adult Services,Third Party Payments,Other establishments,12/03/19,6287783,2072.5,VENDOR,BEACONSFIELD RESIDENTIAL CARE HOME,100568
Portsmouth City Council,PCC,Adult Social Care,Mental Health Support Adults (18 - 64),Adult Services,Third Party Payments,Other establishments,12/03/19,6287783,1964.47,VENDOR,BEACONSFIELD RESIDENTIAL CARE HOME,100568
Portsmouth City Council,PCC,Adult Social Care,Mental Health Support Adults (18 - 64),Adult Services,Third Party Payments,Other establishments,15/03/19,6288700,1971.74,VENDOR,BEACONSFIELD RESIDENTIAL CARE HOME,100568
Portsmouth City Council,PCC,Adult Social Care,Mental Health Support Adults (18 - 64),Adult Services,Income,Customer and client receipts,15/03/19,6288700,-592.1,VENDOR,BEACONSFIELD RESIDENTIAL CARE HOME,100568
Portsmouth City Council,PCC,Adult Social Care,Mental Health Support Adults (18 - 64),Adult Services,Third Party Payments,Other establishments,12/03/19,6287783,1971.83,VENDOR,BEACONSFIELD RESIDENTIAL CARE HOME,100568
Portsmouth City Council,PCC,Adult Social Care,Mental Health Support Adults (18 - 64),Adult Services,Third Party Payments,Other establishments,12/03/19,6287783,2313.22,VENDOR,BEACONSFIELD RESIDENTIAL CARE HOME,100568
Portsmouth City Council,PCC,Adult Social Care,Mental Health Support Adults (18 - 64),Adult Services,Third Party Payments,Other establishments,12/03/19,6287783,1770.62,VENDOR,BEACONSFIELD RESIDENTIAL CARE HOME,100568
Portsmouth City Council,PCC,Adult Social Care,Social Care Activities,Adult Services,Third Party Payments,Other establishments,12/03/19,6287783,3230.2,VENDOR,BEACONSFIELD RESIDENTIAL CARE HOME,100568
Portsmouth City Council,PCC,Adult Social Care,Learning Disability Support  Adults (18 - 64),Adult Services,Third Party Payments,Other establishments,12/03/19,6287783,3321.34,VENDOR,BEACONSFIELD RESIDENTIAL CARE HOME,100568
Portsmouth City Council,PCC,Adult Social Care,Mental Health Support Adults (18 - 64),Adult Services,Third Party Payments,Other establishments,12/03/19,6287783,1871.16,VENDOR,BEACONSFIELD RESIDENTIAL CARE HOME,100568
Portsmouth City Council,PCC,Adult Social Care,Mental Health Support Adults (18 - 64),Adult Services,Third Party Payments,Other establishments,12/03/19,6287783,1719.57,VENDOR,BEACONSFIELD RESIDENTIAL CARE HOME,100568
Portsmouth City Council,PCC,Adult Social Care,Mental Health Support Adults (18 - 64),Adult Services,Third Party Payments,Other establishments,12/03/19,6287783,2273.89,VENDOR,BEACONSFIELD RESIDENTIAL CARE HOME,100568
Portsmouth City Council,PCC,Adult Social Care,Mental Health Support Adults (18 - 64),Adult Services,Third Party Payments,Other establishments,12/03/19,6287783,135.37,VENDOR,BEACONSFIELD RESIDENTIAL CARE HOME,100568
Portsmouth City Council,PCC,Adult Social Care,Mental Health Support Adults (18 - 64),Adult Services,Third Party Payments,Other establishments,12/03/19,6287783,1806.37,VENDOR,BEACONSFIELD RESIDENTIAL CARE HOME,100568
Portsmouth City Council,PCC,Adult Social Care,Mental Health Support Adults (18 - 64),Adult Services,Income,Customer and client receipts,12/03/19,6287783,-452.91,VENDOR,BEACONSFIELD RESIDENTIAL CARE HOME,100568
Portsmouth City Council,PCC,Adult Social Care,Mental Health Support Adults (18 - 64),Adult Services,Third Party Payments,Other establishments,12/03/19,6287783,1971.83,VENDOR,BEACONSFIELD RESIDENTIAL CARE HOME,100568
Portsmouth City Council,PCC,Adult Social Care,Mental Health Support Adults (18 - 64),Adult Services,Third Party Payments,Other establishments,15/03/19,6288700,1971.83,VENDOR,BEACONSFIELD RESIDENTIAL CARE HOME,100568
Portsmouth City Council,PCC,Adult Social Care,Mental Health Support Adults (18 - 64),Adult Services,Income,Customer and client receipts,15/03/19,6288700,-452.91,VENDOR,BEACONSFIELD RESIDENTIAL CARE HOME,100568
Portsmouth City Council,PCC,Adult Social Care,Mental Health Support Adults (18 - 64),Adult Services,Third Party Payments,Other establishments,12/03/19,6287783,1871.16,VENDOR,BEACONSFIELD RESIDENTIAL CARE HOME,100568
Portsmouth City Council,PCC,Adult Social Care,Learning Disability Support  Adults (18 - 64),Adult Services,Third Party Payments,Other establishments,12/03/19,6287783,2435.67,VENDOR,BEACONSFIELD RESIDENTIAL CARE HOME,100568
Portsmouth City Council,PCC,Adult Social Care,Learning Disability Support  Adults (18 - 64),Adult Services,Third Party Payments,Other establishments,12/03/19,6287809,2604.93,VENDOR,CHOICE CARE GROUP,134468
Portsmouth City Council,PCC,Adult Social Care,Mental Health Support Adults (18 - 64),Adult Services,Third Party Payments,Other establishments,12/03/19,6287809,3759.68,VENDOR,CHOICE CARE GROUP,134468
Portsmouth City Council,PCC,Adult Social Care,Mental Health Support Adults (18 - 64),Adult Services,Third Party Payments,Other establishments,12/03/19,6287809,3672.57,VENDOR,CHOICE CARE GROUP,134468
Portsmouth City Council,PCC,Highways and Transport Services,"Airports, Harbours and Toll Facilities",Portsmouth International Port,Premises-Related Expenditure,"Repairs, alterations and maintenance of buildings",21/03/19,6290072,4486.38,VENDOR,ICS COOL ENERGY LIMITED,144746
Portsmouth City Council,PCC,Highways and Transport Services,Parking Services,Regeneration,Supplies and Services,Communications and computing,26/03/19,6290570,-93,VENDOR,CONDUENT PARKING ENFORCEMENT SOLUTIONS LIMITED,113838
Portsmouth City Council,PCC,Highways and Transport Services,"Airports, Harbours and Toll Facilities",Portsmouth International Port,Premises-Related Expenditure,"Repairs, alterations and maintenance of buildings",21/03/19,6290072,990,VENDOR,ICS COOL ENERGY LIMITED,144746
Portsmouth City Council,PCC,Other,Suspense and Capital Schemes,Capital - Housing RA,Capital Charges,Capital Expenditure (WIP),19/03/19,6289004,1534.11,COMPANY,HAMPSHIRE PARTITIONING CONTRACTS LTD,104637
Portsmouth City Council,PCC,Costs below Net Cost of Services,Trading,"Housing, Neighbourhood and Building Services",Third Party Payments,Private contractors,15/03/19,6288791,7109.67,COMPANY,JTS CIVIL ENGINEERS LTD,134670
Portsmouth City Council,PCC,Adult Social Care,Social Care Activities,Adult Services,Third Party Payments,Other establishments,05/03/19,6286707,-51.6,VENDOR,FOUR DOZEN LIMITED T/A BLUEBIRD CARE,141083
Portsmouth City Council,PCC,Adult Social Care,Social Care Activities,Adult Services,Third Party Payments,Other establishments,05/03/19,6286707,-26.5,VENDOR,FOUR DOZEN LIMITED T/A BLUEBIRD CARE,141083
Portsmouth City Council,PCC,Environmental and Regulatory Services,Agricultural and Fisheries Services,Portsmouth International Port,Third Party Payments,Private contractors,28/03/19,6291398,2949.8,VENDOR,KEN BROWN BOATS LTD,100926
Portsmouth City Council,PCC,Highways and Transport Services,"Airports, Harbours and Toll Facilities",Portsmouth International Port,Premises-Related Expenditure,"Repairs, alterations and maintenance of buildings",28/03/19,6291398,150,VENDOR,KEN BROWN BOATS LTD,100926
Portsmouth City Council,PCC,Environmental and Regulatory Services,Agricultural and Fisheries Services,Portsmouth International Port,Third Party Payments,Private contractors,28/03/19,6291398,146.11,VENDOR,KEN BROWN BOATS LTD,100926
Portsmouth City Council,PCC,Costs below Net Cost of Services,Trading,Regeneration,Premises-Related Expenditure,Grounds maintenance costs,22/03/19,6290148,890,COMPANY,BARHILL PLANT LTD,100355
Portsmouth City Council,PCC,Cultural and Related Services,Recreation and Sport,Culture & City Development,Premises-Related Expenditure,Grounds maintenance costs,04/03/19,6286530,2255.9,COMPANY,BARHILL PLANT LTD,100355
Portsmouth City Council,PCC,Cultural and Related Services,Culture and Heritage,Culture & City Development,Third Party Payments,Private contractors,11/03/19,6287647,175.96,COMPANY,BARHILL PLANT LTD,100355
Portsmouth City Council,PCC,Cultural and Related Services,Open Spaces,Culture & City Development,Premises-Related Expenditure,Grounds maintenance costs,11/03/19,6287647,587.45,COMPANY,BARHILL PLANT LTD,100355
Portsmouth City Council,PCC,Cultural and Related Services,Open Spaces,Culture & City Development,Premises-Related Expenditure,Grounds maintenance costs,15/03/19,6288698,775.9,COMPANY,BARHILL PLANT LTD,100355
Portsmouth City Council,PCC,Cultural and Related Services,Open Spaces,Culture & City Development,Premises-Related Expenditure,Grounds maintenance costs,25/03/19,6290337,3559.9,COMPANY,BARHILL PLANT LTD,100355
Portsmouth City Council,PCC,Costs below Net Cost of Services,Trading,Regeneration,Premises-Related Expenditure,Grounds maintenance costs,22/03/19,6290148,450,COMPANY,BARHILL PLANT LTD,100355
Portsmouth City Council,PCC,Other,Suspense and Capital Schemes,Capital - Housing GF,Capital Charges,REFCUS,06/03/19,6287261,5088.92,COMPANY,JPC PROPERTY SERVICES LIMITED,111208
Portsmouth City Council,PCC,Housing Services,Private Sector Housing Renewal,"Housing, Neighbourhood and Building Services",Income,Other grants reimbursements and contributions,06/03/19,6287261,-794.1,COMPANY,JPC PROPERTY SERVICES LIMITED,111208
Portsmouth City Council,PCC,Highways and Transport Services,"Airports, Harbours and Toll Facilities",Portsmouth International Port,Premises-Related Expenditure,"Repairs, alterations and maintenance of buildings",28/03/19,6291319,650,VENDOR,CAMEO SYSTEMS LTD,142855
Portsmouth City Council,PCC,Other,Suspense and Capital Schemes,Capital - Housing GF,Capital Charges,REFCUS,29/03/19,6291645,10300,COMPANY,JPC PROPERTY SERVICES LIMITED,111208
Portsmouth City Council,PCC,Other,Suspense and Capital Schemes,Capital - Housing GF,Capital Charges,REFCUS,27/03/19,6291213,6500,COMPANY,JPC PROPERTY SERVICES LIMITED,111208
Portsmouth City Council,PCC,Other,Suspense and Capital Schemes,Capital - Housing GF,Capital Charges,REFCUS,27/03/19,6291213,11500,COMPANY,JPC PROPERTY SERVICES LIMITED,111208
Portsmouth City Council,PCC,Adult Social Care,Physical Support Adults (18 - 64),Adult Services,Third Party Payments,Other establishments,26/03/19,6290635,-309.6,VENDOR,FOUR DOZEN LIMITED T/A BLUEBIRD CARE,141083
Portsmouth City Council,PCC,Environmental and Regulatory Services,Waste Collection,"Housing, Neighbourhood and Building Services",Supplies and Services,Miscellaneous expenses,14/03/19,6288642,580,VENDOR,SOUTHERN MOTOR CONTRACTS LTD T/A MOTORENT,137480
Portsmouth City Council,PCC,Highways and Transport Services,Traffic Management and Road Safety,Regeneration,Supplies and Services,Miscellaneous expenses,13/03/19,6288005,6972,VENDOR,AURA GRAPHICS LTD,143069
Portsmouth City Council,PCC,Highways and Transport Services,Traffic Management and Road Safety,Regeneration,Supplies and Services,Miscellaneous expenses,13/03/19,6288005,1394.4,VENDOR,AURA GRAPHICS LTD,143069
Portsmouth City Council,PCC,Adult Social Care,Physical Support Adults (18 - 64),Adult Services,Third Party Payments,Other establishments,26/03/19,6290635,-309.6,VENDOR,FOUR DOZEN LIMITED T/A BLUEBIRD CARE,141083
Portsmouth City Council,PCC,Adult Social Care,Social Care Activities,Adult Services,Third Party Payments,Other establishments,04/03/19,6286520,2418.46,VENDOR,APEX PROPERTY VENTURES LTD,108437
Portsmouth City Council,PCC,Adult Social Care,Social Care Activities,Adult Services,Third Party Payments,Other establishments,04/03/19,6286520,14.08,VENDOR,APEX PROPERTY VENTURES LTD,108437
Portsmouth City Council,PCC,Adult Social Care,Physical Support Older People (85+),Adult Services,Third Party Payments,Other establishments,04/03/19,6286520,453.99,VENDOR,APEX PROPERTY VENTURES LTD,108437
Portsmouth City Council,PCC,Adult Social Care,Physical Support Older People (85+),Adult Services,Third Party Payments,Other establishments,04/03/19,6286520,237.22,VENDOR,APEX PROPERTY VENTURES LTD,108437
Portsmouth City Council,PCC,Adult Social Care,Physical Support Older People (85+),Adult Services,Third Party Payments,Other establishments,04/03/19,6286520,490.8,VENDOR,APEX PROPERTY VENTURES LTD,108437
Portsmouth City Council,PCC,Adult Social Care,Social Care Activities,Adult Services,Third Party Payments,Other establishments,04/03/19,6286520,155.42,VENDOR,APEX PROPERTY VENTURES LTD,108437
Portsmouth City Council,PCC,Adult Social Care,Physical Support Older People (85+),Adult Services,Third Party Payments,Other establishments,04/03/19,6286520,53.17,VENDOR,APEX PROPERTY VENTURES LTD,108437
Portsmouth City Council,PCC,Adult Social Care,Social Care Activities,Adult Services,Third Party Payments,Other establishments,04/03/19,6286520,2261.77,VENDOR,APEX PROPERTY VENTURES LTD,108437
Portsmouth City Council,PCC,Adult Social Care,Physical Support Adults (18 - 64),Adult Services,Third Party Payments,Other establishments,04/03/19,6286520,196.32,VENDOR,APEX PROPERTY VENTURES LTD,108437
Portsmouth City Council,PCC,Adult Social Care,Physical Support Older People (85+),Adult Services,Third Party Payments,Other establishments,04/03/19,6286520,687.12,VENDOR,APEX PROPERTY VENTURES LTD,108437
Portsmouth City Council,PCC,Adult Social Care,Physical Support Older People (85+),Adult Services,Third Party Payments,Other establishments,04/03/19,6286520,822.09,VENDOR,APEX PROPERTY VENTURES LTD,108437
Portsmouth City Council,PCC,Adult Social Care,Physical Support Older People (85+),Adult Services,Third Party Payments,Other establishments,04/03/19,6286520,2290.4,VENDOR,APEX PROPERTY VENTURES LTD,108437
Portsmouth City Council,PCC,Adult Social Care,Physical Support Older People (85+),Adult Services,Third Party Payments,Other establishments,04/03/19,6286520,789.37,VENDOR,APEX PROPERTY VENTURES LTD,108437
Portsmouth City Council,PCC,Adult Social Care,Physical Support Older People (85+),Adult Services,Third Party Payments,Other establishments,04/03/19,6286520,359.92,VENDOR,APEX PROPERTY VENTURES LTD,108437
Portsmouth City Council,PCC,Adult Social Care,Physical Support Adults (18 - 64),Adult Services,Third Party Payments,Other establishments,04/03/19,6286520,110.43,VENDOR,APEX PROPERTY VENTURES LTD,108437
Portsmouth City Council,PCC,Adult Social Care,Physical Support Older People (85+),Adult Services,Third Party Payments,Other establishments,04/03/19,6286520,801.64,VENDOR,APEX PROPERTY VENTURES LTD,108437
Portsmouth City Council,PCC,Adult Social Care,Physical Support Older People (85+),Adult Services,Third Party Payments,Other establishments,04/03/19,6286520,347.65,VENDOR,APEX PROPERTY VENTURES LTD,108437
Portsmouth City Council,PCC,Adult Social Care,Physical Support Older People (85+),Adult Services,Third Party Payments,Other establishments,04/03/19,6286520,1824.14,VENDOR,APEX PROPERTY VENTURES LTD,108437
Portsmouth City Council,PCC,Adult Social Care,Physical Support Older People (85+),Adult Services,Third Party Payments,Other establishments,04/03/19,6286520,580.78,VENDOR,APEX PROPERTY VENTURES LTD,108437
Portsmouth City Council,PCC,Adult Social Care,Physical Support Older People (85+),Adult Services,Third Party Payments,Other establishments,04/03/19,6286520,229.04,VENDOR,APEX PROPERTY VENTURES LTD,108437
Portsmouth City Council,PCC,Adult Social Care,Physical Support Older People (85+),Adult Services,Third Party Payments,Other establishments,04/03/19,6286520,683.03,VENDOR,APEX PROPERTY VENTURES LTD,108437
Portsmouth City Council,PCC,Adult Social Care,Physical Support Older People (85+),Adult Services,Third Party Payments,Other establishments,04/03/19,6286520,2061.36,VENDOR,APEX PROPERTY VENTURES LTD,108437
Portsmouth City Council,PCC,Adult Social Care,Physical Support Older People (85+),Adult Services,Third Party Payments,Other establishments,04/03/19,6286520,1832.32,VENDOR,APEX PROPERTY VENTURES LTD,108437
Portsmouth City Council,PCC,Adult Social Care,Physical Support Older People (85+),Adult Services,Third Party Payments,Other establishments,04/03/19,6286520,229.04,VENDOR,APEX PROPERTY VENTURES LTD,108437
Portsmouth City Council,PCC,Adult Social Care,Physical Support Older People (85+),Adult Services,Third Party Payments,Other establishments,04/03/19,6286520,687.12,VENDOR,APEX PROPERTY VENTURES LTD,108437
Portsmouth City Council,PCC,Adult Social Care,Physical Support Older People (85+),Adult Services,Third Party Payments,Other establishments,04/03/19,6286520,2028.64,VENDOR,APEX PROPERTY VENTURES LTD,108437
Portsmouth City Council,PCC,Adult Social Care,Physical Support Older People (85+),Adult Services,Third Party Payments,Other establishments,04/03/19,6286520,224.95,VENDOR,APEX PROPERTY VENTURES LTD,108437
Portsmouth City Council,PCC,Adult Social Care,Physical Support Older People (85+),Adult Services,Third Party Payments,Other establishments,04/03/19,6286520,65.44,VENDOR,APEX PROPERTY VENTURES LTD,108437
Portsmouth City Council,PCC,Adult Social Care,Physical Support Older People (85+),Adult Services,Third Party Payments,Other establishments,04/03/19,6286520,40.9,VENDOR,APEX PROPERTY VENTURES LTD,108437
Portsmouth City Council,PCC,Adult Social Care,Physical Support Older People (85+),Adult Services,Third Party Payments,Other establishments,04/03/19,6286520,1243.36,VENDOR,APEX PROPERTY VENTURES LTD,108437
Portsmouth City Council,PCC,Adult Social Care,Physical Support Adults (18 - 64),Adult Services,Third Party Payments,Other establishments,04/03/19,6286520,343.56,VENDOR,APEX PROPERTY VENTURES LTD,108437
Portsmouth City Council,PCC,Adult Social Care,Physical Support Older People (85+),Adult Services,Third Party Payments,Other establishments,04/03/19,6286520,229.04,VENDOR,APEX PROPERTY VENTURES LTD,108437
Portsmouth City Council,PCC,Adult Social Care,Physical Support Older People (85+),Adult Services,Third Party Payments,Other establishments,04/03/19,6286520,768.92,VENDOR,APEX PROPERTY VENTURES LTD,108437
Portsmouth City Council,PCC,Adult Social Care,Physical Support Older People (85+),Adult Services,Third Party Payments,Other establishments,04/03/19,6286520,572.6,VENDOR,APEX PROPERTY VENTURES LTD,108437
Portsmouth City Council,PCC,Adult Social Care,Physical Support Older People (85+),Adult Services,Third Party Payments,Other establishments,04/03/19,6286520,654.4,VENDOR,APEX PROPERTY VENTURES LTD,108437
Portsmouth City Council,PCC,Adult Social Care,Physical Support Adults (18 - 64),Adult Services,Third Party Payments,Other establishments,04/03/19,6286520,850.72,VENDOR,APEX PROPERTY VENTURES LTD,108437
Portsmouth City Council,PCC,Adult Social Care,Physical Support Older People (85+),Adult Services,Third Party Payments,Other establishments,04/03/19,6286520,453.99,VENDOR,APEX PROPERTY VENTURES LTD,108437
Portsmouth City Council,PCC,Adult Social Care,Physical Support Older People (85+),Adult Services,Third Party Payments,Other establishments,04/03/19,6286520,143.15,VENDOR,APEX PROPERTY VENTURES LTD,108437
Portsmouth City Council,PCC,Adult Social Care,Physical Support Older People (85+),Adult Services,Third Party Payments,Other establishments,04/03/19,6286520,1262.4,VENDOR,APEX PROPERTY VENTURES LTD,108437
Portsmouth City Council,PCC,Adult Social Care,Physical Support Older People (85+),Adult Services,Third Party Payments,Other establishments,04/03/19,6286520,98.16,VENDOR,APEX PROPERTY VENTURES LTD,108437
Portsmouth City Council,PCC,Adult Social Care,Physical Support Older People (85+),Adult Services,Third Party Payments,Other establishments,04/03/19,6286520,441.72,VENDOR,APEX PROPERTY VENTURES LTD,108437
Portsmouth City Council,PCC,Adult Social Care,Physical Support Older People (85+),Adult Services,Third Party Payments,Other establishments,04/03/19,6286520,687.12,VENDOR,APEX PROPERTY VENTURES LTD,108437
